Body Name,Trans.date,Department Code,Department,Expense Area Code,Expense Area,Expense Type Code,Expense Type,Amount Paid (�),Supplier name,Extended Description,TransNo,Period
Rother District Council,31/05/2021,091HOUSING,Housing and Community Services,20107,Camber Beach & Foreshore,B1100,Repairs to Premises,75.00,Culligan Water Limited,Repairs to Premises - Specified Repairs and Works listed,2035695,202206
Rother District Council,15/08/2021,101RESOURCES,Resources,20239,Computer Services,D2621,Telephones,270.00,TalkTalk Communications Ltd T/A TalkTalk Business,Telephones - Leased Line Rental,2034192,202205
Rother District Council,13/09/2021,101RESOURCES,Resources,20242,Communications-Phones,D2621,Telephones,612.89,O2 (UK) Ltd,Telephones,2034258,202204
Rother District Council,16/09/2021,101RESOURCES,Resources,20239,Computer Services,D2621,Telephones,622.00,TalkTalk Communications Ltd T/A TalkTalk Business,Telephones - Leased Line Rental,2034190,202205
Rother District Council,16/11/2021,999NOREPORT,Resources,90000,Balance sheet all accounts,R2348,Suspense Accounts,20.83,Trade UK Account (Screwfix & B&Q),Suspense Accounts Monies to be Refunded,2034104,202204
Rother District Council,11/12/2021,081ACQUISIT,"Acquisitions, Transformation and Regeneration",20144,Property Management,D2513,Hired and Contracted services,495.00,Trainair Solutions Ltd t/a The SkyCam,Hired and contracted services - Service fee paid,2035740,202206
Rother District Council,31/01/2022,091HOUSING,Housing and Community Services,20206,UK Resettlement (Syrians),D2513,Hired and Contracted services,45.15,REDACTED PERSONAL DATA,Hired and contracted services - Syrian-Translation Services,2035027,202205
Rother District Council,31/01/2022,091HOUSING,Housing and Community Services,20133,Refuse Collection,E2302,Third party payment private contractors,40.00,Data Shredding Services Ltd,Third party payment private contractors - Waste Collection Contract Variable cost to RDC,2035787,202206
Rother District Council,07/02/2022,101RESOURCES,Resources,20239,Computer Services,D2513,Hired and Contracted services,19.40,J M Waste Management Limited,Hired and contracted services - Service fee paid,2034788,202205
Rother District Council,08/02/2022,091HOUSING,Housing and Community Services,20206,UK Resettlement (Syrians),D2513,Hired and Contracted services,382.90,REDACTED PERSONAL DATA,Hired and contracted services - Syrian-Translation Services,2035107,202205
Rother District Council,09/02/2022,031RESOURCES,Chief Executive & Corporate Core,20156,Representing Local Interest,D1201,Equipment & Materials,324.15,Lloyds Bank,Equipment & materials - Miscellaneous,2033730,202204
Rother District Council,16/02/2022,091HOUSING,Housing and Community Services,20206,UK Resettlement (Syrians),D2513,Hired and Contracted services,"1,199.76",REDACTED PERSONAL DATA,Hired and contracted services - Syrian Resettlement Programme-Rent,2034329,202204
Rother District Council,22/02/2022,041ENVIRON,Environmental Services,20130,Crime and Disorder Initiatives,D2923,Grants made,133.75,The Pelham,Grants made - Crime Prevention Initiative (JAG),2035271,202205
Rother District Council,23/02/2022,999NOREPORT,"Acquisitions, Transformation and Regeneration ",70736,Capital - 18-40 Beeching Close Refurbishment,N1004,Architects & Consultant Fees,"14,000.00",The Lawson Partnership Ltd t/a Lawson Queay,Architects & Consultant Fees Capital-Architect and Conslt Fees,2034102,202204
Rother District Council,23/02/2022,999NOREPORT,"Acquisitions, Transformation and Regeneration ",70736,Capital - 18-40 Beeching Close Refurbishment,N1004,Architects & Consultant Fees,"22,261.02",The Lawson Partnership Ltd t/a Lawson Queay,Architects & Consultant Fees Capital-Architect and Conslt Fees,2034102,202204
Rother District Council,24/02/2022,091HOUSING,Housing and Community Services,20261,"TA Purchases (prev - 41 Jameson Mews, Bexhill on Sea)",D2513,Hired and Contracted services,90.00,A&A Cleaning & Property Services Ltd,Hired and contracted services - Service fee paid,2035135,202205
Rother District Council,27/02/2022,101RESOURCES,Resources,20222,Accountancy,D1203,Books And Publications,495.00,CIPFA Business Ltd,Books and Publications - general,2034660,202205
Rother District Council,09/03/2022,101RESOURCES,Resources,20239,Computer Services,D2635,Computer Licences,25.98,Lloyds Bank,Computer Licences - Domain Name Renewal,2034389,202204
Rother District Council,09/03/2022,101RESOURCES,Resources,20239,Computer Services,D2635,Computer Licences,63.96,Lloyds Bank,Computer Licences - Domain Name Renewal,2034389,202204
Rother District Council,09/03/2022,091HOUSING,Housing and Community Services,20200,Housing Needs - HB (Housing Benefit),D2514,Accommodation Costs,633.92,Lloyds Bank,Accommodation Costs - Homelessness services Temp Accom-plus VAT,2034379,202204
Rother District Council,09/03/2022,091HOUSING,Housing and Community Services,20306,Afghan Relocation Assistance Policy,D2513,Hired and Contracted services,528.50,Lloyds Bank,Hired and contracted services - Afghan Misc,2034378,202204
Rother District Council,09/03/2022,091HOUSING,Housing and Community Services,20206,UK Resettlement (Syrians),D2513,Hired and Contracted services,1.00,Lloyds Bank,Hired and contracted services - Syrian Misc,2034378,202204
Rother District Council,09/03/2022,091HOUSING,Housing and Community Services,20107,Camber Beach & Foreshore,B1100,Repairs to Premises,73.38,Lloyds Bank,Derv - Fuel Diesel,2034381,202204
Rother District Council,09/03/2022,091HOUSING,Housing and Community Services,20107,Camber Beach & Foreshore,B1100,Repairs to Premises,76.21,Lloyds Bank,Derv - Fuel Diesel,2034381,202204
Rother District Council,09/03/2022,091HOUSING,Housing and Community Services,20107,Camber Beach & Foreshore,B1100,Repairs to Premises,74.95,Lloyds Bank,Derv - Fuel Diesel,2034381,202204
Rother District Council,09/03/2022,091HOUSING,Housing and Community Services,20261,"TA Purchases (prev - 41 Jameson Mews, Bexhill on Sea)",D2513,Hired and Contracted services,303.00,Lloyds Bank,Hired and contracted services - Service fee paid,2034376,202204
Rother District Council,09/03/2022,091HOUSING,Housing and Community Services,20202,Rother Tenant Finder (prev Rother Letting Service),D2513,Hired and Contracted services,253.95,Lloyds Bank,Hired and contracted services - Service fee paid,2034376,202204
Rother District Council,09/03/2022,091HOUSING,Housing and Community Services,20261,"TA Purchases (prev - 41 Jameson Mews, Bexhill on Sea)",D2513,Hired and Contracted services,10.00,Lloyds Bank,Hired and contracted services - Service fee paid,2034376,202204
Rother District Council,09/03/2022,101RESOURCES,Resources,20239,Computer Services,D2633,Computer Equipment,75.26,Lloyds Bank,Computer Equipment - Computer peripherals,2034380,202204
Rother District Council,09/03/2022,101RESOURCES,Resources,20239,Computer Services,D2631,Computer Equip Maintenance,27.14,Lloyds Bank,Computer Equip Maintenance - IT EQUIP MAINT-Air Conditioning,2034380,202204
Rother District Council,09/03/2022,101RESOURCES,Resources,20239,Computer Services,D2633,Computer Equipment,212.90,Lloyds Bank,Computer Equipment - Computer peripherals,2034380,202204
Rother District Council,09/03/2022,101RESOURCES,Resources,20239,Computer Services,D2420,General office supplies (Stationery purchased from ext suppliers),29.32,Lloyds Bank,General office supplies - Stationery,2034380,202204
Rother District Council,09/03/2022,101RESOURCES,Resources,20239,Computer Services,D2631,Computer Equip Maintenance,275.10,Lloyds Bank,Computer Equip Maintenance - IT EQUIP MAINT-Air Conditioning,2034380,202204
Rother District Council,09/03/2022,101RESOURCES,Resources,20239,Computer Services,D2631,Computer Equip Maintenance,18.36,Lloyds Bank,Computer Equip Maintenance,2034380,202204
Rother District Council,09/03/2022,091HOUSING,Housing and Community Services,20201,Household Support Fund (HFS) from 202108,D2513,Hired and Contracted services,860.00,REDACTED PERSONAL DATA,Hired and contracted services - Service fee paid,2034384,202204
Rother District Council,09/03/2022,091HOUSING,Housing and Community Services,20261,"TA Purchases (prev - 41 Jameson Mews, Bexhill on Sea)",D1206,Furniture & Fittings,23.00,Lloyds Bank,Furniture & Fittings - Purchase of office equipment,2034384,202204
Rother District Council,09/03/2022,091HOUSING,Housing and Community Services,20261,"TA Purchases (prev - 41 Jameson Mews, Bexhill on Sea)",B1100,Repairs to Premises,47.17,Lloyds Bank,Repairs to Premises - Repairs Refurbishment of premises,2034384,202204
Rother District Council,09/03/2022,091HOUSING,Housing and Community Services,20206,UK Resettlement (Syrians),D2513,Hired and Contracted services,388.50,Lloyds Bank,Hires and contracted services - Syrian-Bus Pass,2034385,202204
Rother District Council,09/03/2022,091HOUSING,Housing and Community Services,20206,UK Resettlement (Syrians),D2513,Hired and Contracted services,3.80,Lloyds Bank,Hired and contracted services - Syrian Misc,2034385,202204
Rother District Council,09/03/2022,999NOREPORT,Housing and Community Services,70714,Capital - Community Grants,N1011,Capital Grants,300.00,The Gambling Commission,Capital Grants - Community Grants Scheme,2034387,202204
Rother District Council,09/03/2022,071STRAT,Strategy and Planning,20246,Planning Applications,A2203,Training,165.00,Lloyds Bank,Training,2034389,202204
Rother District Council,09/03/2022,081ACQUISIT,"Acquisitions, Transformation and Regeneration",20101,Cultural Development,D2922,Subscriptions,-87.51,Lloyds Bank,Subscriptions - Subscription to Organisations,2034389,202204
Rother District Council,09/03/2022,081ACQUISIT,"Acquisitions, Transformation and Regeneration",20101,Cultural Development,D2922,Subscriptions,-87.48,Lloyds Bank,Subscriptions - Subscription to Organisations,2034389,202204
Rother District Council,09/03/2022,091HOUSING,Housing and Community Services,20200,Housing Needs - HB (Housing Benefit),D2514,Accommodation Costs,87.98,Lloyds Bank,Accommodation Costs - Homelessness services Temp Accom-plus VAT,2034380,202204
Rother District Council,09/03/2022,091HOUSING,Housing and Community Services,20200,Housing Needs - HB (Housing Benefit),D2514,Accommodation Costs,156.43,Lloyds Bank,Accommodation Costs - Homelessness services Temp Accom-plus VAT,2034380,202204
Rother District Council,09/03/2022,091HOUSING,Housing and Community Services,20200,Housing Needs - HB (Housing Benefit),D2514,Accommodation Costs,87.98,Lloyds Bank,Accommodation Costs - Homelessness services Temp Accom-plus VAT,2034380,202204
Rother District Council,09/03/2022,091HOUSING,Housing and Community Services,20200,Housing Needs - HB (Housing Benefit),D2514,Accommodation Costs,97.76,Lloyds Bank,Accommodation Costs,2034381,202204
Rother District Council,09/03/2022,091HOUSING,Housing and Community Services,20200,Housing Needs - HB (Housing Benefit),D2514,Accommodation Costs,1.83,Lloyds Bank,Accommodation Costs,2034381,202204
Rother District Council,09/03/2022,091HOUSING,Housing and Community Services,20200,Housing Needs - HB (Housing Benefit),D2514,Accommodation Costs,204.96,Lloyds Bank,Accommodation Costs,2034386,202204
Rother District Council,10/03/2022,101RESOURCES,Resources,20209,Corporate management,D2513,Hired and Contracted services,41.05,Lloyds Bank,Bank Charges,2034957,202205
Rother District Council,23/03/2022,101RESOURCES,Resources,20239,Computer Services,D2513,Hired and Contracted services,"3,822.00",J M Waste Management Limited,Hired and contracted services - Service fee paid,2034787,202205
Rother District Council,23/03/2022,041ENVIRON,Environmental Services,20130,Crime and Disorder Initiatives,D2923,Grants made,850.00,East Sussex Fire & Rescue Service,Grants made - Crime Prevention Equipment (JAG),2035866,202206
Rother District Council,29/03/2022,999NOREPORT,"Acquisitions, Transformation and Regeneration ",70736,Capital - 18-40 Beeching Close Refurbishment,N1004,Architects & Consultant Fees,"7,200.00",The Lawson Partnership Ltd t/a Lawson Queay,Architects & Consultant Fees Capital-Architect and Conslt Fees,2034103,202204
Rother District Council,31/03/2022,999NOREPORT,Housing and Community Services,70751,Capital - Temporary Accommodation,N1003,Construction/Conversion,"2,312.68",The Pelham Building Enterprises Ltd,Construction/Conversion Capital-Contract Payments - General,2034445,202204
Rother District Council,31/03/2022,999NOREPORT,Housing and Community Services,70751,Capital - Temporary Accommodation,N1003,Construction/Conversion,"1,187.32",The Pelham Building Enterprises Ltd,Construction/Conversion Capital-Contract Payments - General,2034446,202204
Rother District Council,31/03/2022,091HOUSING,Housing and Community Services,20128,Public Conveniences,D1201,Equipment & Materials,340.73,Specialist Hygiene Services Ltd,Equipment & Materials - PCs Equipment,2034935,202205
Rother District Council,01/04/2022,091HOUSING,Housing and Community Services,20108,Bexhill Promenade & Foreshore,D2621,Telephones,8.80,Commtel Ltd T/A Teleguard,Equipment & Materials - Access cards and systems,2034093,202204
Rother District Council,01/04/2022,101RESOURCES,Resources,20239,Computer Services,D2631,Computer Equip Maintenance,"2,250.20",Vodafone Ltd,Computer Equip Maintenance - Maintenance of Network Equipment,2035876,202206
Rother District Council,05/04/2022,041ENVIRON,Environmental Services,32144,EH Environmental Services Admin R + W Partnership,A2203,Training,82.00,Institute of Licensing (Events) Ltd,Training,2035499,202206
Rother District Council,08/04/2022,091HOUSING,Housing and Community Services,20261,"TA Purchases (prev - 41 Jameson Mews, Bexhill on Sea)",B2421,Water,14.84,South East Water Ltd,Water - Water Charges,2034162,202204
Rother District Council,08/04/2022,091HOUSING,Housing and Community Services,20261,"TA Purchases (prev - 41 Jameson Mews, Bexhill on Sea)",B2422,Sewerage,25.21,South East Water Ltd,Sewerage - Sewerage Charges,2034162,202204
Rother District Council,11/04/2022,999NOREPORT,"Acquisitions, Transformation and Regeneration ",70766,Capital - Purchase 1-9 Buckhurst Place - Sainsbury�s,N1002,Land & Property fees,"47,425.00",Newsteer Ltd,Land & Property fees Capital-Land and Propty - Fees Etc.,2035273,202205
Rother District Council,11/04/2022,101RESOURCES,Resources,20209,Corporate management,D2513,Hired and Contracted services,44.09,Lloyds Bank,Bank Charges,2034959,202205
Rother District Council,14/04/2022,031RESOURCES,Chief Executive & Corporate Core,20171,Human Resources,D1201,Equipment & Materials,26.30,Value Products Ltd,Equipment & Materials - First Aid Equipment,2034319,202204
Rother District Council,14/04/2022,091HOUSING,Housing and Community Services,20200,Housing Needs - HB (Housing Benefit),D2513,Hired and Contracted services,"5,887.50",Brighton Housing Trust (BHT),Hired and Contracted services,2033563,202204
Rother District Council,19/04/2022,101RESOURCES,Resources,20211,Public Accountabilty-Resources,D2922,Subscriptions,"2,445.00",West Devon Borough Council,Subscriptions - Mem-Sparsity Partnrship Rural Servs,2035196,202205
Rother District Council,20/04/2022,091HOUSING,Housing and Community Services,20137,Car Parks,B1100,Repairs to Premises,"2,650.00",D M Building Services & Son,Repairs to Premises - Sand Clearance at Camber,2034299,202204
Rother District Council,22/04/2022,999NOREPORT,Housing and Community Services,70725,Capital - Blackfriars,N1002,Land & Property fees,"1,042.50",Bevan Brittan LLP,Land & Property fees Capital-Land and Propty - Fees Etc.,2034140,202204
Rother District Council,28/04/2022,999NOREPORT,Housing and Community Services,70725,Capital - Blackfriars,D2513,Hired and Contracted services,"3,994.50",Bevan Brittan LLP,Hired and contracted services - Legal Advice,2034939,202205
Rother District Council,04/05/2022,091HOUSING,Housing and Community Services,20304,Housing First,B1100,Repairs to Premises,43.74,Wolseley UK Ltd,Repairs to Premises - Purchase of Materials - Build Maint,2035174,202205
Rother District Council,06/05/2022,091HOUSING,Housing and Community Services,20114,Bexhill Parks & Open Spaces,B2201,Electricity,109.21,Ecotricity Ltd,Electricity - Electricity Charges,2035667,202206
Rother District Council,06/05/2022,091HOUSING,Housing and Community Services,20114,Bexhill Parks & Open Spaces,B2201,Electricity,95.24,Ecotricity Ltd,Electricity - Electricity Charges,2035666,202206
Rother District Council,09/05/2022,081ACQUISIT,"Acquisitions, Transformation and Regeneration",20122,Economic Development,A2203,Training,319.20,Professional Development Group T/A Government Events,Training,2034130,202204
Rother District Council,10/05/2022,091HOUSING,Housing and Community Services,20261,"TA Purchases (prev - 41 Jameson Mews, Bexhill on Sea)",D2513,Hired and Contracted services,150.00,A&A Cleaning & Property Services Ltd,Hired and contracted services - Service fee paid,2034666,202204
Rother District Council,12/05/2022,091HOUSING,Housing and Community Services,20261,"TA Purchases (prev - 41 Jameson Mews, Bexhill on Sea)",D2513,Hired and Contracted services,70.00,A&A Cleaning & Property Services Ltd,Hired and contracted services - Service fee paid,2034667,202204
Rother District Council,12/05/2022,091HOUSING,Housing and Community Services,20114,Bexhill Parks & Open Spaces,D1201,Equipment & Materials,357.90,Palmstead Nurseries Ltd,Equipment & Materials - Parks-Purchase of Planting Material,2034021,202204
Rother District Council,12/05/2022,091HOUSING,Housing and Community Services,20329,Rough Sleeping Initiative,D2514,Accommodation Costs,-130.00,Solutions Accommodation Providers Ltd,Accommodation Costs,2032744,202204
Rother District Council,12/05/2022,091HOUSING,Housing and Community Services,20329,Rough Sleeping Initiative,D2514,Accommodation Costs,130.00,Solutions Accommodation Providers Ltd,Accommodation Costs,2032744,202204
Rother District Council,13/05/2022,101RESOURCES,Resources,20242,Communications-Phones,D2621,Telephones,110.00,O2 (UK) Ltd,Telephones,2034266,202204
Rother District Council,13/05/2022,101RESOURCES,Resources,20242,Communications-Phones,D2621,Telephones,326.00,O2 (UK) Ltd,Telephones,2034267,202204
Rother District Council,13/05/2022,101RESOURCES,Resources,20242,Communications-Phones,D2621,Telephones,558.10,O2 (UK) Ltd,Telephones,2034263,202204
Rother District Council,13/05/2022,101RESOURCES,Resources,20242,Communications-Phones,D2621,Telephones,607.17,O2 (UK) Ltd,Telephones,2034268,202204
Rother District Council,13/05/2022,101RESOURCES,Resources,20242,Communications-Phones,D2621,Telephones,110.00,O2 (UK) Ltd,Telephones,2034264,202204
Rother District Council,13/05/2022,101RESOURCES,Resources,20242,Communications-Phones,D2621,Telephones,55.00,O2 (UK) Ltd,Telephones,2034265,202204
Rother District Council,15/05/2022,101RESOURCES,Resources,20239,Computer Services,D2621,Telephones,622.00,TalkTalk Communications Ltd T/A TalkTalk Business,Telephones - Leased Line Rental,2034269,202205
Rother District Council,15/05/2022,091HOUSING,Housing and Community Services,20145,Maintenance Services,C1104,Derv,104.01,Allstar Business Solutions,Derv,2034205,202204
Rother District Council,15/05/2022,041ENVIRON,Environmental Services,32136,EH Pest Control R + W Partnership,C1104,Derv,63.03,Allstar Business Solutions,Derv,2034205,202204
Rother District Council,15/05/2022,041ENVIRON,Environmental Services,32136,EH Pest Control R + W Partnership,C1104,Derv,60.01,Allstar Business Solutions,Derv,2034205,202204
Rother District Council,15/05/2022,041ENVIRON,Environmental Services,32136,EH Pest Control R + W Partnership,C1104,Derv,3.80,Allstar Business Solutions,Derv - Fuel Service fee payable on fuel cards,2034205,202204
Rother District Council,18/05/2022,101RESOURCES,Resources,20314,Payments to Ukrainian guests,D2513,Hired and Contracted services,335.00,Post Office Ltd,Hired and contracted services - Service fee paid,2033908,202204
Rother District Council,18/05/2022,031RESOURCES,Chief Executive & Corporate Core,20173,Administrative Offices - Town Hall,B2612,Cleaning materials,54.69,Wightman and Parrish Ltd,Cleaning materials - Premises,2034507,202204
Rother District Council,18/05/2022,999NOREPORT,Housing and Community Services,70751,Capital - Temporary Accommodation,N1003,Construction/Conversion,"1,200.00",The Pelham Building Enterprises Ltd,Construction/Conversion Capital-Contract Payments - General,2034474,202204
Rother District Council,18/05/2022,999NOREPORT,Housing and Community Services,70762,Capital - Bexhill Promenade Shelter One,D2513,Hired and Contracted services,283.14,Alsford Timber Ltd,Repairs to Premises - Purchase of Materials - Build Maint,2034564,202205
Rother District Council,20/05/2022,031RESOURCES,Chief Executive & Corporate Core,20156,Representing Local Interest,D2312,Refreshments,71.47,Booker Ltd,Refreshments - Catering/Refreshments for Meetings,2034215,202204
Rother District Council,20/05/2022,031RESOURCES,Chief Executive & Corporate Core,20156,Representing Local Interest,D2312,Refreshments,72.92,Booker Ltd,Refreshments - Catering/Refreshments for Meetings,2034215,202204
Rother District Council,25/05/2022,091HOUSING,Housing and Community Services,20125,Coast Protection,B2201,Electricity,128.91,Npower Ltd,Electricity - Electricity Charges,2034094,202204
Rother District Council,25/05/2022,031RESOURCES,Chief Executive & Corporate Core,20176,Administrative Offices - Print Room,B2202,Gas,104.16,Laser Energy Buying Group (Kent County Council Commercial Services),Gas - Gas Charges,2034478,202204
Rother District Council,25/05/2022,091HOUSING,Housing and Community Services,20236,Customer Services and Development,A2203,Training,325.00,Partnership Media Group Ltd t/a GovNet Communications,Training,2034095,202204
Rother District Council,25/05/2022,031RESOURCES,Chief Executive & Corporate Core,20173,Administrative Offices - Town Hall,B2202,Gas,793.65,Laser Energy Buying Group (Kent County Council Commercial Services),Gas - Gas Charges,2034478,202204
Rother District Council,25/05/2022,081ACQUISIT,"Acquisitions, Transformation and Regeneration",20308,Amherst Road,B2202,Gas,321.78,Laser Energy Buying Group (Kent County Council Commercial Services),Gas - Gas Charges,2034478,202204
Rother District Council,26/05/2022,999NOREPORT,"Acquisitions, Transformation and Regeneration ",70736,Capital - 18-40 Beeching Close Refurbishment,N1004,Architects & Consultant Fees,"5,000.00",The Lawson Partnership Ltd t/a Lawson Queay,Architects & Consultant Fees Capital-Architect and Conslt Fees,2034101,202204
Rother District Council,27/05/2022,091HOUSING,Housing and Community Services,20200,Housing Needs - HB (Housing Benefit),D2514,Accommodation Costs,415.00,47-48 Havelock Road Ltd,Accommodation Costs,2033853,202204
Rother District Council,29/05/2022,999NOREPORT,"Acquisitions, Transformation and Regeneration ",70736,Capital - 18-40 Beeching Close Refurbishment,N1004,Architects & Consultant Fees,"1,000.00",The Lawson Partnership Ltd t/a Lawson Queay,Architects & Consultant Fees Capital-Architect and Conslt Fees,2034092,202204
Rother District Council,30/05/2022,101RESOURCES,Resources,20314,Payments to Ukrainian guests,D2513,Hired and Contracted services,"1,000.00",Post Office Ltd,Hired and contracted services - Service fee paid,2033898,202204
Rother District Council,30/05/2022,091HOUSING,Housing and Community Services,20114,Bexhill Parks & Open Spaces,B1100,Repairs to Premises,540.00,Coussens Cranes Limited,Repairs to Premises - Parks- Landscaping Works,2034349,202204
Rother District Council,30/05/2022,101RESOURCES,Resources,20239,Computer Services,D2634,Computer Consumables,256.74,Softcat PLC,Computer Consumables - InkJet Cartridge,2033205,202204
Rother District Council,31/05/2022,091HOUSING,Housing and Community Services,20137,Car Parks,D1201,Equipment & Materials,575.00,Roadside Technologies Ltd,Equipment & Materials - Car Parks various,2035280,202205
Rother District Council,31/05/2022,091HOUSING,Housing and Community Services,20145,Maintenance Services,C1104,Derv,106.94,Allstar Business Solutions,Derv,2034206,202204
Rother District Council,31/05/2022,091HOUSING,Housing and Community Services,20145,Maintenance Services,C1104,Derv,107.66,Allstar Business Solutions,Derv,2034206,202204
Rother District Council,31/05/2022,091HOUSING,Housing and Community Services,20145,Maintenance Services,C1104,Derv,1.90,Allstar Business Solutions,Derv - Fuel Service fee payable on fuel cards,2034206,202204
Rother District Council,31/05/2022,041ENVIRON,Environmental Services,32136,EH Pest Control R + W Partnership,C1104,Derv,70.83,Allstar Business Solutions,Derv,2034206,202204
Rother District Council,31/05/2022,041ENVIRON,Environmental Services,32136,EH Pest Control R + W Partnership,C1104,Derv,66.67,Allstar Business Solutions,Derv,2034206,202204
Rother District Council,31/05/2022,041ENVIRON,Environmental Services,32136,EH Pest Control R + W Partnership,C1104,Derv,3.80,Allstar Business Solutions,Derv - Fuel Service fee payable on fuel cards,2034206,202204
Rother District Council,31/05/2022,091HOUSING,Housing and Community Services,20145,Maintenance Services,C1104,Derv,101.87,Allstar Business Solutions,Derv,2034206,202204
Rother District Council,31/05/2022,101RESOURCES,Resources,20209,Corporate management,D2513,Hired and Contracted services,879.86,allpay.net Ltd,Hired and contracted services - Allpay Card/Rep/Let Chrg - Vatable,2034199,202204
Rother District Council,31/05/2022,101RESOURCES,Resources,20209,Corporate management,D2513,Hired and Contracted services,17.47,allpay.net Ltd,Hired and contracted services - Allpay Card/Rep/Let Chrg - Vatable,2034200,202204
Rother District Council,31/05/2022,101RESOURCES,Resources,20209,Corporate management,D2513,Hired and Contracted services,11.50,allpay.net Ltd,Hired and contracted services - Allpay Card/Rep/Let Chrg - Vatable,2034201,202204
Rother District Council,31/05/2022,101RESOURCES,Resources,20209,Corporate management,D2513,Hired and Contracted services,26.51,allpay.net Ltd,Hired and contracted services - Allpay Card/Rep/Let Chrg - Vatable,2034202,202204
Rother District Council,31/05/2022,999NOREPORT,Housing and Community Services,70718,Capital - Sidley Recreation Ground,N1004,Architects & Consultant Fees,"3,200.00",Faithorn Farrell Timms LLP,Architects & Consultant Fees Capital-Architect and Conslt Fees,2034018,202204
Rother District Council,01/06/2022,091HOUSING,Housing and Community Services,20107,Camber Beach & Foreshore,D2621,Telephones,52.95,Beaming Ltd,Telephones - Broadband Connection,2034197,202204
Rother District Council,01/06/2022,101RESOURCES,Resources,20209,Corporate management,D2513,Hired and Contracted services,964.66,Lloyds Bank,Bank Charges,2034279,202204
Rother District Council,01/06/2022,101RESOURCES,Resources,20209,Corporate management,D2513,Hired and Contracted services,20.00,Lloyds Bank,Bank Charges,2034271,202204
Rother District Council,01/06/2022,101RESOURCES,Resources,20209,Corporate management,D2513,Hired and Contracted services,20.00,Lloyds Bank,Bank Charges,2034276,202204
Rother District Council,01/06/2022,101RESOURCES,Resources,20209,Corporate management,D2513,Hired and Contracted services,280.00,Her Majestys Court Service,Hired and contracted services - Court Costs/Fees,2034262,202204
Rother District Council,01/06/2022,101RESOURCES,Resources,20209,Corporate management,D2513,Hired and Contracted services,149.50,Her Majestys Court Service,Hired and contracted services - Court Costs/Fees,2034261,202204
Rother District Council,01/06/2022,101RESOURCES,Resources,20209,Corporate management,D2513,Hired and Contracted services,26.01,Lloyds Bank,Bank Charges,2034211,202204
Rother District Council,01/06/2022,101RESOURCES,Resources,20209,Corporate management,D2513,Hired and Contracted services,20.00,Lloyds Bank,Bank Charges,2034275,202204
Rother District Council,01/06/2022,101RESOURCES,Resources,20209,Corporate management,D2513,Hired and Contracted services,"2,892.54",Lloyds Bank,Bank Charges,2034280,202204
Rother District Council,01/06/2022,101RESOURCES,Resources,20209,Corporate management,D2513,Hired and Contracted services,20.00,Lloyds Bank,Bank Charges,2034278,202204
Rother District Council,01/06/2022,091HOUSING,Housing and Community Services,20200,Housing Needs - HB (Housing Benefit),D2514,Accommodation Costs,"8,333.33",Paramount Independent Property Services LLP,Accommodation Costs,2033353,202204
Rother District Council,01/06/2022,101RESOURCES,Resources,20209,Corporate management,D2513,Hired and Contracted services,381.77,Lloyds Bank,Bank Charges,2034212,202204
Rother District Council,01/06/2022,101RESOURCES,Resources,20209,Corporate management,D2513,Hired and Contracted services,20.00,Lloyds Bank,Bank Charges,2034277,202204
Rother District Council,01/06/2022,101RESOURCES,Resources,20209,Corporate management,D2513,Hired and Contracted services,20.00,Lloyds Bank,Bank Charges,2034273,202204
Rother District Council,01/06/2022,101RESOURCES,Resources,20209,Corporate management,D2513,Hired and Contracted services,40.00,Lloyds Bank,Bank Charges,2034274,202204
Rother District Council,01/06/2022,101RESOURCES,Resources,20209,Corporate management,D2513,Hired and Contracted services,20.00,Lloyds Bank,Bank Charges,2034272,202204
Rother District Council,02/06/2022,101RESOURCES,Resources,20242,Communications-Phones,D2621,Telephones,26.29,TalkTalk Communications Ltd T/A TalkTalk Business,Telephones - Leased Line Rental,2034992,202206
Rother District Council,02/06/2022,091HOUSING,Housing and Community Services,20200,Housing Needs - HB (Housing Benefit),D2514,Accommodation Costs,495.52,Travelodge - FIS Payments UK Ltd,Accommodation Costs,2033915,202204
Rother District Council,02/06/2022,091HOUSING,Housing and Community Services,20200,Housing Needs - HB (Housing Benefit),D2514,Accommodation Costs,430.62,Travelodge - FIS Payments UK Ltd,Accommodation Costs,2033915,202204
Rother District Council,02/06/2022,091HOUSING,Housing and Community Services,20200,Housing Needs - HB (Housing Benefit),D2514,Accommodation Costs,585.76,Travelodge - FIS Payments UK Ltd,Accommodation Costs,2033915,202204
Rother District Council,04/06/2022,091HOUSING,Housing and Community Services,20200,Housing Needs - HB (Housing Benefit),D2513,Hired and Contracted services,500.00,Peter Wilson T/A Friendly Pete,Hired and Contracted services,2034318,202204
Rother District Council,06/06/2022,091HOUSING,Housing and Community Services,20108,Bexhill Promenade & Foreshore,D2623,Radios and licences,85.00,Ofcom - Radio Licence Fees,Radios and licences - Radio/Transmitter Licences,2034538,202204
Rother District Council,06/06/2022,081ACQUISIT,"Acquisitions, Transformation and Regeneration",20268,Property Investment Strategy � Glovers Farm sites,B2422,Sewerage,790.00,Sea Change Sussex,Sewerage,2033385,202205
Rother District Council,06/06/2022,081ACQUISIT,"Acquisitions, Transformation and Regeneration",20153,"Elva Business Centre, Bexhill",B1100,Repairs to Premises,389.64,Alfa Electric Ltd,Repairs to Premises - Repairs Refurbishment of premises,2034780,202205
Rother District Council,06/06/2022,091HOUSING,Housing and Community Services,20137,Car Parks,B1100,Repairs to Premises,"2,342.17",Paul Mighall t/a Windmill Restorations,Repairs to Premises -  Building Surveys and Inspection,2033993,202204
Rother District Council,06/06/2022,031RESOURCES,Chief Executive & Corporate Core,20162,Electoral Registration,D2415,Printing by external suppliers,639.59,Civica Election Services Ltd,Printing by external suppliers - Printing (Not from RDC Print Room),2034632,202204
Rother District Council,06/06/2022,101RESOURCES,Resources,20209,Corporate management,D2513,Hired and Contracted services,301.07,Pay 360 Ltd,Bank Charges,2034259,202204
Rother District Council,07/06/2022,999NOREPORT,Housing and Community Services,70751,Capital - Temporary Accommodation,D2513,Hired and Contracted services,436.00,St Leonards Glass Co,Hired and contracted services - Service fee paid,2034859,202205
Rother District Council,07/06/2022,101RESOURCES,Resources,20209,Corporate management,D2513,Hired and Contracted services,70.10,Lloyds Bank,Bank Charges,2034281,202204
Rother District Council,07/06/2022,101RESOURCES,Resources,20209,Corporate management,D2513,Hired and Contracted services,130.80,Lloyds Bank,Bank Charges,2034285,202204
Rother District Council,07/06/2022,999NOREPORT,Housing and Community Services,70762,Capital - Bexhill Promenade Shelter One,N1008,Equipment,20.07,Trade Paints Ltd,Capital - Purchase of Equipment,2034144,202204
Rother District Council,08/06/2022,041ENVIRON,Environmental Services,32143,EH Licenses and Registration R + W Partnership,D2513,Hired and Contracted services,"1,543.24",Fairfield House Veterinary Surgery,Hired and contracted services - EnvH-Veterinary Services for Licens,2034194,202204
Rother District Council,08/06/2022,091HOUSING,Housing and Community Services,20261,"TA Purchases (prev - 41 Jameson Mews, Bexhill on Sea)",B2201,Electricity,98.26,Laser Energy Buying Group (Kent County Council Commercial Services),Electricity - Electricity Charges,2034477,202204
Rother District Council,08/06/2022,091HOUSING,Housing and Community Services,20261,"TA Purchases (prev - 41 Jameson Mews, Bexhill on Sea)",B2201,Electricity,37.38,Laser Energy Buying Group (Kent County Council Commercial Services),Electricity - Electricity Charges,2034477,202204
Rother District Council,08/06/2022,091HOUSING,Housing and Community Services,20261,"TA Purchases (prev - 41 Jameson Mews, Bexhill on Sea)",B2201,Electricity,108.22,Laser Energy Buying Group (Kent County Council Commercial Services),Electricity - Electricity Charges,2034477,202204
Rother District Council,08/06/2022,091HOUSING,Housing and Community Services,20261,"TA Purchases (prev - 41 Jameson Mews, Bexhill on Sea)",B2201,Electricity,157.18,Laser Energy Buying Group (Kent County Council Commercial Services),Electricity - Electricity Charges,2034477,202204
Rother District Council,08/06/2022,091HOUSING,Housing and Community Services,20114,Bexhill Parks & Open Spaces,B2201,Electricity,34.24,Laser Energy Buying Group (Kent County Council Commercial Services),Electricity - Electricity Charges,2034477,202204
Rother District Council,08/06/2022,091HOUSING,Housing and Community Services,20107,Camber Beach & Foreshore,B2201,Electricity,172.24,Laser Energy Buying Group (Kent County Council Commercial Services),Electricity - Electricity Charges,2034477,202204
Rother District Council,08/06/2022,091HOUSING,Housing and Community Services,20137,Car Parks,B2201,Electricity,35.56,Laser Energy Buying Group (Kent County Council Commercial Services),Electricity - Electricity Charges,2034477,202204
Rother District Council,08/06/2022,091HOUSING,Housing and Community Services,20123,Cemeteries,B2201,Electricity,64.10,Laser Energy Buying Group (Kent County Council Commercial Services),Electricity - Electricity Charges,2034477,202204
Rother District Council,08/06/2022,081ACQUISIT,"Acquisitions, Transformation and Regeneration",20104,Ancient Monuments & Gazebo,B2201,Electricity,26.87,Laser Energy Buying Group (Kent County Council Commercial Services),Electricity - Electricity Charges,2034477,202204
Rother District Council,08/06/2022,091HOUSING,Housing and Community Services,20108,Bexhill Promenade & Foreshore,B2201,Electricity,40.94,Laser Energy Buying Group (Kent County Council Commercial Services),Electricity - Electricity Charges,2034477,202204
Rother District Council,08/06/2022,081ACQUISIT,"Acquisitions, Transformation and Regeneration",20154,Committee Property Account,B2201,Electricity,14.01,Laser Energy Buying Group (Kent County Council Commercial Services),Electricity - Electricity Charges,2034477,202204
Rother District Council,08/06/2022,081ACQUISIT,"Acquisitions, Transformation and Regeneration",20154,Committee Property Account,B2201,Electricity,14.01,Laser Energy Buying Group (Kent County Council Commercial Services),Electricity - Electricity Charges,2034477,202204
Rother District Council,08/06/2022,081ACQUISIT,"Acquisitions, Transformation and Regeneration",20154,Committee Property Account,B2201,Electricity,14.00,Laser Energy Buying Group (Kent County Council Commercial Services),Electricity - Electricity Charges,2034477,202204
Rother District Council,08/06/2022,081ACQUISIT,"Acquisitions, Transformation and Regeneration",20154,Committee Property Account,B2201,Electricity,14.00,Laser Energy Buying Group (Kent County Council Commercial Services),Electricity - Electricity Charges,2034477,202204
Rother District Council,08/06/2022,091HOUSING,Housing and Community Services,20128,Public Conveniences,B2201,Electricity,-42.90,Laser Energy Buying Group (Kent County Council Commercial Services),Electricity - Electricity Charges,2034477,202204
Rother District Council,08/06/2022,091HOUSING,Housing and Community Services,20128,Public Conveniences,B2201,Electricity,-49.32,Laser Energy Buying Group (Kent County Council Commercial Services),Electricity - Electricity Charges,2034477,202204
Rother District Council,08/06/2022,091HOUSING,Housing and Community Services,20128,Public Conveniences,B2201,Electricity,-49.32,Laser Energy Buying Group (Kent County Council Commercial Services),Electricity - Electricity Charges,2034477,202204
Rother District Council,08/06/2022,091HOUSING,Housing and Community Services,20128,Public Conveniences,B2201,Electricity,-49.32,Laser Energy Buying Group (Kent County Council Commercial Services),Electricity - Electricity Charges,2034477,202204
Rother District Council,08/06/2022,091HOUSING,Housing and Community Services,20128,Public Conveniences,B2201,Electricity,-27.06,Laser Energy Buying Group (Kent County Council Commercial Services),Electricity - Electricity Charges,2034477,202204
Rother District Council,08/06/2022,091HOUSING,Housing and Community Services,20128,Public Conveniences,B2201,Electricity,166.56,Laser Energy Buying Group (Kent County Council Commercial Services),Electricity - Electricity Charges,2034477,202204
Rother District Council,08/06/2022,091HOUSING,Housing and Community Services,20114,Bexhill Parks & Open Spaces,B2201,Electricity,289.97,Laser Energy Buying Group (Kent County Council Commercial Services),Electricity - Electricity Charges,2034477,202204
Rother District Council,08/06/2022,091HOUSING,Housing and Community Services,20137,Car Parks,B2201,Electricity,55.79,Laser Energy Buying Group (Kent County Council Commercial Services),Electricity - Electricity Charges,2034477,202204
Rother District Council,08/06/2022,091HOUSING,Housing and Community Services,20145,Maintenance Services,B2201,Electricity,737.66,Laser Energy Buying Group (Kent County Council Commercial Services),Electricity - Electricity Charges,2034477,202204
Rother District Council,08/06/2022,091HOUSING,Housing and Community Services,20108,Bexhill Promenade & Foreshore,B2201,Electricity,61.42,Laser Energy Buying Group (Kent County Council Commercial Services),Electricity - Electricity Charges,2034477,202204
Rother District Council,08/06/2022,091HOUSING,Housing and Community Services,20108,Bexhill Promenade & Foreshore,B2201,Electricity,24.36,Laser Energy Buying Group (Kent County Council Commercial Services),Electricity - Electricity Charges,2034477,202204
Rother District Council,08/06/2022,081ACQUISIT,"Acquisitions, Transformation and Regeneration",20154,Committee Property Account,B2201,Electricity,24.36,Laser Energy Buying Group (Kent County Council Commercial Services),Electricity - Electricity Charges,2034477,202204
Rother District Council,08/06/2022,081ACQUISIT,"Acquisitions, Transformation and Regeneration",20154,Committee Property Account,B2201,Electricity,24.36,Laser Energy Buying Group (Kent County Council Commercial Services),Electricity - Electricity Charges,2034477,202204
Rother District Council,08/06/2022,081ACQUISIT,"Acquisitions, Transformation and Regeneration",20154,Committee Property Account,B2201,Electricity,24.36,Laser Energy Buying Group (Kent County Council Commercial Services),Electricity - Electricity Charges,2034477,202204
Rother District Council,08/06/2022,081ACQUISIT,"Acquisitions, Transformation and Regeneration",20151,Udimore Workshops,B2201,Electricity,27.77,Laser Energy Buying Group (Kent County Council Commercial Services),Electricity - Electricity Charges,2034477,202204
Rother District Council,08/06/2022,081ACQUISIT,"Acquisitions, Transformation and Regeneration",20150,Peasmarsh Workshops,B2201,Electricity,28.66,Laser Energy Buying Group (Kent County Council Commercial Services),Electricity - Electricity Charges,2034477,202204
Rother District Council,08/06/2022,091HOUSING,Housing and Community Services,20128,Public Conveniences,B2201,Electricity,29.88,Laser Energy Buying Group (Kent County Council Commercial Services),Electricity - Electricity Charges,2034477,202204
Rother District Council,08/06/2022,081ACQUISIT,"Acquisitions, Transformation and Regeneration",20155,Investment properties,B2201,Electricity,29.89,Laser Energy Buying Group (Kent County Council Commercial Services),Electricity - Electricity Charges,2034477,202204
Rother District Council,08/06/2022,091HOUSING,Housing and Community Services,20128,Public Conveniences,B2201,Electricity,18.98,Laser Energy Buying Group (Kent County Council Commercial Services),Electricity - Electricity Charges,2034477,202204
Rother District Council,08/06/2022,091HOUSING,Housing and Community Services,20128,Public Conveniences,B2201,Electricity,30.48,Laser Energy Buying Group (Kent County Council Commercial Services),Electricity - Electricity Charges,2034477,202204
Rother District Council,08/06/2022,091HOUSING,Housing and Community Services,20128,Public Conveniences,B2201,Electricity,141.34,Laser Energy Buying Group (Kent County Council Commercial Services),Electricity - Electricity Charges,2034477,202204
Rother District Council,08/06/2022,091HOUSING,Housing and Community Services,20128,Public Conveniences,B2201,Electricity,32.89,Laser Energy Buying Group (Kent County Council Commercial Services),Electricity - Electricity Charges,2034477,202204
Rother District Council,08/06/2022,091HOUSING,Housing and Community Services,20128,Public Conveniences,B2201,Electricity,91.89,Laser Energy Buying Group (Kent County Council Commercial Services),Electricity - Electricity Charges,2034477,202204
Rother District Council,08/06/2022,091HOUSING,Housing and Community Services,20128,Public Conveniences,B2201,Electricity,55.60,Laser Energy Buying Group (Kent County Council Commercial Services),Electricity - Electricity Charges,2034477,202204
Rother District Council,08/06/2022,091HOUSING,Housing and Community Services,20128,Public Conveniences,B2201,Electricity,66.70,Laser Energy Buying Group (Kent County Council Commercial Services),Electricity - Electricity Charges,2034477,202204
Rother District Council,08/06/2022,091HOUSING,Housing and Community Services,20128,Public Conveniences,B2201,Electricity,38.02,Laser Energy Buying Group (Kent County Council Commercial Services),Electricity - Electricity Charges,2034477,202204
Rother District Council,08/06/2022,091HOUSING,Housing and Community Services,20128,Public Conveniences,B2201,Electricity,29.52,Laser Energy Buying Group (Kent County Council Commercial Services),Electricity - Electricity Charges,2034477,202204
Rother District Council,08/06/2022,091HOUSING,Housing and Community Services,20128,Public Conveniences,B2201,Electricity,45.21,Laser Energy Buying Group (Kent County Council Commercial Services),Electricity - Electricity Charges,2034477,202204
Rother District Council,08/06/2022,091HOUSING,Housing and Community Services,20128,Public Conveniences,B2201,Electricity,40.48,Laser Energy Buying Group (Kent County Council Commercial Services),Electricity - Electricity Charges,2034477,202204
Rother District Council,08/06/2022,091HOUSING,Housing and Community Services,20128,Public Conveniences,B2201,Electricity,31.97,Laser Energy Buying Group (Kent County Council Commercial Services),Electricity - Electricity Charges,2034477,202204
Rother District Council,08/06/2022,091HOUSING,Housing and Community Services,20128,Public Conveniences,B2201,Electricity,36.89,Laser Energy Buying Group (Kent County Council Commercial Services),Electricity - Electricity Charges,2034477,202204
Rother District Council,08/06/2022,091HOUSING,Housing and Community Services,20128,Public Conveniences,B2201,Electricity,92.23,Laser Energy Buying Group (Kent County Council Commercial Services),Electricity - Electricity Charges,2034477,202204
Rother District Council,08/06/2022,091HOUSING,Housing and Community Services,20128,Public Conveniences,B2201,Electricity,49.93,Laser Energy Buying Group (Kent County Council Commercial Services),Electricity - Electricity Charges,2034477,202204
Rother District Council,08/06/2022,091HOUSING,Housing and Community Services,20128,Public Conveniences,B2201,Electricity,76.38,Laser Energy Buying Group (Kent County Council Commercial Services),Electricity - Electricity Charges,2034477,202204
Rother District Council,08/06/2022,091HOUSING,Housing and Community Services,20128,Public Conveniences,B2201,Electricity,42.94,Laser Energy Buying Group (Kent County Council Commercial Services),Electricity - Electricity Charges,2034477,202204
Rother District Council,08/06/2022,091HOUSING,Housing and Community Services,20128,Public Conveniences,B2201,Electricity,138.10,Laser Energy Buying Group (Kent County Council Commercial Services),Electricity - Electricity Charges,2034477,202204
Rother District Council,08/06/2022,091HOUSING,Housing and Community Services,20128,Public Conveniences,B2201,Electricity,34.81,Laser Energy Buying Group (Kent County Council Commercial Services),Electricity - Electricity Charges,2034477,202204
Rother District Council,08/06/2022,091HOUSING,Housing and Community Services,20128,Public Conveniences,B2201,Electricity,31.22,Laser Energy Buying Group (Kent County Council Commercial Services),Electricity - Electricity Charges,2034477,202204
Rother District Council,08/06/2022,091HOUSING,Housing and Community Services,20128,Public Conveniences,B2201,Electricity,61.27,Laser Energy Buying Group (Kent County Council Commercial Services),Electricity - Electricity Charges,2034477,202204
Rother District Council,08/06/2022,091HOUSING,Housing and Community Services,20128,Public Conveniences,B2201,Electricity,113.43,Laser Energy Buying Group (Kent County Council Commercial Services),Electricity - Electricity Charges,2034477,202204
Rother District Council,08/06/2022,091HOUSING,Housing and Community Services,20128,Public Conveniences,B2201,Electricity,116.11,Laser Energy Buying Group (Kent County Council Commercial Services),Electricity - Electricity Charges,2034477,202204
Rother District Council,08/06/2022,091HOUSING,Housing and Community Services,20128,Public Conveniences,B2201,Electricity,55.17,Laser Energy Buying Group (Kent County Council Commercial Services),Electricity - Electricity Charges,2034477,202204
Rother District Council,08/06/2022,091HOUSING,Housing and Community Services,20128,Public Conveniences,B2201,Electricity,54.64,Laser Energy Buying Group (Kent County Council Commercial Services),Electricity - Electricity Charges,2034477,202204
Rother District Council,08/06/2022,081ACQUISIT,"Acquisitions, Transformation and Regeneration",20267,Property Investment Strategy - 18-40 Beeching Road ( Land and Buildings),B2201,Electricity,32.92,Laser Energy Buying Group (Kent County Council Commercial Services),Electricity - Electricity Charges,2034477,202204
Rother District Council,08/06/2022,091HOUSING,Housing and Community Services,20114,Bexhill Parks & Open Spaces,B2201,Electricity,26.18,Laser Energy Buying Group (Kent County Council Commercial Services),Electricity - Electricity Charges,2034477,202204
Rother District Council,08/06/2022,091HOUSING,Housing and Community Services,20128,Public Conveniences,B2201,Electricity,6.55,Laser Energy Buying Group (Kent County Council Commercial Services),Electricity - Electricity Charges,2034477,202204
Rother District Council,08/06/2022,091HOUSING,Housing and Community Services,20114,Bexhill Parks & Open Spaces,B2201,Electricity,21.95,Laser Energy Buying Group (Kent County Council Commercial Services),Electricity - Electricity Charges,2034477,202204
Rother District Council,08/06/2022,091HOUSING,Housing and Community Services,20128,Public Conveniences,B2201,Electricity,5.49,Laser Energy Buying Group (Kent County Council Commercial Services),Electricity - Electricity Charges,2034477,202204
Rother District Council,08/06/2022,031RESOURCES,Chief Executive & Corporate Core,20176,Administrative Offices - Print Room,B2201,Electricity,184.86,Laser Energy Buying Group (Kent County Council Commercial Services),Electricity - Electricity Charges,2034477,202204
Rother District Council,08/06/2022,091HOUSING,Housing and Community Services,20107,Camber Beach & Foreshore,B2201,Electricity,29.89,Laser Energy Buying Group (Kent County Council Commercial Services),Electricity - Electricity Charges,2034477,202204
Rother District Council,08/06/2022,031RESOURCES,Chief Executive & Corporate Core,20177,Administrative Offices - Rear Depot,B2201,Electricity,72.04,Laser Energy Buying Group (Kent County Council Commercial Services),Electricity - Electricity Charges,2034477,202204
Rother District Council,08/06/2022,091HOUSING,Housing and Community Services,20115,Rye Area Parks & Gardens,B2201,Electricity,18.65,Laser Energy Buying Group (Kent County Council Commercial Services),Electricity - Electricity Charges,2034477,202204
Rother District Council,08/06/2022,081ACQUISIT,"Acquisitions, Transformation and Regeneration",20148,Misc Land & Buildings,B2201,Electricity,18.64,Laser Energy Buying Group (Kent County Council Commercial Services),Electricity - Electricity Charges,2034477,202204
Rother District Council,08/06/2022,091HOUSING,Housing and Community Services,20115,Rye Area Parks & Gardens,B2201,Electricity,29.52,Laser Energy Buying Group (Kent County Council Commercial Services),Electricity - Electricity Charges,2034477,202204
Rother District Council,08/06/2022,091HOUSING,Housing and Community Services,20114,Bexhill Parks & Open Spaces,B2201,Electricity,38.02,Laser Energy Buying Group (Kent County Council Commercial Services),Electricity - Electricity Charges,2034477,202204
Rother District Council,08/06/2022,091HOUSING,Housing and Community Services,20114,Bexhill Parks & Open Spaces,B2201,Electricity,28.19,Laser Energy Buying Group (Kent County Council Commercial Services),Electricity - Electricity Charges,2034477,202204
Rother District Council,08/06/2022,091HOUSING,Housing and Community Services,20108,Bexhill Promenade & Foreshore,B2201,Electricity,32.26,Laser Energy Buying Group (Kent County Council Commercial Services),Electricity - Electricity Charges,2034477,202204
Rother District Council,08/06/2022,091HOUSING,Housing and Community Services,20108,Bexhill Promenade & Foreshore,B2201,Electricity,28.73,Laser Energy Buying Group (Kent County Council Commercial Services),Electricity - Electricity Charges,2034477,202204
Rother District Council,08/06/2022,091HOUSING,Housing and Community Services,20108,Bexhill Promenade & Foreshore,B2201,Electricity,26.35,Laser Energy Buying Group (Kent County Council Commercial Services),Electricity - Electricity Charges,2034477,202204
Rother District Council,08/06/2022,091HOUSING,Housing and Community Services,20108,Bexhill Promenade & Foreshore,B2201,Electricity,27.25,Laser Energy Buying Group (Kent County Council Commercial Services),Electricity - Electricity Charges,2034477,202204
Rother District Council,08/06/2022,091HOUSING,Housing and Community Services,20108,Bexhill Promenade & Foreshore,B2201,Electricity,27.77,Laser Energy Buying Group (Kent County Council Commercial Services),Electricity - Electricity Charges,2034477,202204
Rother District Council,08/06/2022,091HOUSING,Housing and Community Services,20108,Bexhill Promenade & Foreshore,B2201,Electricity,29.46,Laser Energy Buying Group (Kent County Council Commercial Services),Electricity - Electricity Charges,2034477,202204
Rother District Council,08/06/2022,091HOUSING,Housing and Community Services,20108,Bexhill Promenade & Foreshore,B2201,Electricity,31.06,Laser Energy Buying Group (Kent County Council Commercial Services),Electricity - Electricity Charges,2034477,202204
Rother District Council,09/06/2022,091HOUSING,Housing and Community Services,20108,Bexhill Promenade & Foreshore,D1201,Equipment & Materials,600.00,East Sussex County Council,Equipment & Materials - Safety Boat Expenses,2034519,202204
Rother District Council,09/06/2022,081ACQUISIT,"Acquisitions, Transformation and Regeneration",20153,"Elva Business Centre, Bexhill",D1201,Equipment & Materials,198.00,I.B. Lock & Safe,Equipment & Materials - EnvH- Locksmiths,2034630,202204
Rother District Council,09/06/2022,091HOUSING,Housing and Community Services,20107,Camber Beach & Foreshore,D2513,Hired and Contracted services,"63,841.52",RNLI Royal National Lifeboat Institution,Hired and contracted services - Service fee paid,2035328,202205
Rother District Council,09/06/2022,999NOREPORT,Housing and Community Services,70762,Capital - Bexhill Promenade Shelter One,N1008,Equipment,55.85,Trade Paints Ltd,Capital - Purchase of Equipment,2034145,202204
Rother District Council,10/06/2022,999NOREPORT,Housing and Community Services,70751,Capital - Temporary Accommodation,N1005,Other fees,"2,700.00",DC Property Maintenance,Other Fees - Capital exp Std VAT,2033481,202204
Rother District Council,10/06/2022,101RESOURCES,Resources,20216,Cost Of Collection,D2513,Hired and Contracted services,"7,500.00",Inform CPI Ltd,Hired and Contracted services,2034351,202204
Rother District Council,10/06/2022,031RESOURCES,Chief Executive & Corporate Core,20181,Internal Audit,D2513,Hired and Contracted services,3.00,H M Land Registry,Hired and Contracted services,2034254,202205
Rother District Council,10/06/2022,101RESOURCES,Resources,20216,Cost Of Collection,D2513,Hired and Contracted services,12.00,H M Land Registry,Hired and contracted services - Council Tax-Land Registry Enquiries,2034254,202205
Rother District Council,10/06/2022,081ACQUISIT,"Acquisitions, Transformation and Regeneration",20153,"Elva Business Centre, Bexhill",E2302,Third party payment private contractors,139.40,J M Waste Management Limited,Third party payment private contractors - Waste Collection Contract Variable cost to RDC,2034023,202204
Rother District Council,10/06/2022,041ENVIRON,Environmental Services,20129,Community Safety - CCTV costs only,D2513,Hired and Contracted services,9.00,H M Land Registry,Hired and contracted services - Env H-Land Registry,2034254,202205
Rother District Council,10/06/2022,041ENVIRON,Environmental Services,32134,EH Pollution R + W Partnership,D2513,Hired and Contracted services,6.00,H M Land Registry,Hired and contracted services - Env H-Land Registry,2034254,202205
Rother District Council,10/06/2022,071STRAT,Strategy and Planning,20258,BC Dangerous Structures H+R Partnership,D2513,Hired and Contracted services,3.00,H M Land Registry,Hired and contracted services - Env H-Land Registry,2034254,202205
Rother District Council,10/06/2022,091HOUSING,Housing and Community Services,20200,Housing Needs - HB (Housing Benefit),D2513,Hired and Contracted services,3.00,H M Land Registry,Hired and contracted services - Housing-Land Registry,2034254,202205
Rother District Council,10/06/2022,071STRAT,Strategy and Planning,20246,Planning Applications,D2513,Hired and Contracted services,12.00,H M Land Registry,Hired and contracted services - Land Registry-Planning,2034254,202205
Rother District Council,10/06/2022,999NOREPORT,Housing and Community Services,70718,Capital - Sidley Recreation Ground,N1003,Construction/Conversion,"72,066.12",Trinity Civil Engineering Ltd,Construction/Conversion Capital-Contract Payments - General,2033907,202204
Rother District Council,11/06/2022,091HOUSING,Housing and Community Services,20200,Housing Needs - HB (Housing Benefit),D2508,Removals and Storage,136.48,Safestore,Removals and Storage,2033465,202204
Rother District Council,11/06/2022,091HOUSING,Housing and Community Services,20200,Housing Needs - HB (Housing Benefit),D2508,Removals and Storage,31.00,Safestore,Removals and Storage,2033465,202204
Rother District Council,13/06/2022,101RESOURCES,Resources,20239,Computer Services,D2633,Computer Equipment,101.94,Ricoh UK Limited,Computer Equip Maintenance - Maintenance re Colourwave Printer,2033772,202204
Rother District Council,13/06/2022,101RESOURCES,Resources,20242,Communications-Phones,D2621,Telephones,195.10,O2 (UK) Ltd,Telephones,2034983,202205
Rother District Council,13/06/2022,101RESOURCES,Resources,20242,Communications-Phones,D2621,Telephones,326.00,O2 (UK) Ltd,Telephones,2034988,202205
Rother District Council,13/06/2022,101RESOURCES,Resources,20242,Communications-Phones,D2621,Telephones,549.74,O2 (UK) Ltd,Telephones,2034986,202205
Rother District Council,13/06/2022,101RESOURCES,Resources,20242,Communications-Phones,D2621,Telephones,603.87,O2 (UK) Ltd,Telephones,2034987,202205
Rother District Council,13/06/2022,101RESOURCES,Resources,20242,Communications-Phones,D2621,Telephones,110.00,O2 (UK) Ltd,Telephones,2034984,202205
Rother District Council,13/06/2022,101RESOURCES,Resources,20242,Communications-Phones,D2621,Telephones,55.00,O2 (UK) Ltd,Telephones,2034985,202205
Rother District Council,13/06/2022,091HOUSING,Housing and Community Services,20200,Housing Needs - HB (Housing Benefit),D2514,Accommodation Costs,"3,612.47",Specialist Care UK Group Ltd,Accommodation Costs,2034373,202204
Rother District Council,13/06/2022,091HOUSING,Housing and Community Services,20137,Car Parks,D1201,Equipment & Materials,667.67,First Fence Ltd,Equipment & Materials - Purchase of Tools,2033936,202204
Rother District Council,13/06/2022,101RESOURCES,Resources,20239,Computer Services,D2633,Computer Equipment,679.19,Specialist Computer Centres PLC,Computer Equipment - Advance Pay Maint Web Cont Man Sys,2035177,202205
Rother District Council,13/06/2022,101RESOURCES,Resources,20239,Computer Services,D2633,Computer Equipment,540.71,Specialist Computer Centres PLC,Computer Equipment - Advance Pay Maint Web Cont Man Sys,2035178,202205
Rother District Council,13/06/2022,101RESOURCES,Resources,20209,Corporate management,D2513,Hired and Contracted services,306.15,Lloyds Bank,Bank Charges,2034283,202204
Rother District Council,13/06/2022,999NOREPORT,"Acquisitions, Transformation and Regeneration ",70768,Capital - Improvements to existing Bexhill leisure centre and pool,N1004,Architects & Consultant Fees,"8,602.50",Strategic Leisure Ltd,Architects & Consultant Fees Capital-Architect and Conslt Fees,2034702,202205
Rother District Council,13/06/2022,101RESOURCES,Resources,20209,Corporate management,D2513,Hired and Contracted services,"1,237.03",Lloyds Bank,Bank Charges,2034284,202204
Rother District Council,13/06/2022,101RESOURCES,Resources,20242,Communications-Phones,D2621,Telephones,549.69,BT British Telecommunications plc,Telephones - BT-Rental-General,2033617,202204
Rother District Council,13/06/2022,999NOREPORT,Housing and Community Services,70762,Capital - Bexhill Promenade Shelter One,N1008,Equipment,44.83,Trade Paints Ltd,Capital - Purchase of Equipment,2034146,202204
Rother District Council,14/06/2022,031RESOURCES,Chief Executive & Corporate Core,20171,Human Resources,D2922,Subscriptions,79.80,Agora Business Publications LLP,Subscriptions - Subscription to Organisations,2034498,202204
Rother District Council,14/06/2022,081ACQUISIT,"Acquisitions, Transformation and Regeneration",20118,Tourism,D2923,Grants made,"1,000.00",REDACTED PERSONAL DATA,Grants made - SLA Contribution,2034321,202204
Rother District Council,15/06/2022,101RESOURCES,Resources,20314,Payments to Ukrainian guests,D2513,Hired and Contracted services,1.50,Post Office Ltd,Hired and contracted services - Service fee paid,2033899,202204
Rother District Council,15/06/2022,091HOUSING,Housing and Community Services,20145,Maintenance Services,C1104,Derv,60.71,Allstar Business Solutions,Derv,2034949,202205
Rother District Council,15/06/2022,041ENVIRON,Environmental Services,32136,EH Pest Control R + W Partnership,C1104,Derv,3.80,Allstar Business Solutions,Derv - Fuel Service fee payable on fuel cards,2034949,202205
Rother District Council,15/06/2022,041ENVIRON,Environmental Services,32136,EH Pest Control R + W Partnership,C1104,Derv,60.83,Allstar Business Solutions,Derv,2034949,202205
Rother District Council,15/06/2022,041ENVIRON,Environmental Services,32136,EH Pest Control R + W Partnership,C1104,Derv,76.68,Allstar Business Solutions,Derv,2034949,202205
Rother District Council,15/06/2022,041ENVIRON,Environmental Services,32143,EH Licenses and Registration R + W Partnership,D2513,Hired and Contracted services,529.24,Fairfield House Veterinary Surgery,Hired and contracted services - EnvH-Veterinary Services for Licens,2033992,202204
Rother District Council,15/06/2022,091HOUSING,Housing and Community Services,20204,Housing Administration Account,A1110,Agency Staff,"1,173.44",Oyster Partnership,Agency Staff,2034228,202204
Rother District Council,16/06/2022,091HOUSING,Housing and Community Services,20107,Camber Beach & Foreshore,D2312,Refreshments,22.25,Colemans A B C (Wholesale) Distributors Ltd,Refreshments - Water Cooler,2034305,202204
Rother District Council,16/06/2022,101RESOURCES,Resources,20240,Printing Services,D2626,Postages,14.00,SBS Consumables,Equipment & Materials - Carriage/Handling Charge,2034312,202204
Rother District Council,16/06/2022,091HOUSING,Housing and Community Services,20108,Bexhill Promenade & Foreshore,B1100,Repairs to Premises,58.00,Saint-Gobain Building Distribution Ltd t/a Jewson,Repairs to Premises - Purchase of Materials - Build Maint,2033944,202204
Rother District Council,16/06/2022,091HOUSING,Housing and Community Services,20108,Bexhill Promenade & Foreshore,B1100,Repairs to Premises,17.28,Saint-Gobain Building Distribution Ltd t/a Jewson,Repairs to Premises - Purchase of Materials - Build Maint,2033943,202204
Rother District Council,16/06/2022,081ACQUISIT,"Acquisitions, Transformation and Regeneration",20243,Business Improvement,A2203,Training,"2,500.00",The Knowledge Academy,Training,2034350,202204
Rother District Council,17/06/2022,101RESOURCES,Resources,20239,Computer Services,D2633,Computer Equipment,"1,924.08",Konica Minolta Business Solutions (UK) Ltd,Computer Equip Maintenance - Maintenance re Colourwave Printer,2033643,202204
Rother District Council,17/06/2022,999NOREPORT,Housing and Community Services,70751,Capital - Temporary Accommodation,N1003,Construction/Conversion,"5,981.25",J & DJ Hook t/a Esii,Construction/Conversion Capital-Contract Payments - General,2034105,202204
Rother District Council,17/06/2022,101RESOURCES,Resources,20216,Cost Of Collection,D2513,Hired and Contracted services,3.00,H M Land Registry,Hired and contracted services - Council Tax-Land Registry Enquiries,2034252,202205
Rother District Council,17/06/2022,041ENVIRON,Environmental Services,32134,EH Pollution R + W Partnership,D2513,Hired and Contracted services,3.00,H M Land Registry,Hired and contracted services - Env H-Land Registry,2034252,202205
Rother District Council,17/06/2022,071STRAT,Strategy and Planning,20258,BC Dangerous Structures H+R Partnership,D2513,Hired and Contracted services,12.00,H M Land Registry,Hired and contracted services - Env H-Land Registry,2034252,202205
Rother District Council,17/06/2022,091HOUSING,Housing and Community Services,20200,Housing Needs - HB (Housing Benefit),D2513,Hired and Contracted services,3.00,H M Land Registry,Hired and contracted services - Housing-Land Registry,2034252,202205
Rother District Council,17/06/2022,091HOUSING,Housing and Community Services,20128,Public Conveniences,B1100,Repairs to Premises,110.00,B and G Environmental Services Limited,Repairs to Premises - Drainage Clearance,2033909,202204
Rother District Council,17/06/2022,091HOUSING,Housing and Community Services,20128,Public Conveniences,B1100,Repairs to Premises,95.00,B and G Environmental Services Limited,Repairs to Premises - Drainage Clearance,2033910,202204
Rother District Council,17/06/2022,071STRAT,Strategy and Planning,20246,Planning Applications,D2513,Hired and Contracted services,6.00,H M Land Registry,Hired and contracted services - Council Tax-Land Registry Enquiries,2034252,202205
Rother District Council,20/06/2022,091HOUSING,Housing and Community Services,20200,Housing Needs - HB (Housing Benefit),D2514,Accommodation Costs,390.00,Roost People Ltd,Accommodation Costs,2033843,202204
Rother District Council,20/06/2022,091HOUSING,Housing and Community Services,20329,Rough Sleeping Initiative,D2514,Accommodation Costs,350.00,Roost People Ltd,Accommodation Costs,2033843,202204
Rother District Council,20/06/2022,091HOUSING,Housing and Community Services,20200,Housing Needs - HB (Housing Benefit),D2514,Accommodation Costs,420.00,Savoy Court Hotel Ltd,Accommodation Costs,2033812,202204
Rother District Council,20/06/2022,091HOUSING,Housing and Community Services,20200,Housing Needs - HB (Housing Benefit),D2514,Accommodation Costs,105.00,Savoy Court Hotel Ltd,Accommodation Costs,2033812,202204
Rother District Council,20/06/2022,091HOUSING,Housing and Community Services,20329,Rough Sleeping Initiative,D2514,Accommodation Costs,90.00,Savoy Court Hotel Ltd,Accommodation Costs,2033812,202204
Rother District Council,20/06/2022,091HOUSING,Housing and Community Services,20200,Housing Needs - HB (Housing Benefit),D2514,Accommodation Costs,430.00,Roost People Ltd,Accommodation Costs,2033843,202204
Rother District Council,20/06/2022,091HOUSING,Housing and Community Services,20329,Rough Sleeping Initiative,D2514,Accommodation Costs,"1,750.00",Specialist Care UK Group Ltd,Accommodation Costs,2034009,202204
Rother District Council,20/06/2022,091HOUSING,Housing and Community Services,20200,Housing Needs - HB (Housing Benefit),D2514,Accommodation Costs,390.00,Roost People Ltd,Accommodation Costs,2033843,202204
Rother District Council,20/06/2022,091HOUSING,Housing and Community Services,20200,Housing Needs - HB (Housing Benefit),D2514,Accommodation Costs,364.00,Savoy Court Hotel Ltd,Accommodation Costs,2033812,202204
Rother District Council,20/06/2022,091HOUSING,Housing and Community Services,20200,Housing Needs - HB (Housing Benefit),D2514,Accommodation Costs,91.00,Savoy Court Hotel Ltd,Accommodation Costs,2033812,202204
Rother District Council,20/06/2022,091HOUSING,Housing and Community Services,20200,Housing Needs - HB (Housing Benefit),D2514,Accommodation Costs,"4,637.45",Specialist Care UK Group Ltd,Accommodation Costs,2034011,202204
Rother District Council,20/06/2022,091HOUSING,Housing and Community Services,20200,Housing Needs - HB (Housing Benefit),D2514,Accommodation Costs,420.00,Savoy Court Hotel Ltd,Accommodation Costs,2033812,202204
Rother District Council,20/06/2022,091HOUSING,Housing and Community Services,20200,Housing Needs - HB (Housing Benefit),D2514,Accommodation Costs,105.00,Savoy Court Hotel Ltd,Accommodation Costs,2033812,202204
Rother District Council,20/06/2022,091HOUSING,Housing and Community Services,20200,Housing Needs - HB (Housing Benefit),D2514,Accommodation Costs,252.00,Savoy Court Hotel Ltd,Accommodation Costs,2033812,202204
Rother District Council,20/06/2022,091HOUSING,Housing and Community Services,20200,Housing Needs - HB (Housing Benefit),D2514,Accommodation Costs,63.00,Savoy Court Hotel Ltd,Accommodation Costs,2033812,202204
Rother District Council,20/06/2022,091HOUSING,Housing and Community Services,20200,Housing Needs - HB (Housing Benefit),D2514,Accommodation Costs,315.00,Savoy Court Hotel Ltd,Accommodation Costs,2033812,202204
Rother District Council,20/06/2022,091HOUSING,Housing and Community Services,20200,Housing Needs - HB (Housing Benefit),D2514,Accommodation Costs,665.00,Savoy Court Hotel Ltd,Accommodation Costs,2033812,202204
Rother District Council,20/06/2022,091HOUSING,Housing and Community Services,20200,Housing Needs - HB (Housing Benefit),D2514,Accommodation Costs,435.00,Roost People Ltd,Accommodation Costs,2033843,202204
Rother District Council,20/06/2022,091HOUSING,Housing and Community Services,20200,Housing Needs - HB (Housing Benefit),D2514,Accommodation Costs,455.00,Savoy Court Hotel Ltd,Accommodation Costs,2033812,202204
Rother District Council,20/06/2022,091HOUSING,Housing and Community Services,20200,Housing Needs - HB (Housing Benefit),D2514,Accommodation Costs,315.00,Roost People Ltd,Accommodation Costs,2033843,202204
Rother District Council,20/06/2022,091HOUSING,Housing and Community Services,20200,Housing Needs - HB (Housing Benefit),D2514,Accommodation Costs,"1,312.50",Specialist Care UK Group Ltd,Accommodation Costs,2034006,202204
Rother District Council,20/06/2022,091HOUSING,Housing and Community Services,20200,Housing Needs - HB (Housing Benefit),D2514,Accommodation Costs,390.00,Roost People Ltd,Accommodation Costs,2033843,202204
Rother District Council,20/06/2022,091HOUSING,Housing and Community Services,20200,Housing Needs - HB (Housing Benefit),D2514,Accommodation Costs,390.00,Roost People Ltd,Accommodation Costs,2033843,202204
Rother District Council,20/06/2022,091HOUSING,Housing and Community Services,20200,Housing Needs - HB (Housing Benefit),D2514,Accommodation Costs,252.00,Savoy Court Hotel Ltd,Accommodation Costs,2033812,202204
Rother District Council,20/06/2022,091HOUSING,Housing and Community Services,20329,Rough Sleeping Initiative,D2514,Accommodation Costs,63.00,Savoy Court Hotel Ltd,Accommodation Costs,2033812,202204
Rother District Council,20/06/2022,091HOUSING,Housing and Community Services,20200,Housing Needs - HB (Housing Benefit),D2514,Accommodation Costs,"1,312.50",Specialist Care UK Group Ltd,Accommodation Costs,2033999,202204
Rother District Council,20/06/2022,091HOUSING,Housing and Community Services,20200,Housing Needs - HB (Housing Benefit),D2514,Accommodation Costs,700.00,Specialist Care UK Group Ltd,Accommodation Costs,2034000,202204
Rother District Council,20/06/2022,091HOUSING,Housing and Community Services,20200,Housing Needs - HB (Housing Benefit),D2514,Accommodation Costs,420.00,Savoy Court Hotel Ltd,Accommodation Costs,2033812,202204
Rother District Council,20/06/2022,091HOUSING,Housing and Community Services,20200,Housing Needs - HB (Housing Benefit),D2514,Accommodation Costs,105.00,Savoy Court Hotel Ltd,Accommodation Costs,2033812,202204
Rother District Council,20/06/2022,091HOUSING,Housing and Community Services,20200,Housing Needs - HB (Housing Benefit),D2514,Accommodation Costs,875.00,Specialist Care UK Group Ltd,Accommodation Costs,2034004,202204
Rother District Council,20/06/2022,091HOUSING,Housing and Community Services,20200,Housing Needs - HB (Housing Benefit),D2514,Accommodation Costs,252.00,Savoy Court Hotel Ltd,Accommodation Costs,2033812,202204
Rother District Council,20/06/2022,091HOUSING,Housing and Community Services,20200,Housing Needs - HB (Housing Benefit),D2514,Accommodation Costs,63.00,Savoy Court Hotel Ltd,Accommodation Costs,2033812,202204
Rother District Council,20/06/2022,091HOUSING,Housing and Community Services,20200,Housing Needs - HB (Housing Benefit),D2514,Accommodation Costs,420.00,Savoy Court Hotel Ltd,Accommodation Costs,2033812,202204
Rother District Council,20/06/2022,091HOUSING,Housing and Community Services,20200,Housing Needs - HB (Housing Benefit),D2514,Accommodation Costs,105.00,Savoy Court Hotel Ltd,Accommodation Costs,2033812,202204
Rother District Council,20/06/2022,091HOUSING,Housing and Community Services,20200,Housing Needs - HB (Housing Benefit),D2514,Accommodation Costs,"1,050.00",Specialist Care UK Group Ltd,Accommodation Costs,2034008,202204
Rother District Council,20/06/2022,091HOUSING,Housing and Community Services,20200,Housing Needs - HB (Housing Benefit),D2514,Accommodation Costs,390.00,Roost People Ltd,Accommodation Costs,2033843,202204
Rother District Council,20/06/2022,091HOUSING,Housing and Community Services,20200,Housing Needs - HB (Housing Benefit),D2514,Accommodation Costs,337.50,Specialist Care UK Group Ltd,Accommodation Costs,2034005,202204
Rother District Council,20/06/2022,091HOUSING,Housing and Community Services,20329,Rough Sleeping Initiative,D2514,Accommodation Costs,252.00,Savoy Court Hotel Ltd,Accommodation Costs,2033812,202204
Rother District Council,20/06/2022,091HOUSING,Housing and Community Services,20329,Rough Sleeping Initiative,D2514,Accommodation Costs,63.00,Savoy Court Hotel Ltd,Accommodation Costs,2033812,202204
Rother District Council,20/06/2022,091HOUSING,Housing and Community Services,20329,Rough Sleeping Initiative,D2514,Accommodation Costs,"1,500.00",Specialist Care UK Group Ltd,Accommodation Costs,2033998,202204
Rother District Council,20/06/2022,091HOUSING,Housing and Community Services,20329,Rough Sleeping Initiative,D2514,Accommodation Costs,252.00,Savoy Court Hotel Ltd,Accommodation Costs,2033812,202204
Rother District Council,20/06/2022,091HOUSING,Housing and Community Services,20329,Rough Sleeping Initiative,D2514,Accommodation Costs,63.00,Savoy Court Hotel Ltd,Accommodation Costs,2033812,202204
Rother District Council,20/06/2022,091HOUSING,Housing and Community Services,20329,Rough Sleeping Initiative,D2514,Accommodation Costs,315.00,Roost People Ltd,Accommodation Costs,2033843,202204
Rother District Council,20/06/2022,091HOUSING,Housing and Community Services,20200,Housing Needs - HB (Housing Benefit),D2514,Accommodation Costs,390.00,Roost People Ltd,Accommodation Costs,2033843,202204
Rother District Council,20/06/2022,091HOUSING,Housing and Community Services,20200,Housing Needs - HB (Housing Benefit),D2514,Accommodation Costs,"1,200.00",Specialist Care UK Group Ltd,Accommodation Costs,2034002,202204
Rother District Council,20/06/2022,091HOUSING,Housing and Community Services,20200,Housing Needs - HB (Housing Benefit),D2514,Accommodation Costs,350.00,Roost People Ltd,Accommodation Costs,2033843,202204
Rother District Council,20/06/2022,091HOUSING,Housing and Community Services,20329,Rough Sleeping Initiative,D2514,Accommodation Costs,315.00,Roost People Ltd,Accommodation Costs,2033843,202204
Rother District Council,20/06/2022,091HOUSING,Housing and Community Services,20200,Housing Needs - HB (Housing Benefit),D2514,Accommodation Costs,252.00,Savoy Court Hotel Ltd,Accommodation Costs,2033812,202204
Rother District Council,20/06/2022,091HOUSING,Housing and Community Services,20200,Housing Needs - HB (Housing Benefit),D2514,Accommodation Costs,63.00,Savoy Court Hotel Ltd,Accommodation Costs,2033812,202204
Rother District Council,20/06/2022,091HOUSING,Housing and Community Services,20329,Rough Sleeping Initiative,D2514,Accommodation Costs,140.00,Savoy Court Hotel Ltd,Accommodation Costs,2033812,202204
Rother District Council,20/06/2022,091HOUSING,Housing and Community Services,20329,Rough Sleeping Initiative,D2514,Accommodation Costs,35.00,Savoy Court Hotel Ltd,Accommodation Costs,2033812,202204
Rother District Council,20/06/2022,091HOUSING,Housing and Community Services,20200,Housing Needs - HB (Housing Benefit),D2514,Accommodation Costs,390.00,Roost People Ltd,Accommodation Costs,2033843,202204
Rother District Council,20/06/2022,091HOUSING,Housing and Community Services,20200,Housing Needs - HB (Housing Benefit),D2514,Accommodation Costs,252.00,Savoy Court Hotel Ltd,Accommodation Costs,2033812,202204
Rother District Council,20/06/2022,091HOUSING,Housing and Community Services,20200,Housing Needs - HB (Housing Benefit),D2514,Accommodation Costs,63.00,Savoy Court Hotel Ltd,Accommodation Costs,2033812,202204
Rother District Council,20/06/2022,091HOUSING,Housing and Community Services,20200,Housing Needs - HB (Housing Benefit),D2514,Accommodation Costs,"1,750.00",Specialist Care UK Group Ltd,Accommodation Costs,2034001,202204
Rother District Council,20/06/2022,091HOUSING,Housing and Community Services,20200,Housing Needs - HB (Housing Benefit),D2514,Accommodation Costs,150.00,Roost People Ltd,Accommodation Costs,2033843,202204
Rother District Council,20/06/2022,091HOUSING,Housing and Community Services,20114,Bexhill Parks & Open Spaces,B1100,Repairs to Premises,300.00,Bexhill Burners BMX Club,Repairs to Premises - Parks - Paths/Surface Repairs,2034834,202205
Rother District Council,20/06/2022,091HOUSING,Housing and Community Services,20200,Housing Needs - HB (Housing Benefit),D2514,Accommodation Costs,225.00,Savoy Court Hotel Ltd,Accommodation Costs,2033812,202204
Rother District Council,20/06/2022,081ACQUISIT,"Acquisitions, Transformation and Regeneration",20144,Property Management,D1201,Equipment & Materials,414.69,Alfa Electric Ltd,Equipment & Materials - Purchase of Tools,2035269,202205
Rother District Council,20/06/2022,091HOUSING,Housing and Community Services,20329,Rough Sleeping Initiative,D2514,Accommodation Costs,350.00,Savoy Court Hotel Ltd,Accommodation Costs,2033812,202204
Rother District Council,20/06/2022,091HOUSING,Housing and Community Services,20200,Housing Needs - HB (Housing Benefit),D2514,Accommodation Costs,630.00,Savoy Court Hotel Ltd,Accommodation Costs,2033812,202204
Rother District Council,20/06/2022,091HOUSING,Housing and Community Services,20200,Housing Needs - HB (Housing Benefit),D2514,Accommodation Costs,390.00,Roost People Ltd,Accommodation Costs,2033843,202204
Rother District Council,20/06/2022,091HOUSING,Housing and Community Services,20200,Housing Needs - HB (Housing Benefit),D2514,Accommodation Costs,"1,750.00",Specialist Care UK Group Ltd,Accommodation Costs,2034003,202204
Rother District Council,20/06/2022,091HOUSING,Housing and Community Services,20200,Housing Needs - HB (Housing Benefit),D2514,Accommodation Costs,390.00,Roost People Ltd,Accommodation Costs,2033843,202204
Rother District Council,20/06/2022,091HOUSING,Housing and Community Services,20329,Rough Sleeping Initiative,D2514,Accommodation Costs,252.00,Savoy Court Hotel Ltd,Accommodation Costs,2033812,202204
Rother District Council,20/06/2022,091HOUSING,Housing and Community Services,20329,Rough Sleeping Initiative,D2514,Accommodation Costs,63.00,Savoy Court Hotel Ltd,Accommodation Costs,2033812,202204
Rother District Council,20/06/2022,091HOUSING,Housing and Community Services,20200,Housing Needs - HB (Housing Benefit),D2514,Accommodation Costs,390.00,Roost People Ltd,Accommodation Costs,2033843,202204
Rother District Council,20/06/2022,091HOUSING,Housing and Community Services,20200,Housing Needs - HB (Housing Benefit),D2514,Accommodation Costs,315.00,Roost People Ltd,Accommodation Costs,2033843,202204
Rother District Council,20/06/2022,999NOREPORT,Housing and Community Services,70762,Capital - Bexhill Promenade Shelter One,N1008,Equipment,10.53,Trade Paints Ltd,Capital - Purchase of Equipment,2034147,202204
Rother District Council,21/06/2022,101RESOURCES,Resources,20239,Computer Services,D2621,Telephones,622.00,TalkTalk Communications Ltd T/A TalkTalk Business,Telephones - Leased Line Rental,2034189,202205
Rother District Council,21/06/2022,091HOUSING,Housing and Community Services,20304,Housing First,B2201,Electricity,122.06,EON Next,Electricity - Electricity Charges,2033994,202204
Rother District Council,21/06/2022,101RESOURCES,Resources,20239,Computer Services,D2631,Computer Equip Maintenance,550.00,I.B. Lock & Safe,Computer Equip Maintenance - Maintenance-File Servers,2034152,202204
Rother District Council,21/06/2022,999NOREPORT,Housing and Community Services,70714,Capital - Community Grants,N1011,Capital Grants,500.00,Burwash Parish Council,Capital Grants - Community Grants Scheme,2034058,202204
Rother District Council,21/06/2022,081ACQUISIT,"Acquisitions, Transformation and Regeneration",20144,Property Management,D1201,Equipment & Materials,370.29,Alfa Electric Ltd,Equipment & Materials - Purchase of Tools,2035270,202205
Rother District Council,22/06/2022,091HOUSING,Housing and Community Services,20304,Housing First,B2202,Gas,42.55,EON Next,Gas - Gas Charges,2033995,202204
Rother District Council,22/06/2022,091HOUSING,Housing and Community Services,20128,Public Conveniences,D2513,Hired and Contracted services,116.00,Fuzion 4 Limited,Hired and contracted services - CCTV System Maintenance,2033723,202204
Rother District Council,22/06/2022,091HOUSING,Housing and Community Services,20138,Residual Highway Services,B1100,Repairs to Premises,12.18,Saint-Gobain Building Distribution Ltd t/a Jewson,Repairs to Premises - Purchase of Materials - Build Maint,2034310,202204
Rother District Council,22/06/2022,091HOUSING,Housing and Community Services,20204,Housing Administration Account,A1110,Agency Staff,"1,141.44",Oyster Partnership,Agency Staff,2034229,202204
Rother District Council,23/06/2022,091HOUSING,Housing and Community Services,20261,"TA Purchases (prev - 41 Jameson Mews, Bexhill on Sea)",B2201,Electricity,94.91,Laser Energy Buying Group (Kent County Council Commercial Services),Electricity - Electricity Charges,2034589,202204
Rother District Council,23/06/2022,091HOUSING,Housing and Community Services,20261,"TA Purchases (prev - 41 Jameson Mews, Bexhill on Sea)",B2201,Electricity,58.75,Laser Energy Buying Group (Kent County Council Commercial Services),Electricity - Electricity Charges,2034589,202204
Rother District Council,23/06/2022,999NOREPORT,Housing and Community Services,70751,Capital - Temporary Accommodation,N1003,Construction/Conversion,95.00,Erica Slotnick t/a Blusher Brush,Construction/Conversion Capital-Contract Payments - General,2034461,202204
Rother District Council,23/06/2022,999NOREPORT,Housing and Community Services,70751,Capital - Temporary Accommodation,N1003,Construction/Conversion,"4,801.40",A&A Cleaning & Property Services Ltd,Construction/Conversion Capital-Contract Payments - General,2034609,202204
Rother District Council,23/06/2022,031RESOURCES,Chief Executive & Corporate Core,20176,Administrative Offices - Print Room,B2201,Electricity,228.87,Laser Energy Buying Group (Kent County Council Commercial Services),Electricity - Electricity Charges,2034589,202204
Rother District Council,23/06/2022,091HOUSING,Housing and Community Services,20261,"TA Purchases (prev - 41 Jameson Mews, Bexhill on Sea)",B2201,Electricity,38.63,Laser Energy Buying Group (Kent County Council Commercial Services),Electricity - Electricity Charges,2034589,202204
Rother District Council,23/06/2022,081ACQUISIT,"Acquisitions, Transformation and Regeneration",20154,Committee Property Account,B2202,Gas,12.30,Laser Energy Buying Group (Kent County Council Commercial Services),Gas - Gas Charges,2034554,202204
Rother District Council,23/06/2022,031RESOURCES,Chief Executive & Corporate Core,20179,Communications,E1101,Third party payment other LAs,"3,600.00",East Sussex County Council,Third party payment other LAs - Communications-Officer costs,2033946,202204
Rother District Council,23/06/2022,101RESOURCES,Resources,20314,Payments to Ukrainian guests,D2513,Hired and Contracted services,20.20,Post Office Ltd,Hired and contracted services - Service fee paid,2033900,202204
Rother District Council,23/06/2022,091HOUSING,Housing and Community Services,20261,"TA Purchases (prev - 41 Jameson Mews, Bexhill on Sea)",B2201,Electricity,111.69,Laser Energy Buying Group (Kent County Council Commercial Services),Electricity - Electricity Charges,2034589,202204
Rother District Council,23/06/2022,091HOUSING,Housing and Community Services,20261,"TA Purchases (prev - 41 Jameson Mews, Bexhill on Sea)",B2201,Electricity,58.20,Laser Energy Buying Group (Kent County Council Commercial Services),Electricity - Electricity Charges,2034589,202204
Rother District Council,23/06/2022,101RESOURCES,Resources,20239,Computer Services,D2632,Additional Computer Equipment,673.29,Computacenter (UK) Ltd,Additional Computer Equipment - New PC/Computer,2033776,202204
Rother District Council,23/06/2022,091HOUSING,Housing and Community Services,20200,Housing Needs - HB (Housing Benefit),D2514,Accommodation Costs,312.50,Union Property MGMT Ltd,Accommodation Costs,2033778,202204
Rother District Council,23/06/2022,091HOUSING,Housing and Community Services,20261,"TA Purchases (prev - 41 Jameson Mews, Bexhill on Sea)",B2202,Gas,56.69,EON Next,Gas - Gas Charges,2034126,202204
Rother District Council,23/06/2022,091HOUSING,Housing and Community Services,20114,Bexhill Parks & Open Spaces,B2201,Electricity,49.36,Laser Energy Buying Group (Kent County Council Commercial Services),Electricity - Electricity Charges,2034589,202204
Rother District Council,23/06/2022,091HOUSING,Housing and Community Services,20107,Camber Beach & Foreshore,B2201,Electricity,126.50,Laser Energy Buying Group (Kent County Council Commercial Services),Electricity - Electricity Charges,2034589,202204
Rother District Council,23/06/2022,091HOUSING,Housing and Community Services,20137,Car Parks,B2201,Electricity,34.81,Laser Energy Buying Group (Kent County Council Commercial Services),Electricity - Electricity Charges,2034589,202204
Rother District Council,23/06/2022,091HOUSING,Housing and Community Services,20123,Cemeteries,B2201,Electricity,57.68,Laser Energy Buying Group (Kent County Council Commercial Services),Electricity - Electricity Charges,2034589,202204
Rother District Council,23/06/2022,081ACQUISIT,"Acquisitions, Transformation and Regeneration",20104,Ancient Monuments & Gazebo,B2201,Electricity,26.87,Laser Energy Buying Group (Kent County Council Commercial Services),Electricity - Electricity Charges,2034589,202204
Rother District Council,23/06/2022,091HOUSING,Housing and Community Services,20108,Bexhill Promenade & Foreshore,B2201,Electricity,38.56,Laser Energy Buying Group (Kent County Council Commercial Services),Electricity - Electricity Charges,2034589,202204
Rother District Council,23/06/2022,081ACQUISIT,"Acquisitions, Transformation and Regeneration",20154,Committee Property Account,B2201,Electricity,10.69,Laser Energy Buying Group (Kent County Council Commercial Services),Electricity - Electricity Charges,2034589,202204
Rother District Council,23/06/2022,081ACQUISIT,"Acquisitions, Transformation and Regeneration",20154,Committee Property Account,B2201,Electricity,10.69,Laser Energy Buying Group (Kent County Council Commercial Services),Electricity - Electricity Charges,2034589,202204
Rother District Council,23/06/2022,081ACQUISIT,"Acquisitions, Transformation and Regeneration",20154,Committee Property Account,B2201,Electricity,10.70,Laser Energy Buying Group (Kent County Council Commercial Services),Electricity - Electricity Charges,2034589,202204
Rother District Council,23/06/2022,081ACQUISIT,"Acquisitions, Transformation and Regeneration",20154,Committee Property Account,B2201,Electricity,10.70,Laser Energy Buying Group (Kent County Council Commercial Services),Electricity - Electricity Charges,2034589,202204
Rother District Council,23/06/2022,091HOUSING,Housing and Community Services,20114,Bexhill Parks & Open Spaces,B2201,Electricity,-66.54,Laser Energy Buying Group (Kent County Council Commercial Services),Electricity - Electricity Charges,2034589,202204
Rother District Council,23/06/2022,091HOUSING,Housing and Community Services,20128,Public Conveniences,B2201,Electricity,-16.64,Laser Energy Buying Group (Kent County Council Commercial Services),Electricity - Electricity Charges,2034589,202204
Rother District Council,23/06/2022,091HOUSING,Housing and Community Services,20108,Bexhill Promenade & Foreshore,B2201,Electricity,-28.10,Laser Energy Buying Group (Kent County Council Commercial Services),Electricity - Electricity Charges,2034589,202204
Rother District Council,23/06/2022,091HOUSING,Housing and Community Services,20108,Bexhill Promenade & Foreshore,B2201,Electricity,-27.28,Laser Energy Buying Group (Kent County Council Commercial Services),Electricity - Electricity Charges,2034589,202204
Rother District Council,23/06/2022,091HOUSING,Housing and Community Services,20108,Bexhill Promenade & Foreshore,B2201,Electricity,-29.77,Laser Energy Buying Group (Kent County Council Commercial Services),Electricity - Electricity Charges,2034589,202204
Rother District Council,23/06/2022,091HOUSING,Housing and Community Services,20108,Bexhill Promenade & Foreshore,B2201,Electricity,-33.02,Laser Energy Buying Group (Kent County Council Commercial Services),Electricity - Electricity Charges,2034589,202204
Rother District Council,23/06/2022,031RESOURCES,Chief Executive & Corporate Core,20177,Administrative Offices - Rear Depot,B2201,Electricity,46.34,Laser Energy Buying Group (Kent County Council Commercial Services),Electricity - Electricity Charges,2034589,202204
Rother District Council,23/06/2022,091HOUSING,Housing and Community Services,20114,Bexhill Parks & Open Spaces,B2201,Electricity,241.44,Laser Energy Buying Group (Kent County Council Commercial Services),Electricity - Electricity Charges,2034589,202204
Rother District Council,23/06/2022,091HOUSING,Housing and Community Services,20114,Bexhill Parks & Open Spaces,B2201,Electricity,31.41,Laser Energy Buying Group (Kent County Council Commercial Services),Electricity - Electricity Charges,2034589,202204
Rother District Council,23/06/2022,091HOUSING,Housing and Community Services,20137,Car Parks,B2201,Electricity,55.98,Laser Energy Buying Group (Kent County Council Commercial Services),Electricity - Electricity Charges,2034589,202204
Rother District Council,23/06/2022,091HOUSING,Housing and Community Services,20145,Maintenance Services,B2201,Electricity,57.31,Laser Energy Buying Group (Kent County Council Commercial Services),Electricity - Electricity Charges,2034589,202204
Rother District Council,23/06/2022,091HOUSING,Housing and Community Services,20329,Rough Sleeping Initiative,D2514,Accommodation Costs,212.50,Union Property MGMT Ltd,Accommodation Costs,2033778,202204
Rother District Council,23/06/2022,091HOUSING,Housing and Community Services,20200,Housing Needs - HB (Housing Benefit),D2514,Accommodation Costs,262.50,Union Property MGMT Ltd,Accommodation Costs,2033778,202204
Rother District Council,23/06/2022,091HOUSING,Housing and Community Services,20200,Housing Needs - HB (Housing Benefit),D2514,Accommodation Costs,89.28,Union Property MGMT Ltd,Accommodation Costs,2033778,202204
Rother District Council,23/06/2022,091HOUSING,Housing and Community Services,20108,Bexhill Promenade & Foreshore,B2201,Electricity,51.13,Laser Energy Buying Group (Kent County Council Commercial Services),Electricity - Electricity Charges,2034589,202204
Rother District Council,23/06/2022,091HOUSING,Housing and Community Services,20108,Bexhill Promenade & Foreshore,B2201,Electricity,22.88,Laser Energy Buying Group (Kent County Council Commercial Services),Electricity - Electricity Charges,2034589,202204
Rother District Council,23/06/2022,081ACQUISIT,"Acquisitions, Transformation and Regeneration",20154,Committee Property Account,B2201,Electricity,22.88,Laser Energy Buying Group (Kent County Council Commercial Services),Electricity - Electricity Charges,2034589,202204
Rother District Council,23/06/2022,081ACQUISIT,"Acquisitions, Transformation and Regeneration",20154,Committee Property Account,B2201,Electricity,22.88,Laser Energy Buying Group (Kent County Council Commercial Services),Electricity - Electricity Charges,2034589,202204
Rother District Council,23/06/2022,081ACQUISIT,"Acquisitions, Transformation and Regeneration",20154,Committee Property Account,B2201,Electricity,22.88,Laser Energy Buying Group (Kent County Council Commercial Services),Electricity - Electricity Charges,2034589,202204
Rother District Council,23/06/2022,081ACQUISIT,"Acquisitions, Transformation and Regeneration",20150,Peasmarsh Workshops,B2201,Electricity,28.86,Laser Energy Buying Group (Kent County Council Commercial Services),Electricity - Electricity Charges,2034589,202204
Rother District Council,23/06/2022,081ACQUISIT,"Acquisitions, Transformation and Regeneration",20153,"Elva Business Centre, Bexhill",B2201,Electricity,"1,002.51",Laser Energy Buying Group (Kent County Council Commercial Services),Electricity - Electricity Charges,2034589,202204
Rother District Council,23/06/2022,081ACQUISIT,"Acquisitions, Transformation and Regeneration",20153,"Elva Business Centre, Bexhill",B2201,Electricity,"1,029.38",Laser Energy Buying Group (Kent County Council Commercial Services),Electricity - Electricity Charges,2034589,202204
Rother District Council,23/06/2022,091HOUSING,Housing and Community Services,20128,Public Conveniences,B2201,Electricity,34.79,Laser Energy Buying Group (Kent County Council Commercial Services),Electricity - Electricity Charges,2034589,202204
Rother District Council,23/06/2022,081ACQUISIT,"Acquisitions, Transformation and Regeneration",20155,Investment properties,B2201,Electricity,34.79,Laser Energy Buying Group (Kent County Council Commercial Services),Electricity - Electricity Charges,2034589,202204
Rother District Council,23/06/2022,091HOUSING,Housing and Community Services,20128,Public Conveniences,B2201,Electricity,19.61,Laser Energy Buying Group (Kent County Council Commercial Services),Electricity - Electricity Charges,2034589,202204
Rother District Council,23/06/2022,091HOUSING,Housing and Community Services,20128,Public Conveniences,B2201,Electricity,31.68,Laser Energy Buying Group (Kent County Council Commercial Services),Electricity - Electricity Charges,2034589,202204
Rother District Council,23/06/2022,091HOUSING,Housing and Community Services,20128,Public Conveniences,B2201,Electricity,32.89,Laser Energy Buying Group (Kent County Council Commercial Services),Electricity - Electricity Charges,2034589,202204
Rother District Council,23/06/2022,091HOUSING,Housing and Community Services,20128,Public Conveniences,B2201,Electricity,168.83,Laser Energy Buying Group (Kent County Council Commercial Services),Electricity - Electricity Charges,2034589,202204
Rother District Council,23/06/2022,091HOUSING,Housing and Community Services,20128,Public Conveniences,B2201,Electricity,81.87,Laser Energy Buying Group (Kent County Council Commercial Services),Electricity - Electricity Charges,2034589,202204
Rother District Council,23/06/2022,091HOUSING,Housing and Community Services,20128,Public Conveniences,B2201,Electricity,57.87,Laser Energy Buying Group (Kent County Council Commercial Services),Electricity - Electricity Charges,2034589,202204
Rother District Council,23/06/2022,091HOUSING,Housing and Community Services,20128,Public Conveniences,B2201,Electricity,37.45,Laser Energy Buying Group (Kent County Council Commercial Services),Electricity - Electricity Charges,2034589,202204
Rother District Council,23/06/2022,091HOUSING,Housing and Community Services,20128,Public Conveniences,B2201,Electricity,29.33,Laser Energy Buying Group (Kent County Council Commercial Services),Electricity - Electricity Charges,2034589,202204
Rother District Council,23/06/2022,091HOUSING,Housing and Community Services,20128,Public Conveniences,B2201,Electricity,44.62,Laser Energy Buying Group (Kent County Council Commercial Services),Electricity - Electricity Charges,2034589,202204
Rother District Council,23/06/2022,091HOUSING,Housing and Community Services,20128,Public Conveniences,B2201,Electricity,40.29,Laser Energy Buying Group (Kent County Council Commercial Services),Electricity - Electricity Charges,2034589,202204
Rother District Council,23/06/2022,091HOUSING,Housing and Community Services,20128,Public Conveniences,B2201,Electricity,37.08,Laser Energy Buying Group (Kent County Council Commercial Services),Electricity - Electricity Charges,2034589,202204
Rother District Council,23/06/2022,091HOUSING,Housing and Community Services,20128,Public Conveniences,B2201,Electricity,28.57,Laser Energy Buying Group (Kent County Council Commercial Services),Electricity - Electricity Charges,2034589,202204
Rother District Council,23/06/2022,091HOUSING,Housing and Community Services,20128,Public Conveniences,B2201,Electricity,219.63,Laser Energy Buying Group (Kent County Council Commercial Services),Electricity - Electricity Charges,2034589,202204
Rother District Council,23/06/2022,091HOUSING,Housing and Community Services,20128,Public Conveniences,B2201,Electricity,50.68,Laser Energy Buying Group (Kent County Council Commercial Services),Electricity - Electricity Charges,2034589,202204
Rother District Council,23/06/2022,091HOUSING,Housing and Community Services,20128,Public Conveniences,B2201,Electricity,78.94,Laser Energy Buying Group (Kent County Council Commercial Services),Electricity - Electricity Charges,2034589,202204
Rother District Council,23/06/2022,091HOUSING,Housing and Community Services,20128,Public Conveniences,B2201,Electricity,156.74,Laser Energy Buying Group (Kent County Council Commercial Services),Electricity - Electricity Charges,2034589,202204
Rother District Council,23/06/2022,091HOUSING,Housing and Community Services,20128,Public Conveniences,B2201,Electricity,42.94,Laser Energy Buying Group (Kent County Council Commercial Services),Electricity - Electricity Charges,2034589,202204
Rother District Council,23/06/2022,091HOUSING,Housing and Community Services,20128,Public Conveniences,B2201,Electricity,30.46,Laser Energy Buying Group (Kent County Council Commercial Services),Electricity - Electricity Charges,2034589,202204
Rother District Council,23/06/2022,091HOUSING,Housing and Community Services,20128,Public Conveniences,B2201,Electricity,102.09,Laser Energy Buying Group (Kent County Council Commercial Services),Electricity - Electricity Charges,2034589,202204
Rother District Council,23/06/2022,091HOUSING,Housing and Community Services,20128,Public Conveniences,B2201,Electricity,36.46,Laser Energy Buying Group (Kent County Council Commercial Services),Electricity - Electricity Charges,2034589,202204
Rother District Council,23/06/2022,091HOUSING,Housing and Community Services,20128,Public Conveniences,B2201,Electricity,84.89,Laser Energy Buying Group (Kent County Council Commercial Services),Electricity - Electricity Charges,2034589,202204
Rother District Council,23/06/2022,091HOUSING,Housing and Community Services,20128,Public Conveniences,B2201,Electricity,31.03,Laser Energy Buying Group (Kent County Council Commercial Services),Electricity - Electricity Charges,2034589,202204
Rother District Council,23/06/2022,091HOUSING,Housing and Community Services,20128,Public Conveniences,B2201,Electricity,60.89,Laser Energy Buying Group (Kent County Council Commercial Services),Electricity - Electricity Charges,2034589,202204
Rother District Council,23/06/2022,091HOUSING,Housing and Community Services,20128,Public Conveniences,B2201,Electricity,115.54,Laser Energy Buying Group (Kent County Council Commercial Services),Electricity - Electricity Charges,2034589,202204
Rother District Council,23/06/2022,091HOUSING,Housing and Community Services,20128,Public Conveniences,B2201,Electricity,79.41,Laser Energy Buying Group (Kent County Council Commercial Services),Electricity - Electricity Charges,2034589,202204
Rother District Council,23/06/2022,091HOUSING,Housing and Community Services,20128,Public Conveniences,B2201,Electricity,26.87,Laser Energy Buying Group (Kent County Council Commercial Services),Electricity - Electricity Charges,2034589,202204
Rother District Council,23/06/2022,091HOUSING,Housing and Community Services,20128,Public Conveniences,B2201,Electricity,146.01,Laser Energy Buying Group (Kent County Council Commercial Services),Electricity - Electricity Charges,2034589,202204
Rother District Council,23/06/2022,091HOUSING,Housing and Community Services,20128,Public Conveniences,B2201,Electricity,62.85,Laser Energy Buying Group (Kent County Council Commercial Services),Electricity - Electricity Charges,2034589,202204
Rother District Council,23/06/2022,081ACQUISIT,"Acquisitions, Transformation and Regeneration",20148,Misc Land & Buildings,B2201,Electricity,58.62,Laser Energy Buying Group (Kent County Council Commercial Services),Electricity - Electricity Charges,2034589,202204
Rother District Council,23/06/2022,031RESOURCES,Chief Executive & Corporate Core,20176,Administrative Offices - Print Room,B2202,Gas,79.59,Laser Energy Buying Group (Kent County Council Commercial Services),Gas - Gas Charges,2034554,202204
Rother District Council,23/06/2022,091HOUSING,Housing and Community Services,20114,Bexhill Parks & Open Spaces,B2201,Electricity,24.67,Laser Energy Buying Group (Kent County Council Commercial Services),Electricity - Electricity Charges,2034589,202204
Rother District Council,23/06/2022,091HOUSING,Housing and Community Services,20128,Public Conveniences,B2201,Electricity,6.17,Laser Energy Buying Group (Kent County Council Commercial Services),Electricity - Electricity Charges,2034589,202204
Rother District Council,23/06/2022,091HOUSING,Housing and Community Services,20107,Camber Beach & Foreshore,B2201,Electricity,31.60,Laser Energy Buying Group (Kent County Council Commercial Services),Electricity - Electricity Charges,2034589,202204
Rother District Council,23/06/2022,091HOUSING,Housing and Community Services,20200,Housing Needs - HB (Housing Benefit),D2513,Hired and Contracted services,260.31,Union Property MGMT Ltd,Hired and Contracted services,2033777,202204
Rother District Council,23/06/2022,031RESOURCES,Chief Executive & Corporate Core,20173,Administrative Offices - Town Hall,B1100,Repairs to Premises,110.77,Alfa Electric Ltd,Repairs to Premises - Repairs - Electrical Works,2034244,202204
Rother District Council,23/06/2022,091HOUSING,Housing and Community Services,20115,Rye Area Parks & Gardens,B2201,Electricity,19.01,Laser Energy Buying Group (Kent County Council Commercial Services),Electricity - Electricity Charges,2034589,202204
Rother District Council,23/06/2022,081ACQUISIT,"Acquisitions, Transformation and Regeneration",20148,Misc Land & Buildings,B2201,Electricity,19.01,Laser Energy Buying Group (Kent County Council Commercial Services),Electricity - Electricity Charges,2034589,202204
Rother District Council,23/06/2022,091HOUSING,Housing and Community Services,20115,Rye Area Parks & Gardens,B2201,Electricity,29.33,Laser Energy Buying Group (Kent County Council Commercial Services),Electricity - Electricity Charges,2034589,202204
Rother District Council,23/06/2022,091HOUSING,Housing and Community Services,20114,Bexhill Parks & Open Spaces,B2201,Electricity,37.83,Laser Energy Buying Group (Kent County Council Commercial Services),Electricity - Electricity Charges,2034589,202204
Rother District Council,23/06/2022,091HOUSING,Housing and Community Services,20108,Bexhill Promenade & Foreshore,B1100,Repairs to Premises,15.89,Trade Paints Ltd,Repairs to Premises - Purchase of Materials - Build Maint,2034148,202204
Rother District Council,23/06/2022,031RESOURCES,Chief Executive & Corporate Core,20173,Administrative Offices - Town Hall,B2201,Electricity,"2,455.41",Laser Energy Buying Group (Kent County Council Commercial Services),Electricity - Electricity Charges,2034589,202204
Rother District Council,23/06/2022,031RESOURCES,Chief Executive & Corporate Core,20173,Administrative Offices - Town Hall,B2202,Gas,130.82,Laser Energy Buying Group (Kent County Council Commercial Services),Gas - Gas Charges,2034554,202204
Rother District Council,23/06/2022,031RESOURCES,Chief Executive & Corporate Core,20173,Administrative Offices - Town Hall,B2201,Electricity,"2,494.42",Laser Energy Buying Group (Kent County Council Commercial Services),Electricity - Electricity Charges,2034589,202204
Rother District Council,23/06/2022,081ACQUISIT,"Acquisitions, Transformation and Regeneration",20308,Amherst Road,B2202,Gas,206.27,Laser Energy Buying Group (Kent County Council Commercial Services),Gas - Gas Charges,2034554,202204
Rother District Council,23/06/2022,081ACQUISIT,"Acquisitions, Transformation and Regeneration",20151,Udimore Workshops,B2201,Electricity,27.06,Laser Energy Buying Group (Kent County Council Commercial Services),Electricity - Electricity Charges,2034589,202204
Rother District Council,23/06/2022,091HOUSING,Housing and Community Services,20200,Housing Needs - HB (Housing Benefit),D2514,Accommodation Costs,91.07,Union Property MGMT Ltd,Accommodation Costs,2033778,202204
Rother District Council,23/06/2022,091HOUSING,Housing and Community Services,20108,Bexhill Promenade & Foreshore,B2201,Electricity,31.51,Laser Energy Buying Group (Kent County Council Commercial Services),Electricity - Electricity Charges,2034589,202204
Rother District Council,23/06/2022,091HOUSING,Housing and Community Services,20108,Bexhill Promenade & Foreshore,B2201,Electricity,30.63,Laser Energy Buying Group (Kent County Council Commercial Services),Electricity - Electricity Charges,2034589,202204
Rother District Council,23/06/2022,091HOUSING,Housing and Community Services,20108,Bexhill Promenade & Foreshore,B2201,Electricity,28.26,Laser Energy Buying Group (Kent County Council Commercial Services),Electricity - Electricity Charges,2034589,202204
Rother District Council,23/06/2022,091HOUSING,Housing and Community Services,20108,Bexhill Promenade & Foreshore,B2201,Electricity,30.49,Laser Energy Buying Group (Kent County Council Commercial Services),Electricity - Electricity Charges,2034589,202204
Rother District Council,23/06/2022,091HOUSING,Housing and Community Services,20108,Bexhill Promenade & Foreshore,B2201,Electricity,28.35,Laser Energy Buying Group (Kent County Council Commercial Services),Electricity - Electricity Charges,2034589,202204
Rother District Council,24/06/2022,101RESOURCES,Resources,20216,Cost Of Collection,D2513,Hired and Contracted services,21.00,H M Land Registry,Hired and contracted services - Council Tax-Land Registry Enquiries,2034253,202204
Rother District Council,24/06/2022,091HOUSING,Housing and Community Services,20200,Housing Needs - HB (Housing Benefit),D2514,Accommodation Costs,332.50,Lillybank Homes Ltd,Accommodation Costs,2033824,202204
Rother District Council,24/06/2022,041ENVIRON,Environmental Services,32144,EH Environmental Services Admin R + W Partnership,D2513,Hired and Contracted services,9.00,H M Land Registry,Hired and contracted services - Env H-Land Registry,2034253,202204
Rother District Council,24/06/2022,041ENVIRON,Environmental Services,20129,Community Safety - CCTV costs only,D2513,Hired and Contracted services,3.00,H M Land Registry,Hired and contracted services - Env H-Land Registry,2034253,202204
Rother District Council,24/06/2022,071STRAT,Strategy and Planning,20258,BC Dangerous Structures H+R Partnership,D2513,Hired and Contracted services,9.00,H M Land Registry,Hired and contracted services - Env H-Land Registry,2034253,202204
Rother District Council,24/06/2022,091HOUSING,Housing and Community Services,20200,Housing Needs - HB (Housing Benefit),D2514,Accommodation Costs,480.00,Lillybank Homes Ltd,Accommodation Costs,2033824,202204
Rother District Council,24/06/2022,091HOUSING,Housing and Community Services,20200,Housing Needs - HB (Housing Benefit),D2514,Accommodation Costs,507.50,Lillybank Homes Ltd,Accommodation Costs,2033824,202204
Rother District Council,24/06/2022,091HOUSING,Housing and Community Services,20200,Housing Needs - HB (Housing Benefit),D2514,Accommodation Costs,455.00,Lillybank Homes Ltd,Accommodation Costs,2033824,202204
Rother District Council,24/06/2022,091HOUSING,Housing and Community Services,20200,Housing Needs - HB (Housing Benefit),D2514,Accommodation Costs,295.00,Lillybank Homes Ltd,Accommodation Costs,2033824,202204
Rother District Council,24/06/2022,091HOUSING,Housing and Community Services,20200,Housing Needs - HB (Housing Benefit),D2514,Accommodation Costs,480.00,Lillybank Homes Ltd,Accommodation Costs,2033824,202204
Rother District Council,24/06/2022,091HOUSING,Housing and Community Services,20200,Housing Needs - HB (Housing Benefit),D2514,Accommodation Costs,480.00,Lillybank Homes Ltd,Accommodation Costs,2033824,202204
Rother District Council,24/06/2022,091HOUSING,Housing and Community Services,20200,Housing Needs - HB (Housing Benefit),D2514,Accommodation Costs,455.00,Lillybank Homes Ltd,Accommodation Costs,2033824,202204
Rother District Council,24/06/2022,091HOUSING,Housing and Community Services,20200,Housing Needs - HB (Housing Benefit),D2514,Accommodation Costs,480.00,Lillybank Homes Ltd,Accommodation Costs,2033824,202204
Rother District Council,24/06/2022,091HOUSING,Housing and Community Services,20200,Housing Needs - HB (Housing Benefit),D2514,Accommodation Costs,413.00,Lillybank Homes Ltd,Accommodation Costs,2033824,202204
Rother District Council,24/06/2022,091HOUSING,Housing and Community Services,20200,Housing Needs - HB (Housing Benefit),D2514,Accommodation Costs,455.00,Lillybank Homes Ltd,Accommodation Costs,2033824,202204
Rother District Council,24/06/2022,071STRAT,Strategy and Planning,20246,Planning Applications,D2513,Hired and Contracted services,3.00,H M Land Registry,Hired and contracted services - Land Registry-Planning,2034253,202204
Rother District Council,24/06/2022,091HOUSING,Housing and Community Services,20125,Coast Protection,D2922,Subscriptions,400.00,Canterbury City Council,Subscriptions - Subscription to Organisations,2034168,202204
Rother District Council,24/06/2022,091HOUSING,Housing and Community Services,20114,Bexhill Parks & Open Spaces,B1100,Repairs to Premises,454.14,Saint-Gobain Building Distribution Ltd t/a Jewson,Repairs to Premises - Parks - Paths/Surface Repairs,2034311,202204
Rother District Council,25/06/2022,101RESOURCES,Resources,20239,Computer Services,D2621,Telephones,-148.44,GTT EMEA Ltd,Computer Licences - Computer Licence Renewal,2033821,202205
Rother District Council,25/06/2022,101RESOURCES,Resources,20239,Computer Services,D2621,Telephones,46.00,GTT EMEA Ltd,Telephones - Leased Line Rental,2033822,202205
Rother District Council,25/06/2022,071STRAT,Strategy and Planning,20246,Planning Applications,D2519,Statutory Advertising,777.75,National World Publishing Ltd,Statutory Advertising - Planadv - Rye+Battle Observer,2033830,202204
Rother District Council,25/06/2022,031RESOURCES,Chief Executive & Corporate Core,20171,Human Resources,A2203,Training,818.10,Croner Group Ltd,Training,2034213,202204
Rother District Council,25/06/2022,031RESOURCES,Chief Executive & Corporate Core,20171,Human Resources,A2203,Training,101.81,Croner Group Ltd,Training,2034213,202204
Rother District Council,27/06/2022,091HOUSING,Housing and Community Services,20200,Housing Needs - HB (Housing Benefit),D2509,Consultants and Other Services,47.71,NEC Software Solutions UK Ltd,Consultants and other services - Consultants Fees,2033884,202204
Rother District Council,27/06/2022,101RESOURCES,Resources,20216,Cost Of Collection,D2509,Consultants and Other Services,5.50,NEC Software Solutions UK Ltd,Consultants and other services - Consultants Fees,2033884,202204
Rother District Council,27/06/2022,101RESOURCES,Resources,20217,Reliefs & Benefits-Council Tax Benefit,D2509,Consultants and Other Services,79.50,NEC Software Solutions UK Ltd,Consultants and other services - Consultants Fees,2033884,202204
Rother District Council,27/06/2022,091HOUSING,Housing and Community Services,20206,UK Resettlement (Syrians),D2513,Hired and Contracted services,"1,250.00",The Eggtooth Project,Hired and contracted services - Syrian Misc,2034869,202205
Rother District Council,27/06/2022,031RESOURCES,Chief Executive & Corporate Core,20162,Electoral Registration,D1201,Equipment & Materials,470.24,Pitney Bowes Ltd,Equipment & Materials - Purchase of Tools,2033945,202204
Rother District Council,27/06/2022,091HOUSING,Housing and Community Services,20200,Housing Needs - HB (Housing Benefit),D2514,Accommodation Costs,390.00,Roost People Ltd,Accommodation Costs,2033861,202204
Rother District Council,27/06/2022,091HOUSING,Housing and Community Services,20329,Rough Sleeping Initiative,D2514,Accommodation Costs,350.00,Roost People Ltd,Accommodation Costs,2033861,202204
Rother District Council,27/06/2022,091HOUSING,Housing and Community Services,20200,Housing Needs - HB (Housing Benefit),D2514,Accommodation Costs,420.00,Savoy Court Hotel Ltd,Accommodation Costs,2033858,202204
Rother District Council,27/06/2022,091HOUSING,Housing and Community Services,20200,Housing Needs - HB (Housing Benefit),D2514,Accommodation Costs,105.00,Savoy Court Hotel Ltd,Accommodation Costs,2033858,202204
Rother District Council,27/06/2022,091HOUSING,Housing and Community Services,20200,Housing Needs - HB (Housing Benefit),D2514,Accommodation Costs,415.00,Lets 2 Share Limited,Accommodation Costs,2033863,202204
Rother District Council,27/06/2022,091HOUSING,Housing and Community Services,20200,Housing Needs - HB (Housing Benefit),D2514,Accommodation Costs,525.00,Savoy Court Hotel Ltd,Accommodation Costs,2033858,202204
Rother District Council,27/06/2022,091HOUSING,Housing and Community Services,20200,Housing Needs - HB (Housing Benefit),D2514,Accommodation Costs,430.00,Roost People Ltd,Accommodation Costs,2033861,202204
Rother District Council,27/06/2022,101RESOURCES,Resources,20242,Communications-Phones,D2621,Telephones,331.87,BT British Telecommunications plc,Telephones - BT-Rental-General,2034164,202205
Rother District Council,27/06/2022,101RESOURCES,Resources,20242,Communications-Phones,D2513,Hired and Contracted services,40.00,BT British Telecommunications plc,Interest Paid - Late Invoice Payment Fee,2034164,202205
Rother District Council,27/06/2022,091HOUSING,Housing and Community Services,20108,Bexhill Promenade & Foreshore,D1201,Equipment & Materials,317.00,Kingspan Water & Energy Ltd t/a Fuel Tank Shop,Equipment & Materials - Safety Boat Expenses,2034064,202204
Rother District Council,27/06/2022,081ACQUISIT,"Acquisitions, Transformation and Regeneration",20136,Regeneration,D2513,Hired and Contracted services,900.00,Flatland Projects CIC,Hired and contracted services - Service fee paid,2034488,202204
Rother District Council,27/06/2022,091HOUSING,Housing and Community Services,20200,Housing Needs - HB (Housing Benefit),D2514,Accommodation Costs,390.00,Roost People Ltd,Accommodation Costs,2033861,202204
Rother District Council,27/06/2022,091HOUSING,Housing and Community Services,20200,Housing Needs - HB (Housing Benefit),D2514,Accommodation Costs,364.00,SDR Living Ltd,Accommodation Costs,2033859,202204
Rother District Council,27/06/2022,091HOUSING,Housing and Community Services,20200,Housing Needs - HB (Housing Benefit),D2514,Accommodation Costs,91.00,SDR Living Ltd,Accommodation Costs,2033859,202204
Rother District Council,27/06/2022,091HOUSING,Housing and Community Services,20200,Housing Needs - HB (Housing Benefit),D2514,Accommodation Costs,364.00,Savoy Court Hotel Ltd,Accommodation Costs,2033858,202204
Rother District Council,27/06/2022,091HOUSING,Housing and Community Services,20200,Housing Needs - HB (Housing Benefit),D2514,Accommodation Costs,91.00,Savoy Court Hotel Ltd,Accommodation Costs,2033858,202204
Rother District Council,27/06/2022,091HOUSING,Housing and Community Services,20200,Housing Needs - HB (Housing Benefit),D2514,Accommodation Costs,420.00,Savoy Court Hotel Ltd,Accommodation Costs,2033858,202204
Rother District Council,27/06/2022,091HOUSING,Housing and Community Services,20200,Housing Needs - HB (Housing Benefit),D2514,Accommodation Costs,105.00,Savoy Court Hotel Ltd,Accommodation Costs,2033858,202204
Rother District Council,27/06/2022,091HOUSING,Housing and Community Services,20200,Housing Needs - HB (Housing Benefit),D2514,Accommodation Costs,252.00,Savoy Court Hotel Ltd,Accommodation Costs,2033858,202204
Rother District Council,27/06/2022,091HOUSING,Housing and Community Services,20200,Housing Needs - HB (Housing Benefit),D2514,Accommodation Costs,63.00,Savoy Court Hotel Ltd,Accommodation Costs,2033858,202204
Rother District Council,27/06/2022,091HOUSING,Housing and Community Services,20200,Housing Needs - HB (Housing Benefit),D2514,Accommodation Costs,437.50,SDR Living Ltd,Accommodation Costs,2033859,202204
Rother District Council,27/06/2022,091HOUSING,Housing and Community Services,20200,Housing Needs - HB (Housing Benefit),D2514,Accommodation Costs,252.00,Savoy Court Hotel Ltd,Accommodation Costs,2033858,202204
Rother District Council,27/06/2022,091HOUSING,Housing and Community Services,20200,Housing Needs - HB (Housing Benefit),D2514,Accommodation Costs,63.00,Savoy Court Hotel Ltd,Accommodation Costs,2033858,202204
Rother District Council,27/06/2022,031RESOURCES,Chief Executive & Corporate Core,20183,Chief Executive,A2203,Training,200.00,Peak Potential,Training,2033977,202204
Rother District Council,27/06/2022,091HOUSING,Housing and Community Services,20206,UK Resettlement (Syrians),D2513,Hired and Contracted services,250.00,Bike Lab Hastings,Hired and contracted services - Syrian Misc,2034082,202204
Rother District Council,27/06/2022,101RESOURCES,Resources,20239,Computer Services,D2634,Computer Consumables,-256.74,Softcat PLC,Computer Consumables - InkJet Cartridge,2033869,202204
Rother District Council,27/06/2022,091HOUSING,Housing and Community Services,20200,Housing Needs - HB (Housing Benefit),D2514,Accommodation Costs,400.00,Dale Saunders (Holdings) Ltd,Accommodation Costs,2033867,202204
Rother District Council,27/06/2022,091HOUSING,Housing and Community Services,20200,Housing Needs - HB (Housing Benefit),D2514,Accommodation Costs,665.00,Savoy Court Hotel Ltd,Accommodation Costs,2033858,202204
Rother District Council,27/06/2022,091HOUSING,Housing and Community Services,20200,Housing Needs - HB (Housing Benefit),D2514,Accommodation Costs,435.00,Roost People Ltd,Accommodation Costs,2033861,202204
Rother District Council,27/06/2022,091HOUSING,Housing and Community Services,20200,Housing Needs - HB (Housing Benefit),D2514,Accommodation Costs,455.00,Savoy Court Hotel Ltd,Accommodation Costs,2033858,202204
Rother District Council,27/06/2022,091HOUSING,Housing and Community Services,20200,Housing Needs - HB (Housing Benefit),D2514,Accommodation Costs,315.00,Roost People Ltd,Accommodation Costs,2033861,202204
Rother District Council,27/06/2022,091HOUSING,Housing and Community Services,20200,Housing Needs - HB (Housing Benefit),D2514,Accommodation Costs,390.00,Coast Holiday Lettings Ltd,Accommodation Costs,2033851,202204
Rother District Council,27/06/2022,091HOUSING,Housing and Community Services,20200,Housing Needs - HB (Housing Benefit),D2514,Accommodation Costs,350.00,A A H Yahya T/A TAP Temporary Accommodation Providers Ltd,Accommodation Costs,2033837,202204
Rother District Council,27/06/2022,091HOUSING,Housing and Community Services,20200,Housing Needs - HB (Housing Benefit),D2508,Removals and Storage,450.00,1066 Removal Services,Removals and Storage,2033816,202204
Rother District Council,27/06/2022,091HOUSING,Housing and Community Services,20200,Housing Needs - HB (Housing Benefit),D2514,Accommodation Costs,390.00,Roost People Ltd,Accommodation Costs,2033861,202204
Rother District Council,27/06/2022,091HOUSING,Housing and Community Services,20200,Housing Needs - HB (Housing Benefit),D2514,Accommodation Costs,390.00,Roost People Ltd,Accommodation Costs,2033861,202204
Rother District Council,27/06/2022,091HOUSING,Housing and Community Services,20329,Rough Sleeping Initiative,D2514,Accommodation Costs,252.00,Savoy Court Hotel Ltd,Accommodation Costs,2033858,202204
Rother District Council,27/06/2022,091HOUSING,Housing and Community Services,20329,Rough Sleeping Initiative,D2514,Accommodation Costs,63.00,Savoy Court Hotel Ltd,Accommodation Costs,2033858,202204
Rother District Council,27/06/2022,091HOUSING,Housing and Community Services,20200,Housing Needs - HB (Housing Benefit),D2514,Accommodation Costs,364.00,SDR Living Ltd,Accommodation Costs,2033859,202204
Rother District Council,27/06/2022,091HOUSING,Housing and Community Services,20200,Housing Needs - HB (Housing Benefit),D2514,Accommodation Costs,91.00,SDR Living Ltd,Accommodation Costs,2033859,202204
Rother District Council,27/06/2022,999NOREPORT,Housing and Community Services,70714,Capital - Community Grants,N1011,Capital Grants,366.00,St Mary the Virgin Church Battle,Capital Grants - Community Grants Scheme,2034546,202204
Rother District Council,27/06/2022,091HOUSING,Housing and Community Services,20200,Housing Needs - HB (Housing Benefit),D2514,Accommodation Costs,400.00,Dale Saunders (Holdings) Ltd,Accommodation Costs,2033867,202204
Rother District Council,27/06/2022,091HOUSING,Housing and Community Services,20200,Housing Needs - HB (Housing Benefit),D2514,Accommodation Costs,420.00,Savoy Court Hotel Ltd,Accommodation Costs,2033858,202204
Rother District Council,27/06/2022,091HOUSING,Housing and Community Services,20200,Housing Needs - HB (Housing Benefit),D2514,Accommodation Costs,105.00,Savoy Court Hotel Ltd,Accommodation Costs,2033858,202204
Rother District Council,27/06/2022,091HOUSING,Housing and Community Services,20200,Housing Needs - HB (Housing Benefit),D2514,Accommodation Costs,400.00,Dale Saunders (Holdings) Ltd,Accommodation Costs,2033867,202204
Rother District Council,27/06/2022,091HOUSING,Housing and Community Services,20200,Housing Needs - HB (Housing Benefit),D2514,Accommodation Costs,400.00,Dale Saunders (Holdings) Ltd,Accommodation Costs,2033867,202204
Rother District Council,27/06/2022,091HOUSING,Housing and Community Services,20200,Housing Needs - HB (Housing Benefit),D2514,Accommodation Costs,415.00,Lets 2 Share Limited,Accommodation Costs,2033863,202204
Rother District Council,27/06/2022,091HOUSING,Housing and Community Services,20200,Housing Needs - HB (Housing Benefit),D2514,Accommodation Costs,252.00,Savoy Court Hotel Ltd,Accommodation Costs,2033858,202204
Rother District Council,27/06/2022,091HOUSING,Housing and Community Services,20200,Housing Needs - HB (Housing Benefit),D2514,Accommodation Costs,63.00,Savoy Court Hotel Ltd,Accommodation Costs,2033858,202204
Rother District Council,27/06/2022,091HOUSING,Housing and Community Services,20329,Rough Sleeping Initiative,D2514,Accommodation Costs,385.00,A A H Yahya T/A TAP Temporary Accommodation Providers Ltd,Accommodation Costs,2033837,202204
Rother District Council,27/06/2022,091HOUSING,Housing and Community Services,20200,Housing Needs - HB (Housing Benefit),D2514,Accommodation Costs,385.00,A A H Yahya T/A TAP Temporary Accommodation Providers Ltd,Accommodation Costs,2033837,202204
Rother District Council,27/06/2022,091HOUSING,Housing and Community Services,20200,Housing Needs - HB (Housing Benefit),D2514,Accommodation Costs,390.00,Roost People Ltd,Accommodation Costs,2033861,202204
Rother District Council,27/06/2022,091HOUSING,Housing and Community Services,20200,Housing Needs - HB (Housing Benefit),D2514,Accommodation Costs,455.00,SDR Living Ltd,Accommodation Costs,2033859,202204
Rother District Council,27/06/2022,091HOUSING,Housing and Community Services,20329,Rough Sleeping Initiative,D2514,Accommodation Costs,252.00,Savoy Court Hotel Ltd,Accommodation Costs,2033858,202204
Rother District Council,27/06/2022,091HOUSING,Housing and Community Services,20329,Rough Sleeping Initiative,D2514,Accommodation Costs,63.00,Savoy Court Hotel Ltd,Accommodation Costs,2033858,202204
Rother District Council,27/06/2022,091HOUSING,Housing and Community Services,20204,Housing Administration Account,D2513,Hired and Contracted services,64.51,The Housing Ombudsman,Hired and contracted services - Service fee paid,2034531,202204
Rother District Council,27/06/2022,091HOUSING,Housing and Community Services,20329,Rough Sleeping Initiative,D2514,Accommodation Costs,252.00,Savoy Court Hotel Ltd,Accommodation Costs,2033858,202204
Rother District Council,27/06/2022,091HOUSING,Housing and Community Services,20329,Rough Sleeping Initiative,D2514,Accommodation Costs,63.00,Savoy Court Hotel Ltd,Accommodation Costs,2033858,202204
Rother District Council,27/06/2022,091HOUSING,Housing and Community Services,20200,Housing Needs - HB (Housing Benefit),D2514,Accommodation Costs,415.00,Lets 2 Share Limited,Accommodation Costs,2033863,202204
Rother District Council,27/06/2022,091HOUSING,Housing and Community Services,20329,Rough Sleeping Initiative,D2514,Accommodation Costs,315.00,Roost People Ltd,Accommodation Costs,2033861,202204
Rother District Council,27/06/2022,091HOUSING,Housing and Community Services,20200,Housing Needs - HB (Housing Benefit),D2514,Accommodation Costs,397.60,SDR Living Ltd,Accommodation Costs,2033859,202204
Rother District Council,27/06/2022,091HOUSING,Housing and Community Services,20200,Housing Needs - HB (Housing Benefit),D2514,Accommodation Costs,99.40,SDR Living Ltd,Accommodation Costs,2033859,202204
Rother District Council,27/06/2022,091HOUSING,Housing and Community Services,20200,Housing Needs - HB (Housing Benefit),D2514,Accommodation Costs,390.00,Roost People Ltd,Accommodation Costs,2033861,202204
Rother District Council,27/06/2022,091HOUSING,Housing and Community Services,20200,Housing Needs - HB (Housing Benefit),D2514,Accommodation Costs,350.00,Roost People Ltd,Accommodation Costs,2033861,202204
Rother District Council,27/06/2022,091HOUSING,Housing and Community Services,20329,Rough Sleeping Initiative,D2514,Accommodation Costs,315.00,Roost People Ltd,Accommodation Costs,2033861,202204
Rother District Council,27/06/2022,091HOUSING,Housing and Community Services,20200,Housing Needs - HB (Housing Benefit),D2514,Accommodation Costs,252.00,Savoy Court Hotel Ltd,Accommodation Costs,2033858,202204
Rother District Council,27/06/2022,091HOUSING,Housing and Community Services,20200,Housing Needs - HB (Housing Benefit),D2514,Accommodation Costs,63.00,Savoy Court Hotel Ltd,Accommodation Costs,2033858,202204
Rother District Council,27/06/2022,091HOUSING,Housing and Community Services,20329,Rough Sleeping Initiative,D2514,Accommodation Costs,140.00,Savoy Court Hotel Ltd,Accommodation Costs,2033858,202204
Rother District Council,27/06/2022,091HOUSING,Housing and Community Services,20329,Rough Sleeping Initiative,D2514,Accommodation Costs,35.00,Savoy Court Hotel Ltd,Accommodation Costs,2033858,202204
Rother District Council,27/06/2022,091HOUSING,Housing and Community Services,20200,Housing Needs - HB (Housing Benefit),D2514,Accommodation Costs,390.00,Roost People Ltd,Accommodation Costs,2033861,202204
Rother District Council,27/06/2022,091HOUSING,Housing and Community Services,20200,Housing Needs - HB (Housing Benefit),D2514,Accommodation Costs,413.00,BNM Parkstone LLP T/A Fourways Residential,Accommodation Costs,2033952,202204
Rother District Council,27/06/2022,091HOUSING,Housing and Community Services,20200,Housing Needs - HB (Housing Benefit),D2514,Accommodation Costs,252.00,Savoy Court Hotel Ltd,Accommodation Costs,2033858,202204
Rother District Council,27/06/2022,091HOUSING,Housing and Community Services,20200,Housing Needs - HB (Housing Benefit),D2514,Accommodation Costs,63.00,Savoy Court Hotel Ltd,Accommodation Costs,2033858,202204
Rother District Council,27/06/2022,091HOUSING,Housing and Community Services,20200,Housing Needs - HB (Housing Benefit),D2514,Accommodation Costs,413.00,BNM Parkstone LLP T/A Fourways Residential,Accommodation Costs,2033952,202204
Rother District Council,27/06/2022,091HOUSING,Housing and Community Services,20200,Housing Needs - HB (Housing Benefit),D2514,Accommodation Costs,350.00,A A H Yahya T/A TAP Temporary Accommodation Providers Ltd,Accommodation Costs,2033837,202204
Rother District Council,27/06/2022,101RESOURCES,Resources,20239,Computer Services,D2632,Additional Computer Equipment,"7,160.72",Softcat PLC,Additional Computer Equipment - New PC/Computer,2033874,202204
Rother District Council,27/06/2022,101RESOURCES,Resources,20239,Computer Services,D2633,Computer Equipment,"3,198.76",Softcat PLC,Computer Equipment - Computer peripherals,2033874,202204
Rother District Council,27/06/2022,091HOUSING,Housing and Community Services,20329,Rough Sleeping Initiative,D2514,Accommodation Costs,350.00,Savoy Court Hotel Ltd,Accommodation Costs,2033858,202204
Rother District Council,27/06/2022,091HOUSING,Housing and Community Services,20200,Housing Needs - HB (Housing Benefit),D2514,Accommodation Costs,630.00,Savoy Court Hotel Ltd,Accommodation Costs,2033858,202204
Rother District Council,27/06/2022,091HOUSING,Housing and Community Services,20329,Rough Sleeping Initiative,D2514,Accommodation Costs,364.00,SDR Living Ltd,Accommodation Costs,2033859,202204
Rother District Council,27/06/2022,091HOUSING,Housing and Community Services,20200,Housing Needs - HB (Housing Benefit),D2514,Accommodation Costs,390.00,Roost People Ltd,Accommodation Costs,2033861,202204
Rother District Council,27/06/2022,091HOUSING,Housing and Community Services,20200,Housing Needs - HB (Housing Benefit),D2514,Accommodation Costs,390.00,Roost People Ltd,Accommodation Costs,2033861,202204
Rother District Council,27/06/2022,091HOUSING,Housing and Community Services,20200,Housing Needs - HB (Housing Benefit),D2514,Accommodation Costs,390.00,Roost People Ltd,Accommodation Costs,2033861,202204
Rother District Council,27/06/2022,091HOUSING,Housing and Community Services,20200,Housing Needs - HB (Housing Benefit),D2514,Accommodation Costs,390.00,Coast Holiday Lettings Ltd,Accommodation Costs,2033851,202204
Rother District Council,27/06/2022,091HOUSING,Housing and Community Services,20329,Rough Sleeping Initiative,D2514,Accommodation Costs,252.00,Savoy Court Hotel Ltd,Accommodation Costs,2033858,202204
Rother District Council,27/06/2022,091HOUSING,Housing and Community Services,20329,Rough Sleeping Initiative,D2514,Accommodation Costs,63.00,Savoy Court Hotel Ltd,Accommodation Costs,2033858,202204
Rother District Council,27/06/2022,091HOUSING,Housing and Community Services,20200,Housing Needs - HB (Housing Benefit),D2514,Accommodation Costs,390.00,Roost People Ltd,Accommodation Costs,2033861,202204
Rother District Council,27/06/2022,091HOUSING,Housing and Community Services,20200,Housing Needs - HB (Housing Benefit),D2514,Accommodation Costs,350.00,A A H Yahya T/A TAP Temporary Accommodation Providers Ltd,Accommodation Costs,2033837,202204
Rother District Council,27/06/2022,091HOUSING,Housing and Community Services,20200,Housing Needs - HB (Housing Benefit),D2514,Accommodation Costs,315.00,Roost People Ltd,Accommodation Costs,2033861,202204
Rother District Council,27/06/2022,091HOUSING,Housing and Community Services,20200,Housing Needs - HB (Housing Benefit),D2514,Accommodation Costs,315.00,PADA Hanlon Ltd,Accommodation Costs,2033860,202204
Rother District Council,27/06/2022,091HOUSING,Housing and Community Services,20200,Housing Needs - HB (Housing Benefit),D2508,Removals and Storage,19.20,1066 Removal Services,Removals and Storage,2033815,202204
Rother District Council,27/06/2022,091HOUSING,Housing and Community Services,20200,Housing Needs - HB (Housing Benefit),D2514,Accommodation Costs,415.00,Lets 2 Share Limited,Accommodation Costs,2033863,202204
Rother District Council,27/06/2022,091HOUSING,Housing and Community Services,20329,Rough Sleeping Initiative,D2514,Accommodation Costs,364.00,SDR Living Ltd,Accommodation Costs,2033859,202204
Rother District Council,27/06/2022,091HOUSING,Housing and Community Services,20329,Rough Sleeping Initiative,D2514,Accommodation Costs,91.00,SDR Living Ltd,Accommodation Costs,2033859,202204
Rother District Council,27/06/2022,091HOUSING,Housing and Community Services,20329,Rough Sleeping Initiative,D2514,Accommodation Costs,364.00,SDR Living Ltd,Accommodation Costs,2033859,202204
Rother District Council,27/06/2022,091HOUSING,Housing and Community Services,20329,Rough Sleeping Initiative,D2514,Accommodation Costs,91.00,SDR Living Ltd,Accommodation Costs,2033859,202204
Rother District Council,27/06/2022,091HOUSING,Housing and Community Services,20200,Housing Needs - HB (Housing Benefit),D2514,Accommodation Costs,350.00,SDR Living Ltd,Accommodation Costs,2033859,202204
Rother District Council,27/06/2022,091HOUSING,Housing and Community Services,20200,Housing Needs - HB (Housing Benefit),D2514,Accommodation Costs,87.50,SDR Living Ltd,Accommodation Costs,2033859,202204
Rother District Council,28/06/2022,091HOUSING,Housing and Community Services,20145,Maintenance Services,D2352,Clothing and Uniforms,16.21,Trade UK Account (Screwfix & B&Q),Clothing and Uniforms - Mens Protective-Other,2033984,202204
Rother District Council,28/06/2022,091HOUSING,Housing and Community Services,20107,Camber Beach & Foreshore,B1100,Repairs to Premises,200.00,William Cooke and Son (Farmers) Ltd,Repairs to Premises - Sand Clearance at Camber,2034035,202204
Rother District Council,28/06/2022,091HOUSING,Housing and Community Services,20261,"TA Purchases (prev - 41 Jameson Mews, Bexhill on Sea)",B2201,Electricity,33.65,Bulb Energy Ltd,Gas - Gas Charges,2034166,202204
Rother District Council,28/06/2022,091HOUSING,Housing and Community Services,20200,Housing Needs - HB (Housing Benefit),D2508,Removals and Storage,125.00,Stamford Storage Solutions,Removals and Storage,2033895,202204
Rother District Council,28/06/2022,091HOUSING,Housing and Community Services,20200,Housing Needs - HB (Housing Benefit),D2508,Removals and Storage,"1,312.50",Mr Reliable Removals and Storage,Removals and Storage,2033947,202204
Rother District Council,28/06/2022,091HOUSING,Housing and Community Services,20108,Bexhill Promenade & Foreshore,D1201,Equipment & Materials,70.42,Gael Force Group Ltd,Equipment & materials - Miscellaneous,2034463,202204
Rother District Council,28/06/2022,091HOUSING,Housing and Community Services,20133,Refuse Collection,E2302,Third party payment private contractors,54.00,Data Shredding Services Ltd,Third party payment private contractors - Waste Collection Contract Variable cost to RDC,2034171,202204
Rother District Council,29/06/2022,091HOUSING,Housing and Community Services,20128,Public Conveniences,B2422,Sewerage,139.20,Scottish Water Business Stream Limited,Sewerage - Sewerage Charges,2033987,202204
Rother District Council,29/06/2022,091HOUSING,Housing and Community Services,20125,Coast Protection,B1100,Repairs to Premises,5.46,Wolseley UK Ltd,Repairs to Premises,2034163,202204
Rother District Council,29/06/2022,091HOUSING,Housing and Community Services,20200,Housing Needs - HB (Housing Benefit),D2508,Removals and Storage,31.00,Safestore,Removals and Storage,2033921,202204
Rother District Council,29/06/2022,091HOUSING,Housing and Community Services,20200,Housing Needs - HB (Housing Benefit),D2508,Removals and Storage,136.48,Safestore,Removals and Storage,2033921,202204
Rother District Council,29/06/2022,091HOUSING,Housing and Community Services,20261,"TA Purchases (prev - 41 Jameson Mews, Bexhill on Sea)",B2202,Gas,8.59,EON Next,Gas - Gas Charges,2034450,202204
Rother District Council,29/06/2022,101RESOURCES,Resources,20222,Accountancy,D2509,Consultants and Other Services,650.00,Oyster Partnership,Consultants and other services - Consultants Fees,2033928,202204
Rother District Council,29/06/2022,999NOREPORT,Housing and Community Services,70714,Capital - Community Grants,N1011,Capital Grants,500.00,Icklesham Memorial Hall Trust,Capital Grants - Community Grants Scheme,2034059,202204
Rother District Council,29/06/2022,999NOREPORT,Housing and Community Services,70714,Capital - Community Grants,N1011,Capital Grants,500.00,Hurst Green Village Hall,Capital Grants - Community Grants Scheme,2033979,202204
Rother District Council,29/06/2022,091HOUSING,Housing and Community Services,20200,Housing Needs - HB (Housing Benefit),D2508,Removals and Storage,"1,312.50",Mr Reliable Removals and Storage,Removals and Storage,2033948,202204
Rother District Council,29/06/2022,081ACQUISIT,"Acquisitions, Transformation and Regeneration",20122,Economic Development,A1110,Agency Staff,"1,800.00",Oyster Partnership,Agency Staff,2033931,202204
Rother District Council,29/06/2022,091HOUSING,Housing and Community Services,20107,Camber Beach & Foreshore,E2302,Third party payment private contractors,160.00,Camber Community Group,Third party payment private contractors - Payments to Contractor,2033990,202204
Rother District Council,29/06/2022,101RESOURCES,Resources,20216,Cost Of Collection,D2626,Postages,"1,032.72",DSI Billing Services Ltd,Postages - DSI Billing,2033930,202204
Rother District Council,29/06/2022,101RESOURCES,Resources,20209,Corporate management,D2516,Audit fees,"20,229.00",Grant Thornton UK LLP,Audit Fees - External Audit,2034069,202204
Rother District Council,29/06/2022,091HOUSING,Housing and Community Services,20205,Housing Loans Account,D2514,Accommodation Costs,536.25,J.B. Sullivan Ltd,Accommodation Costs - Homelessness services Rent in Advance for Homeless,2033973,202204
Rother District Council,29/06/2022,091HOUSING,Housing and Community Services,20202,Rother Tenant Finder (prev Rother Letting Service),D2514,Accommodation Costs,500.00,J.B. Sullivan Ltd,Accommodation Costs - Homelessness services Housing Landlord Scheme-Rent payment,2033973,202204
Rother District Council,29/06/2022,091HOUSING,Housing and Community Services,20128,Public Conveniences,B2422,Sewerage,400.93,CountyClean Environmental Services Ltd,Sewerage - Sewage/Cesspool Emptying,2033935,202204
Rother District Council,29/06/2022,091HOUSING,Housing and Community Services,20204,Housing Administration Account,A1110,Agency Staff,984.00,Oyster Partnership,Agency Staff,2034230,202204
Rother District Council,29/06/2022,081ACQUISIT,"Acquisitions, Transformation and Regeneration",20308,Amherst Road,D2513,Hired and Contracted services,23.43,Safe Water.io,Hired and contracted services - Legionella Sampling and Monitoring,2033929,202204
Rother District Council,29/06/2022,091HOUSING,Housing and Community Services,20102,Rother Museum Services,D2513,Hired and Contracted services,15.62,Safe Water.io,Hired and contracted services - Legionella Sampling and Monitoring,2033929,202204
Rother District Council,29/06/2022,091HOUSING,Housing and Community Services,20107,Camber Beach & Foreshore,D2513,Hired and Contracted services,15.62,Safe Water.io,Hired and contracted services - Legionella Sampling and Monitoring,2033929,202204
Rother District Council,29/06/2022,091HOUSING,Housing and Community Services,20114,Bexhill Parks & Open Spaces,D2513,Hired and Contracted services,23.43,Safe Water.io,Hired and contracted services - Legionella Sampling and Monitoring,2033929,202204
Rother District Council,29/06/2022,091HOUSING,Housing and Community Services,20114,Bexhill Parks & Open Spaces,D2513,Hired and Contracted services,15.62,Safe Water.io,Hired and contracted services - Legionella Sampling and Monitoring,2033929,202204
Rother District Council,29/06/2022,091HOUSING,Housing and Community Services,20128,Public Conveniences,D2513,Hired and Contracted services,390.50,Safe Water.io,Hired and contracted services - Legionella Sampling and Monitoring,2033929,202204
Rother District Council,29/06/2022,091HOUSING,Housing and Community Services,20123,Cemeteries,D2513,Hired and Contracted services,15.62,Safe Water.io,Hired and contracted services - Legionella Sampling and Monitoring,2033929,202204
Rother District Council,29/06/2022,031RESOURCES,Chief Executive & Corporate Core,20173,Administrative Offices - Town Hall,D2513,Hired and Contracted services,23.43,Safe Water.io,Hired and contracted services - Legionella Sampling and Monitoring,2033929,202204
Rother District Council,29/06/2022,031RESOURCES,Chief Executive & Corporate Core,20176,Administrative Offices - Print Room,D2513,Hired and Contracted services,15.62,Safe Water.io,Hired and contracted services - Legionella Sampling and Monitoring,2033929,202204
Rother District Council,29/06/2022,081ACQUISIT,"Acquisitions, Transformation and Regeneration",20154,Committee Property Account,D2513,Hired and Contracted services,15.62,Safe Water.io,Hired and contracted services - Legionella Sampling and Monitoring,2033929,202204
Rother District Council,29/06/2022,081ACQUISIT,"Acquisitions, Transformation and Regeneration",20151,Udimore Workshops,D2513,Hired and Contracted services,15.62,Safe Water.io,Hired and contracted services - Legionella Sampling and Monitoring,2033929,202204
Rother District Council,29/06/2022,081ACQUISIT,"Acquisitions, Transformation and Regeneration",20153,"Elva Business Centre, Bexhill",D2513,Hired and Contracted services,15.62,Safe Water.io,Hired and contracted services - Legionella Sampling and Monitoring,2033929,202204
Rother District Council,29/06/2022,031RESOURCES,Chief Executive & Corporate Core,20163,District Council Elections,D2513,Hired and Contracted services,250.00,St Mary�s Community Hall Management Committee,Hired and Contracted services,2034078,202204
Rother District Council,29/06/2022,101RESOURCES,Resources,20207,Reliefs & Benefits-Housing Benefit,D2639,Departmental Systems,"14,644.88",Capita Business Services Ltd,Departmental Systems - Software for Academy System,2034227,202204
Rother District Council,29/06/2022,101RESOURCES,Resources,20216,Cost Of Collection,D2639,Departmental Systems,"14,644.89",Capita Business Services Ltd,Departmental Systems - Software for Academy System,2034227,202204
Rother District Council,30/06/2022,091HOUSING,Housing and Community Services,20137,Car Parks,D1201,Equipment & Materials,880.00,Roadside Technologies Ltd,Equipment & Materials - Car Parks various,2035281,202205
Rother District Council,30/06/2022,091HOUSING,Housing and Community Services,20261,"TA Purchases (prev - 41 Jameson Mews, Bexhill on Sea)",D2513,Hired and Contracted services,95.00,Titanium Facilities Management,Hired and contracted services - Service fee paid,2034418,202204
Rother District Council,30/06/2022,999NOREPORT,Housing and Community Services,70725,Capital - Blackfriars,N1004,Architects & Consultant Fees,595.00,GTA Civils Ltd,Architects & Consultant Fees Capital-Architect and Conslt Fees,2034074,202204
Rother District Council,30/06/2022,041ENVIRON,Environmental Services,32142,EH Taxi and Private Hire Licenses R + W Partnership,D2513,Hired and Contracted services,38.00,DBS The Disclosure and Barring Service,Hired and contracted services - Service fee paid,2034081,202204
Rother District Council,30/06/2022,081ACQUISIT,"Acquisitions, Transformation and Regeneration",20267,Property Investment Strategy - 18-40 Beeching Road ( Land and Buildings),B2422,Sewerage,24.66,Scottish Water Business Stream Limited,Sewerage - Sewerage Charges,2033988,202204
Rother District Council,30/06/2022,101RESOURCES,Resources,20314,Payments to Ukrainian guests,D2513,Hired and Contracted services,-20.20,Post Office Ltd,Hired and contracted services - Service fee paid,2033981,202204
Rother District Council,30/06/2022,091HOUSING,Housing and Community Services,20206,UK Resettlement (Syrians),D2513,Hired and Contracted services,603.86,247 Transport Solutions Ltd,Hired and contracted services - Syrian Resettlement Programme-Travel,2034924,202205
Rother District Council,30/06/2022,091HOUSING,Housing and Community Services,20200,Housing Needs - HB (Housing Benefit),D2513,Hired and Contracted services,10.00,247 Transport Solutions Ltd,Hired and Contracted services,2034045,202204
Rother District Council,30/06/2022,091HOUSING,Housing and Community Services,20200,Housing Needs - HB (Housing Benefit),D2513,Hired and Contracted services,82.10,247 Transport Solutions Ltd,Hired and Contracted services,2034045,202204
Rother District Council,30/06/2022,091HOUSING,Housing and Community Services,20200,Housing Needs - HB (Housing Benefit),D2514,Accommodation Costs,20.17,247 Transport Solutions Ltd,Accommodation Costs,2034045,202204
Rother District Council,30/06/2022,091HOUSING,Housing and Community Services,20200,Housing Needs - HB (Housing Benefit),D2514,Accommodation Costs,4.75,247 Transport Solutions Ltd,Accommodation Costs,2034045,202204
Rother District Council,30/06/2022,071STRAT,Strategy and Planning,20246,Planning Applications,D2519,Statutory Advertising,640.50,National World Publishing Ltd,Statutory Advertising - Planadv - Rye+Battle Observer,2034028,202204
Rother District Council,30/06/2022,091HOUSING,Housing and Community Services,20145,Maintenance Services,C1104,Derv,114.13,Allstar Business Solutions,Derv,2034950,202205
Rother District Council,30/06/2022,091HOUSING,Housing and Community Services,20200,Housing Needs - HB (Housing Benefit),D2514,Accommodation Costs,223.21,Union Property MGMT Ltd,Accommodation Costs,2034079,202204
Rother District Council,30/06/2022,091HOUSING,Housing and Community Services,20114,Bexhill Parks & Open Spaces,B1100,Repairs to Premises,"4,522.00",Sportsmark Group ltd,Repairs to Premises - Parks- Sports Equipment,2034861,202205
Rother District Council,30/06/2022,101RESOURCES,Resources,20216,Cost Of Collection,D2513,Hired and Contracted services,"1,044.99",DSI Billing Services Ltd,Hired and contracted services - DSI Billing Printing,2034096,202204
Rother District Council,30/06/2022,031RESOURCES,Chief Executive & Corporate Core,20171,Human Resources,D2513,Hired and Contracted services,49.04,Computershare Voucher Services,Hired and contracted services - Child Care Voucher Service Charge,2034209,202204
Rother District Council,30/06/2022,999NOREPORT,Resources,90000,Balance sheet all accounts,T1002,Childcare Vouchers,613.00,Computershare Voucher Services,Childcare Vouchers,2034209,202204
Rother District Council,30/06/2022,091HOUSING,Housing and Community Services,20114,Bexhill Parks & Open Spaces,B1100,Repairs to Premises,270.00,Foxhills Tree Services Ltd,Repairs to Premises - Parks - Tree Works,2033996,202204
Rother District Council,30/06/2022,091HOUSING,Housing and Community Services,20108,Bexhill Promenade & Foreshore,D2513,Hired and Contracted services,100.00,Meridian Toilet Hire,Hired and contracted services - Service fee paid,2034007,202204
Rother District Council,30/06/2022,091HOUSING,Housing and Community Services,20329,Rough Sleeping Initiative,D2514,Accommodation Costs,330.00,Solutions Accommodation Providers Ltd,Accommodation Costs,2034034,202204
Rother District Council,30/06/2022,091HOUSING,Housing and Community Services,20329,Rough Sleeping Initiative,D2514,Accommodation Costs,"1,320.00",Solutions Accommodation Providers Ltd,Accommodation Costs,2034034,202204
Rother District Council,30/06/2022,999NOREPORT,"Acquisitions, Transformation and Regeneration ",70759,Capital - Town Hall Renaissance Project,N1004,Architects & Consultant Fees,"22,805.00",Austin-Smith:Lord Ltd,Architects & Consultant Fees Capital-Architect and Conslt Fees,2034019,202204
Rother District Council,30/06/2022,091HOUSING,Housing and Community Services,20102,Rother Museum Services,B2201,Electricity,"2,002.13",Bexhill Museum Ltd,Electricity - Electricity Charges,2034115,202204
Rother District Council,30/06/2022,091HOUSING,Housing and Community Services,20114,Bexhill Parks & Open Spaces,B2201,Electricity,68.11,Bexhill Museum Ltd,Electricity - Electricity Charges,2034115,202204
Rother District Council,30/06/2022,091HOUSING,Housing and Community Services,20128,Public Conveniences,B2201,Electricity,204.76,Bexhill Museum Ltd,Electricity - Electricity Charges,2034115,202204
Rother District Council,30/06/2022,041ENVIRON,Environmental Services,32136,EH Pest Control R + W Partnership,C1104,Derv,3.80,Allstar Business Solutions,Derv - Fuel Service fee payable on fuel cards,2034950,202205
Rother District Council,30/06/2022,041ENVIRON,Environmental Services,32136,EH Pest Control R + W Partnership,C1104,Derv,65.42,Allstar Business Solutions,Derv,2034950,202205
Rother District Council,30/06/2022,041ENVIRON,Environmental Services,32136,EH Pest Control R + W Partnership,C1104,Derv,70.83,Allstar Business Solutions,Derv,2034950,202205
Rother District Council,30/06/2022,999NOREPORT,Housing and Community Services,70714,Capital - Community Grants,N1011,Capital Grants,500.00,Sedlescombe Parish Council,Capital Grants - Community Grants Scheme,2033978,202204
Rother District Council,30/06/2022,041ENVIRON,Environmental Services,32133,EH Food Hyg / Idc / Water Purity R + W Partnership,D2513,Hired and Contracted services,292.50,Battle Methodist Church,Hired and contracted services - Service fee paid,2033983,202204
Rother District Council,30/06/2022,091HOUSING,Housing and Community Services,20206,UK Resettlement (Syrians),D2513,Hired and Contracted services,118.80,Vandu Language Services Ltd,Hired and contracted services - Syrian Misc,2034062,202204
Rother District Council,30/06/2022,091HOUSING,Housing and Community Services,20206,UK Resettlement (Syrians),D2513,Hired and Contracted services,394.80,Vandu Language Services Ltd,Hired and contracted services - Syrian Misc,2034063,202204
Rother District Council,30/06/2022,091HOUSING,Housing and Community Services,20200,Housing Needs - HB (Housing Benefit),D2514,Accommodation Costs,"1,350.00",Investco Properties Ltd,Accommodation Costs,2034025,202204
Rother District Council,30/06/2022,091HOUSING,Housing and Community Services,20329,Rough Sleeping Initiative,D2514,Accommodation Costs,212.50,Union Property MGMT Ltd,Accommodation Costs,2034079,202204
Rother District Council,30/06/2022,091HOUSING,Housing and Community Services,20200,Housing Needs - HB (Housing Benefit),D2514,Accommodation Costs,420.00,Solutions Accommodation Providers Ltd,Accommodation Costs,2034033,202204
Rother District Council,30/06/2022,091HOUSING,Housing and Community Services,20200,Housing Needs - HB (Housing Benefit),D2514,Accommodation Costs,"1,680.00",Solutions Accommodation Providers Ltd,Accommodation Costs,2034033,202204
Rother District Council,30/06/2022,999NOREPORT,Housing and Community Services,70714,Capital - Community Grants,N1011,Capital Grants,500.00,Ashburnham and  Penhurst Parish Council,Capital Grants - Community Grants Scheme,2034399,202204
Rother District Council,30/06/2022,091HOUSING,Housing and Community Services,20200,Housing Needs - HB (Housing Benefit),D2514,Accommodation Costs,262.50,Union Property MGMT Ltd,Accommodation Costs,2034079,202204
Rother District Council,30/06/2022,091HOUSING,Housing and Community Services,20114,Bexhill Parks & Open Spaces,D2513,Hired and Contracted services,"4,628.50",Land Science Ltd,Hired and contracted services - Parks-Consultants Fees,2034234,202204
Rother District Council,30/06/2022,091HOUSING,Housing and Community Services,20114,Bexhill Parks & Open Spaces,D2513,Hired and Contracted services,"2,735.00",Land Science Ltd,Hired and contracted services - Parks-Consultants Fees,2034234,202204
Rother District Council,30/06/2022,999NOREPORT,Housing and Community Services,70737,Capital � Barnhorn Green,N1004,Architects & Consultant Fees,"3,000.00",Potter Raper Ltd,Architects & Consultant Fees Capital-Architect and Conslt Fees,2033986,202204
Rother District Council,30/06/2022,999NOREPORT,Housing and Community Services,70737,Capital � Barnhorn Green,N1004,Architects & Consultant Fees,"16,035.05",R H Partnership Architects Ltd,Architects & Consultant Fees Capital-Architect and Conslt Fees,2034219,202204
Rother District Council,30/06/2022,999NOREPORT,Housing and Community Services,70737,Capital � Barnhorn Green,N1004,Architects & Consultant Fees,500.50,R H Partnership Architects Ltd,Architects & Consultant Fees Capital-Architect and Conslt Fees,2034220,202204
Rother District Council,30/06/2022,999NOREPORT,Housing and Community Services,70737,Capital � Barnhorn Green,N1004,Architects & Consultant Fees,"8,435.00",R H Partnership Architects Ltd,Architects & Consultant Fees Capital-Architect and Conslt Fees,2034218,202204
Rother District Council,30/06/2022,091HOUSING,Housing and Community Services,20200,Housing Needs - HB (Housing Benefit),D2513,Hired and Contracted services,"2,625.00",LHS Locata (Housing Services) Ltd,Hired and Contracted services,2034391,202204
Rother District Council,30/06/2022,091HOUSING,Housing and Community Services,20200,Housing Needs - HB (Housing Benefit),D2514,Accommodation Costs,180.00,Solutions Accommodation Providers Ltd,Accommodation Costs,2034032,202204
Rother District Council,30/06/2022,091HOUSING,Housing and Community Services,20145,Maintenance Services,C1104,Derv,112.50,Allstar Business Solutions,Derv,2034950,202205
Rother District Council,30/06/2022,091HOUSING,Housing and Community Services,20133,Refuse Collection,E2302,Third party payment private contractors,"1,746.94",CFH Docmail Ltd,Third party payment private contractors - Payments to Contractor,2035009,202205
Rother District Council,30/06/2022,091HOUSING,Housing and Community Services,20133,Refuse Collection,E2302,Third party payment private contractors,349.91,Biffa Waste Services Ltd,Third party payment private contractors - Waste Collection Contract Variable cost to RDC,2034020,202204
Rother District Council,30/06/2022,999NOREPORT,"Acquisitions, Transformation and Regeneration ",70759,Capital - Town Hall Renaissance Project,N1004,Architects & Consultant Fees,"6,750.00",Ingleton Wood LLP,Architects & Consultant Fees Capital-Architect and Conslt Fees,2034065,202204
Rother District Council,30/06/2022,999NOREPORT,Housing and Community Services,70751,Capital - Temporary Accommodation,N1005,Other fees,95.00,Titanium Facilities Management,Other Fees - Capital exp Std VAT,2034133,202204
Rother District Council,30/06/2022,999NOREPORT,"Acquisitions, Transformation and Regeneration ",70768,Capital - Improvements to existing Bexhill leisure centre and pool,N1008,Equipment,"6,213.69",Freedom Leisure,Capital - Purchase of Equipment,2034167,202204
Rother District Council,30/06/2022,101RESOURCES,Resources,20239,Computer Services,D2631,Computer Equip Maintenance,"12,300.00",Cavendish Communications Limited,Computer Equip Maintenance - Maintenance of Network Equipment,2034307,202204
Rother District Council,30/06/2022,091HOUSING,Housing and Community Services,20108,Bexhill Promenade & Foreshore,B2611,Contract cleaning,126.00,Abacus Main Ltd,Contract cleaning - Office Cleaning,2034170,202204
Rother District Council,30/06/2022,091HOUSING,Housing and Community Services,20138,Residual Highway Services,B2611,Contract cleaning,500.00,Abacus Main Ltd,Contract cleaning - Bus Shelter Cleaning Contract,2034169,202204
Rother District Council,30/06/2022,999NOREPORT,"Acquisitions, Transformation and Regeneration ",70759,Capital - Town Hall Renaissance Project,N1004,Architects & Consultant Fees,"4,300.00",Robinson Low Francis LLP,Architects & Consultant Fees Capital-Architect and Conslt Fees,2034100,202204
Rother District Council,30/06/2022,999NOREPORT,"Acquisitions, Transformation and Regeneration ",70759,Capital - Town Hall Renaissance Project,N1004,Architects & Consultant Fees,"1,050.00",Robinson Low Francis LLP,Architects & Consultant Fees Capital-Architect and Conslt Fees,2034099,202204
Rother District Council,30/06/2022,081ACQUISIT,"Acquisitions, Transformation and Regeneration",20136,Regeneration,D2513,Hired and Contracted services,"6,700.00",Robinson Low Francis LLP,Hired and contracted services - levelling up spend,2034123,202204
Rother District Council,30/06/2022,091HOUSING,Housing and Community Services,20145,Maintenance Services,D2513,Hired and Contracted services,365.00,R French and  Son Ltd,Hired and contracted services - Hire of Skip,2034233,202204
Rother District Council,30/06/2022,071STRAT,Strategy and Planning,20246,Planning Applications,A1110,Agency Staff,928.00,Carrington West Ltd,Agency Staff,2033985,202204
Rother District Council,30/06/2022,999NOREPORT,"Acquisitions, Transformation and Regeneration ",70736,Capital - 18-40 Beeching Close Refurbishment,N1003,Construction/Conversion,"5,807.17",Alfa Electric Ltd,Construction/Conversion Capital-Contract Payments - General,2034243,202204
Rother District Council,30/06/2022,091HOUSING,Housing and Community Services,20329,Rough Sleeping Initiative,D2514,Accommodation Costs,"1,470.00",LESSHOMELESS LTD,Accommodation Costs,2034012,202204
Rother District Council,30/06/2022,031RESOURCES,Chief Executive & Corporate Core,20173,Administrative Offices - Town Hall,B1100,Repairs to Premises,45.00,Alfa Electric Ltd,Repairs to Premises - Repairs - Electrical Works,2034322,202204
Rother District Council,30/06/2022,091HOUSING,Housing and Community Services,20128,Public Conveniences,B1100,Repairs to Premises,212.00,Specialist Hygiene Services Ltd,Repairs to Premises - Drainage Clearance,2034177,202205
Rother District Council,30/06/2022,091HOUSING,Housing and Community Services,20128,Public Conveniences,B1100,Repairs to Premises,"1,729.75",Specialist Hygiene Services Ltd,Repairs to Premises - Public Conveniences - Various repairs,2034177,202205
Rother District Council,30/06/2022,091HOUSING,Housing and Community Services,20128,Public Conveniences,D1201,Equipment & Materials,911.70,Specialist Hygiene Services Ltd,Equipment & Materials - PCs Equipment,2034303,202205
Rother District Council,30/06/2022,999NOREPORT,"Acquisitions, Transformation and Regeneration ",70759,Capital - Town Hall Renaissance Project,N1004,Architects & Consultant Fees,450.00,Ruskins Trees & Landscapes Ltd,Architects & Consultant Fees Capital-Architect and Conslt Fees,2035347,202205
Rother District Council,30/06/2022,091HOUSING,Housing and Community Services,20137,Car Parks,D2513,Hired and Contracted services,"2,492.58",Jade Security Services Ltd,Hired and contracted services - Cash Security Fees-Car Parks,2034242,202205
Rother District Council,30/06/2022,999NOREPORT,Housing and Community Services,70762,Capital - Bexhill Promenade Shelter One,D2513,Hired and Contracted services,100.00,Impact Scaffolding Ltd,Hired and contracted services - Service fee paid,2034016,202204
Rother District Council,30/06/2022,091HOUSING,Housing and Community Services,20108,Bexhill Promenade & Foreshore,D2513,Hired and Contracted services,100.00,Impact Scaffolding Ltd,Hired and contracted services - Service fee paid,2034015,202204
Rother District Council,30/06/2022,091HOUSING,Housing and Community Services,20200,Housing Needs - HB (Housing Benefit),D2508,Removals and Storage,468.57,Chapmans of Hastings,Removals and Storage,2033953,202204
Rother District Council,30/06/2022,091HOUSING,Housing and Community Services,20200,Housing Needs - HB (Housing Benefit),D2514,Accommodation Costs,"1,350.00",Investco Properties Ltd,Accommodation Costs,2034025,202204
Rother District Council,30/06/2022,999NOREPORT,"Acquisitions, Transformation and Regeneration ",70759,Capital - Town Hall Renaissance Project,N1004,Architects & Consultant Fees,450.00,Ruskins Trees & Landscapes Ltd,Architects & Consultant Fees Capital-Architect and Conslt Fees,2033997,202205
Rother District Council,30/06/2022,031RESOURCES,Chief Executive & Corporate Core,20162,Electoral Registration,D2415,Printing by external suppliers,732.52,Civica Election Services Ltd,Printing by external suppliers - Printing (Not from RDC Print Room),2033949,202204
Rother District Council,01/07/2022,091HOUSING,Housing and Community Services,20128,Public Conveniences,B2611,Contract cleaning,977.16,Specialist Hygiene Services Ltd,Contract cleaning - Public Conveniences Cleaning Servic,2034138,202204
Rother District Council,01/07/2022,091HOUSING,Housing and Community Services,20128,Public Conveniences,B2611,Contract cleaning,864.35,Specialist Hygiene Services Ltd,Contract cleaning - Public Conveniences Cleaning Servic,2034138,202204
Rother District Council,01/07/2022,091HOUSING,Housing and Community Services,20128,Public Conveniences,B2611,Contract cleaning,228.06,Specialist Hygiene Services Ltd,Contract cleaning - Public Conveniences Cleaning Servic,2034138,202204
Rother District Council,01/07/2022,091HOUSING,Housing and Community Services,20128,Public Conveniences,B2611,Contract cleaning,814.25,Specialist Hygiene Services Ltd,Contract cleaning - Public Conveniences Cleaning Servic,2034138,202204
Rother District Council,01/07/2022,091HOUSING,Housing and Community Services,20128,Public Conveniences,B2611,Contract cleaning,586.30,Specialist Hygiene Services Ltd,Contract cleaning - Public Conveniences Cleaning Servic,2034138,202204
Rother District Council,01/07/2022,091HOUSING,Housing and Community Services,20128,Public Conveniences,B2611,Contract cleaning,977.16,Specialist Hygiene Services Ltd,Contract cleaning - Public Conveniences Cleaning Servic,2034138,202204
Rother District Council,01/07/2022,091HOUSING,Housing and Community Services,20128,Public Conveniences,B2611,Contract cleaning,586.30,Specialist Hygiene Services Ltd,Contract cleaning - Public Conveniences Cleaning Servic,2034138,202204
Rother District Council,01/07/2022,091HOUSING,Housing and Community Services,20128,Public Conveniences,B2611,Contract cleaning,716.48,Specialist Hygiene Services Ltd,Contract cleaning - Public Conveniences Cleaning Servic,2034138,202204
Rother District Council,01/07/2022,091HOUSING,Housing and Community Services,20128,Public Conveniences,B2611,Contract cleaning,325.72,Specialist Hygiene Services Ltd,Contract cleaning - Public Conveniences Cleaning Servic,2034138,202204
Rother District Council,01/07/2022,091HOUSING,Housing and Community Services,20128,Public Conveniences,B2611,Contract cleaning,390.87,Specialist Hygiene Services Ltd,Contract cleaning - Public Conveniences Cleaning Servic,2034138,202204
Rother District Council,01/07/2022,091HOUSING,Housing and Community Services,20128,Public Conveniences,B2611,Contract cleaning,683.97,Specialist Hygiene Services Ltd,Contract cleaning - Public Conveniences Cleaning Servic,2034138,202204
Rother District Council,01/07/2022,091HOUSING,Housing and Community Services,20128,Public Conveniences,B2611,Contract cleaning,618.83,Specialist Hygiene Services Ltd,Contract cleaning - Public Conveniences Cleaning Servic,2034138,202204
Rother District Council,01/07/2022,091HOUSING,Housing and Community Services,20128,Public Conveniences,B2611,Contract cleaning,293.10,Specialist Hygiene Services Ltd,Contract cleaning - Public Conveniences Cleaning Servic,2034138,202204
Rother District Council,01/07/2022,091HOUSING,Housing and Community Services,20128,Public Conveniences,B2611,Contract cleaning,651.34,Specialist Hygiene Services Ltd,Contract cleaning - Public Conveniences Cleaning Servic,2034138,202204
Rother District Council,01/07/2022,091HOUSING,Housing and Community Services,20128,Public Conveniences,B2611,Contract cleaning,358.25,Specialist Hygiene Services Ltd,Contract cleaning - Public Conveniences Cleaning Servic,2034138,202204
Rother District Council,01/07/2022,091HOUSING,Housing and Community Services,20128,Public Conveniences,B2611,Contract cleaning,586.30,Specialist Hygiene Services Ltd,Contract cleaning - Public Conveniences Cleaning Servic,2034138,202204
Rother District Council,01/07/2022,091HOUSING,Housing and Community Services,20128,Public Conveniences,B2611,Contract cleaning,863.74,Specialist Hygiene Services Ltd,Contract cleaning - Public Conveniences Cleaning Servic,2034138,202204
Rother District Council,01/07/2022,091HOUSING,Housing and Community Services,20128,Public Conveniences,B2611,Contract cleaning,"1,413.89",Specialist Hygiene Services Ltd,Contract cleaning - Public Conveniences Cleaning Servic,2034138,202204
Rother District Council,01/07/2022,091HOUSING,Housing and Community Services,20128,Public Conveniences,B2611,Contract cleaning,550.04,Specialist Hygiene Services Ltd,Contract cleaning - Public Conveniences Cleaning Servic,2034138,202204
Rother District Council,01/07/2022,091HOUSING,Housing and Community Services,20128,Public Conveniences,B2611,Contract cleaning,"1,079.58",Specialist Hygiene Services Ltd,Contract cleaning - Public Conveniences Cleaning Servic,2034138,202204
Rother District Council,01/07/2022,091HOUSING,Housing and Community Services,20128,Public Conveniences,B2611,Contract cleaning,"1,432.67",Specialist Hygiene Services Ltd,Contract cleaning - Public Conveniences Cleaning Servic,2034138,202204
Rother District Council,01/07/2022,091HOUSING,Housing and Community Services,20128,Public Conveniences,B2611,Contract cleaning,"1,432.67",Specialist Hygiene Services Ltd,Contract cleaning - Public Conveniences Cleaning Servic,2034138,202204
Rother District Council,01/07/2022,091HOUSING,Housing and Community Services,20128,Public Conveniences,B2611,Contract cleaning,"2,036.86",Specialist Hygiene Services Ltd,Contract cleaning - Public Conveniences Cleaning Servic,2034138,202204
Rother District Council,01/07/2022,091HOUSING,Housing and Community Services,20128,Public Conveniences,B2611,Contract cleaning,450.96,Specialist Hygiene Services Ltd,Contract cleaning - Public Conveniences Cleaning Servic,2034138,202204
Rother District Council,01/07/2022,091HOUSING,Housing and Community Services,20128,Public Conveniences,B2611,Contract cleaning,375.81,Specialist Hygiene Services Ltd,Contract cleaning - Public Conveniences Cleaning Servic,2034138,202204
Rother District Council,01/07/2022,091HOUSING,Housing and Community Services,20128,Public Conveniences,B2611,Contract cleaning,413.39,Specialist Hygiene Services Ltd,Contract cleaning - Public Conveniences Cleaning Servic,2034138,202204
Rother District Council,01/07/2022,091HOUSING,Housing and Community Services,20128,Public Conveniences,B2611,Contract cleaning,196.04,Specialist Hygiene Services Ltd,Contract cleaning - Public Conveniences Cleaning Servic,2034138,202204
Rother District Council,01/07/2022,091HOUSING,Housing and Community Services,20128,Public Conveniences,B2611,Contract cleaning,130.68,Specialist Hygiene Services Ltd,Contract cleaning - Public Conveniences Cleaning Servic,2034138,202204
Rother District Council,01/07/2022,091HOUSING,Housing and Community Services,20107,Camber Beach & Foreshore,D2621,Telephones,52.95,Beaming Ltd,Telephones - Broadband Connection,2034948,202205
Rother District Council,01/07/2022,091HOUSING,Housing and Community Services,20102,Rother Museum Services,D2621,Telephones,19.48,Daisy Communications PLC,Telephones,2034128,202205
Rother District Council,01/07/2022,091HOUSING,Housing and Community Services,20107,Camber Beach & Foreshore,D2621,Telephones,40.04,Daisy Communications PLC,Telephones,2034128,202205
Rother District Council,01/07/2022,031RESOURCES,Chief Executive & Corporate Core,20180,Emergency Planning,D2621,Telephones,19.48,Daisy Communications PLC,Telephones,2034128,202205
Rother District Council,01/07/2022,101RESOURCES,Resources,20239,Computer Services,D2621,Telephones,38.96,Daisy Communications PLC,Telephones,2034128,202205
Rother District Council,01/07/2022,101RESOURCES,Resources,20242,Communications-Phones,D2621,Telephones,97.40,Daisy Communications PLC,Telephones,2034128,202205
Rother District Council,01/07/2022,101RESOURCES,Resources,20239,Computer Services,D2635,Computer Licences,"44,460.88",Granicus-Firmstep Ltd,Computer Licences - Domain Name Renewal,2034053,202204
Rother District Council,01/07/2022,041ENVIRON,Environmental Services,32134,EH Pollution R + W Partnership,D2621,Telephones,19.43,Daisy Communications PLC,Telephones,2034128,202205
Rother District Council,01/07/2022,081ACQUISIT,"Acquisitions, Transformation and Regeneration",20308,Amherst Road,B1100,Repairs to Premises,519.88,ADT Fire and  Security Plc,Repairs to Premises - Intruder Alarm System Monitor/Maint,2034313,202204
Rother District Council,01/07/2022,091HOUSING,Housing and Community Services,20137,Car Parks,D2513,Hired and Contracted services,"6,063.67",Park Now Ltd,Hired and contracted services - Car Parks-RingGo service charges,2034249,202204
Rother District Council,01/07/2022,091HOUSING,Housing and Community Services,20145,Maintenance Services,D1201,Equipment & Materials,16.66,Trade UK Account (Screwfix & B&Q),Equipment & Materials - Purchase of Tools,2034029,202204
Rother District Council,01/07/2022,101RESOURCES,Resources,20242,Communications-Phones,D2621,Telephones,776.05,GCI National Business / Nasstar,Telephones - KCOM Smartnumber Charges,2034157,202205
Rother District Council,01/07/2022,101RESOURCES,Resources,20242,Communications-Phones,D2621,Telephones,26.00,GCI National Business / Nasstar,Telephones - KCOM Smartnumber Charges,2034158,202205
Rother District Council,01/07/2022,101RESOURCES,Resources,20242,Communications-Phones,D2621,Telephones,"9,916.14",GCI National Business / Nasstar,Telephones - KCOM Smartnumber Charges,2034159,202206
Rother District Council,01/07/2022,101RESOURCES,Resources,20209,Corporate management,D2513,Hired and Contracted services,20.09,Merchant Rentals Ltd,Hired and contracted services - Streamline Machine-Rental,2034257,202204
Rother District Council,01/07/2022,091HOUSING,Housing and Community Services,20145,Maintenance Services,C1101,Vehicle Repairs & Servicing,522.00,Asset Monitoring Solutions Group (UK) Ltd,Vehicle Repairs & Servicing,2034067,202204
Rother District Council,01/07/2022,071STRAT,Strategy and Planning,20259,Land Charges,D2632,Additional Computer Equipment,"1,741.69",Ocella Ltd,Additional Computer Equipment - OCELLA Amendments/Upgrading,2033991,202204
Rother District Council,01/07/2022,101RESOURCES,Resources,20242,Communications-Phones,D2622,Mobile Phones,780.78,Telefonica UK Ltd,Mobile Phones - Purchase of mobile phones,2034030,202204
Rother District Council,01/07/2022,101RESOURCES,Resources,20209,Corporate management,D2513,Hired and Contracted services,838.20,Lloyds Bank,Bank Charges,2034970,202205
Rother District Council,01/07/2022,101RESOURCES,Resources,20209,Corporate management,D2513,Hired and Contracted services,20.00,Lloyds Bank,Bank Charges,2034960,202205
Rother District Council,01/07/2022,101RESOURCES,Resources,20209,Corporate management,D2513,Hired and Contracted services,20.00,Lloyds Bank,Bank Charges,2034963,202205
Rother District Council,01/07/2022,101RESOURCES,Resources,20313,Council Tax Energy Rebate Scheme,D2923,Grants made,150.00,REDACTED PERSONAL DATA,Grants made,2033967,202204
Rother District Council,01/07/2022,101RESOURCES,Resources,20313,Council Tax Energy Rebate Scheme,D2923,Grants made,150.00,REDACTED PERSONAL DATA,Grants made,2033967,202204
Rother District Council,01/07/2022,101RESOURCES,Resources,20313,Council Tax Energy Rebate Scheme,D2923,Grants made,150.00,REDACTED PERSONAL DATA,Grants made,2033967,202204
Rother District Council,01/07/2022,101RESOURCES,Resources,20313,Council Tax Energy Rebate Scheme,D2923,Grants made,150.00,REDACTED PERSONAL DATA,Grants made,2033967,202204
Rother District Council,01/07/2022,101RESOURCES,Resources,20313,Council Tax Energy Rebate Scheme,D2923,Grants made,150.00,REDACTED PERSONAL DATA,Grants made,2033967,202204
Rother District Council,01/07/2022,101RESOURCES,Resources,20313,Council Tax Energy Rebate Scheme,D2923,Grants made,150.00,REDACTED PERSONAL DATA,Grants made,2033967,202204
Rother District Council,01/07/2022,101RESOURCES,Resources,20313,Council Tax Energy Rebate Scheme,D2923,Grants made,150.00,REDACTED PERSONAL DATA,Grants made,2033967,202204
Rother District Council,01/07/2022,101RESOURCES,Resources,20313,Council Tax Energy Rebate Scheme,D2923,Grants made,150.00,REDACTED PERSONAL DATA,Grants made,2033967,202204
Rother District Council,01/07/2022,101RESOURCES,Resources,20313,Council Tax Energy Rebate Scheme,D2923,Grants made,150.00,REDACTED PERSONAL DATA,Grants made,2033967,202204
Rother District Council,01/07/2022,101RESOURCES,Resources,20313,Council Tax Energy Rebate Scheme,D2923,Grants made,150.00,REDACTED PERSONAL DATA,Grants made,2033967,202204
Rother District Council,01/07/2022,101RESOURCES,Resources,20313,Council Tax Energy Rebate Scheme,D2923,Grants made,150.00,REDACTED PERSONAL DATA,Grants made,2033967,202204
Rother District Council,01/07/2022,101RESOURCES,Resources,20313,Council Tax Energy Rebate Scheme,D2923,Grants made,150.00,REDACTED PERSONAL DATA,Grants made,2033967,202204
Rother District Council,01/07/2022,101RESOURCES,Resources,20313,Council Tax Energy Rebate Scheme,D2923,Grants made,150.00,REDACTED PERSONAL DATA,Grants made,2033967,202204
Rother District Council,01/07/2022,101RESOURCES,Resources,20313,Council Tax Energy Rebate Scheme,D2923,Grants made,150.00,REDACTED PERSONAL DATA,Grants made,2033967,202204
Rother District Council,01/07/2022,101RESOURCES,Resources,20313,Council Tax Energy Rebate Scheme,D2923,Grants made,150.00,REDACTED PERSONAL DATA,Grants made,2033967,202204
Rother District Council,01/07/2022,101RESOURCES,Resources,20313,Council Tax Energy Rebate Scheme,D2923,Grants made,150.00,REDACTED PERSONAL DATA,Grants made,2033967,202204
Rother District Council,01/07/2022,101RESOURCES,Resources,20313,Council Tax Energy Rebate Scheme,D2923,Grants made,150.00,REDACTED PERSONAL DATA,Grants made,2033967,202204
Rother District Council,01/07/2022,101RESOURCES,Resources,20313,Council Tax Energy Rebate Scheme,D2923,Grants made,150.00,REDACTED PERSONAL DATA,Grants made,2033967,202204
Rother District Council,01/07/2022,101RESOURCES,Resources,20313,Council Tax Energy Rebate Scheme,D2923,Grants made,150.00,REDACTED PERSONAL DATA,Grants made,2033967,202204
Rother District Council,01/07/2022,101RESOURCES,Resources,20313,Council Tax Energy Rebate Scheme,D2923,Grants made,150.00,REDACTED PERSONAL DATA,Grants made,2033967,202204
Rother District Council,01/07/2022,101RESOURCES,Resources,20313,Council Tax Energy Rebate Scheme,D2923,Grants made,150.00,REDACTED PERSONAL DATA,Grants made,2033967,202204
Rother District Council,01/07/2022,101RESOURCES,Resources,20313,Council Tax Energy Rebate Scheme,D2923,Grants made,150.00,REDACTED PERSONAL DATA,Grants made,2033967,202204
Rother District Council,01/07/2022,101RESOURCES,Resources,20313,Council Tax Energy Rebate Scheme,D2923,Grants made,150.00,REDACTED PERSONAL DATA,Grants made,2033967,202204
Rother District Council,01/07/2022,101RESOURCES,Resources,20313,Council Tax Energy Rebate Scheme,D2923,Grants made,150.00,REDACTED PERSONAL DATA,Grants made,2033967,202204
Rother District Council,01/07/2022,101RESOURCES,Resources,20313,Council Tax Energy Rebate Scheme,D2923,Grants made,150.00,REDACTED PERSONAL DATA,Grants made,2033967,202204
Rother District Council,01/07/2022,101RESOURCES,Resources,20313,Council Tax Energy Rebate Scheme,D2923,Grants made,150.00,REDACTED PERSONAL DATA,Grants made,2033967,202204
Rother District Council,01/07/2022,101RESOURCES,Resources,20313,Council Tax Energy Rebate Scheme,D2923,Grants made,150.00,REDACTED PERSONAL DATA,Grants made,2033967,202204
Rother District Council,01/07/2022,101RESOURCES,Resources,20313,Council Tax Energy Rebate Scheme,D2923,Grants made,150.00,REDACTED PERSONAL DATA,Grants made,2033967,202204
Rother District Council,01/07/2022,101RESOURCES,Resources,20313,Council Tax Energy Rebate Scheme,D2923,Grants made,150.00,REDACTED PERSONAL DATA,Grants made,2033967,202204
Rother District Council,01/07/2022,101RESOURCES,Resources,20313,Council Tax Energy Rebate Scheme,D2923,Grants made,150.00,REDACTED PERSONAL DATA,Grants made,2033967,202204
Rother District Council,01/07/2022,101RESOURCES,Resources,20313,Council Tax Energy Rebate Scheme,D2923,Grants made,150.00,REDACTED PERSONAL DATA,Grants made,2033967,202204
Rother District Council,01/07/2022,101RESOURCES,Resources,20313,Council Tax Energy Rebate Scheme,D2923,Grants made,150.00,REDACTED PERSONAL DATA,Grants made,2033967,202204
Rother District Council,01/07/2022,101RESOURCES,Resources,20313,Council Tax Energy Rebate Scheme,D2923,Grants made,150.00,REDACTED PERSONAL DATA,Grants made,2033967,202204
Rother District Council,01/07/2022,101RESOURCES,Resources,20313,Council Tax Energy Rebate Scheme,D2923,Grants made,150.00,REDACTED PERSONAL DATA,Grants made,2033967,202204
Rother District Council,01/07/2022,101RESOURCES,Resources,20313,Council Tax Energy Rebate Scheme,D2923,Grants made,150.00,REDACTED PERSONAL DATA,Grants made,2033967,202204
Rother District Council,01/07/2022,101RESOURCES,Resources,20313,Council Tax Energy Rebate Scheme,D2923,Grants made,150.00,REDACTED PERSONAL DATA,Grants made,2033967,202204
Rother District Council,01/07/2022,101RESOURCES,Resources,20313,Council Tax Energy Rebate Scheme,D2923,Grants made,150.00,REDACTED PERSONAL DATA,Grants made,2033967,202204
Rother District Council,01/07/2022,101RESOURCES,Resources,20313,Council Tax Energy Rebate Scheme,D2923,Grants made,150.00,REDACTED PERSONAL DATA,Grants made,2033967,202204
Rother District Council,01/07/2022,101RESOURCES,Resources,20313,Council Tax Energy Rebate Scheme,D2923,Grants made,150.00,REDACTED PERSONAL DATA,Grants made,2033967,202204
Rother District Council,01/07/2022,101RESOURCES,Resources,20313,Council Tax Energy Rebate Scheme,D2923,Grants made,150.00,REDACTED PERSONAL DATA,Grants made,2033967,202204
Rother District Council,01/07/2022,101RESOURCES,Resources,20313,Council Tax Energy Rebate Scheme,D2923,Grants made,150.00,REDACTED PERSONAL DATA,Grants made,2033967,202204
Rother District Council,01/07/2022,101RESOURCES,Resources,20313,Council Tax Energy Rebate Scheme,D2923,Grants made,150.00,REDACTED PERSONAL DATA,Grants made,2033967,202204
Rother District Council,01/07/2022,101RESOURCES,Resources,20313,Council Tax Energy Rebate Scheme,D2923,Grants made,150.00,REDACTED PERSONAL DATA,Grants made,2033967,202204
Rother District Council,01/07/2022,101RESOURCES,Resources,20313,Council Tax Energy Rebate Scheme,D2923,Grants made,150.00,REDACTED PERSONAL DATA,Grants made,2033967,202204
Rother District Council,01/07/2022,101RESOURCES,Resources,20313,Council Tax Energy Rebate Scheme,D2923,Grants made,150.00,REDACTED PERSONAL DATA,Grants made,2033967,202204
Rother District Council,01/07/2022,101RESOURCES,Resources,20313,Council Tax Energy Rebate Scheme,D2923,Grants made,150.00,REDACTED PERSONAL DATA,Grants made,2033967,202204
Rother District Council,01/07/2022,101RESOURCES,Resources,20313,Council Tax Energy Rebate Scheme,D2923,Grants made,150.00,REDACTED PERSONAL DATA,Grants made,2033967,202204
Rother District Council,01/07/2022,101RESOURCES,Resources,20313,Council Tax Energy Rebate Scheme,D2923,Grants made,150.00,REDACTED PERSONAL DATA,Grants made,2033967,202204
Rother District Council,01/07/2022,101RESOURCES,Resources,20313,Council Tax Energy Rebate Scheme,D2923,Grants made,150.00,REDACTED PERSONAL DATA,Grants made,2033967,202204
Rother District Council,01/07/2022,101RESOURCES,Resources,20313,Council Tax Energy Rebate Scheme,D2923,Grants made,150.00,REDACTED PERSONAL DATA,Grants made,2033967,202204
Rother District Council,01/07/2022,101RESOURCES,Resources,20313,Council Tax Energy Rebate Scheme,D2923,Grants made,150.00,REDACTED PERSONAL DATA,Grants made,2033967,202204
Rother District Council,01/07/2022,101RESOURCES,Resources,20313,Council Tax Energy Rebate Scheme,D2923,Grants made,150.00,REDACTED PERSONAL DATA,Grants made,2033967,202204
Rother District Council,01/07/2022,101RESOURCES,Resources,20313,Council Tax Energy Rebate Scheme,D2923,Grants made,150.00,REDACTED PERSONAL DATA,Grants made,2033967,202204
Rother District Council,01/07/2022,101RESOURCES,Resources,20313,Council Tax Energy Rebate Scheme,D2923,Grants made,150.00,REDACTED PERSONAL DATA,Grants made,2033967,202204
Rother District Council,01/07/2022,101RESOURCES,Resources,20313,Council Tax Energy Rebate Scheme,D2923,Grants made,150.00,REDACTED PERSONAL DATA,Grants made,2033967,202204
Rother District Council,01/07/2022,101RESOURCES,Resources,20313,Council Tax Energy Rebate Scheme,D2923,Grants made,150.00,REDACTED PERSONAL DATA,Grants made,2033967,202204
Rother District Council,01/07/2022,101RESOURCES,Resources,20313,Council Tax Energy Rebate Scheme,D2923,Grants made,150.00,REDACTED PERSONAL DATA,Grants made,2033967,202204
Rother District Council,01/07/2022,101RESOURCES,Resources,20313,Council Tax Energy Rebate Scheme,D2923,Grants made,150.00,REDACTED PERSONAL DATA,Grants made,2033967,202204
Rother District Council,01/07/2022,101RESOURCES,Resources,20313,Council Tax Energy Rebate Scheme,D2923,Grants made,150.00,REDACTED PERSONAL DATA,Grants made,2033967,202204
Rother District Council,01/07/2022,101RESOURCES,Resources,20313,Council Tax Energy Rebate Scheme,D2923,Grants made,150.00,REDACTED PERSONAL DATA,Grants made,2033967,202204
Rother District Council,01/07/2022,101RESOURCES,Resources,20313,Council Tax Energy Rebate Scheme,D2923,Grants made,150.00,REDACTED PERSONAL DATA,Grants made,2033967,202204
Rother District Council,01/07/2022,101RESOURCES,Resources,20313,Council Tax Energy Rebate Scheme,D2923,Grants made,150.00,REDACTED PERSONAL DATA,Grants made,2033967,202204
Rother District Council,01/07/2022,101RESOURCES,Resources,20313,Council Tax Energy Rebate Scheme,D2923,Grants made,150.00,REDACTED PERSONAL DATA,Grants made,2033967,202204
Rother District Council,01/07/2022,101RESOURCES,Resources,20313,Council Tax Energy Rebate Scheme,D2923,Grants made,150.00,REDACTED PERSONAL DATA,Grants made,2033967,202204
Rother District Council,01/07/2022,101RESOURCES,Resources,20313,Council Tax Energy Rebate Scheme,D2923,Grants made,150.00,REDACTED PERSONAL DATA,Grants made,2033967,202204
Rother District Council,01/07/2022,101RESOURCES,Resources,20313,Council Tax Energy Rebate Scheme,D2923,Grants made,150.00,REDACTED PERSONAL DATA,Grants made,2033967,202204
Rother District Council,01/07/2022,101RESOURCES,Resources,20313,Council Tax Energy Rebate Scheme,D2923,Grants made,150.00,REDACTED PERSONAL DATA,Grants made,2033967,202204
Rother District Council,01/07/2022,101RESOURCES,Resources,20313,Council Tax Energy Rebate Scheme,D2923,Grants made,150.00,REDACTED PERSONAL DATA,Grants made,2033967,202204
Rother District Council,01/07/2022,101RESOURCES,Resources,20313,Council Tax Energy Rebate Scheme,D2923,Grants made,150.00,REDACTED PERSONAL DATA,Grants made,2033970,202204
Rother District Council,01/07/2022,101RESOURCES,Resources,20313,Council Tax Energy Rebate Scheme,D2923,Grants made,150.00,REDACTED PERSONAL DATA,Grants made,2033971,202204
Rother District Council,01/07/2022,101RESOURCES,Resources,20313,Council Tax Energy Rebate Scheme,D2923,Grants made,150.00,REDACTED PERSONAL DATA,Grants made,2033972,202204
Rother District Council,01/07/2022,101RESOURCES,Resources,20216,Cost Of Collection,D2513,Hired and Contracted services,18.00,H M Land Registry,Hired and contracted services - Council Tax-Land Registry Enquiries,2034256,202204
Rother District Council,01/07/2022,091HOUSING,Housing and Community Services,20200,Housing Needs - HB (Housing Benefit),D2514,Accommodation Costs,142.50,Lillybank Homes Ltd,Accommodation Costs,2034024,202204
Rother District Council,01/07/2022,999NOREPORT,Environmental Services,70706,Capital - Disabled Facilities Grant,N1012,Capital Advances,"7,196.35",The Build Works,Capital Advances Disabled Facilities Grant,2034729,202205
Rother District Council,01/07/2022,101RESOURCES,Resources,20209,Corporate management,D2513,Hired and Contracted services,10.00,Lloyds Bank,Bank Charges,2034968,202205
Rother District Council,01/07/2022,101RESOURCES,Resources,20209,Corporate management,D2513,Hired and Contracted services,32.77,Lloyds Bank,Bank Charges,2034953,202205
Rother District Council,01/07/2022,041ENVIRON,Environmental Services,20129,Community Safety - CCTV costs only,D2513,Hired and Contracted services,3.00,H M Land Registry,Hired and contracted services - Env H-Land Registry,2034256,202204
Rother District Council,01/07/2022,071STRAT,Strategy and Planning,20258,BC Dangerous Structures H+R Partnership,D2513,Hired and Contracted services,3.00,H M Land Registry,Hired and contracted services - Env H-Land Registry,2034256,202204
Rother District Council,01/07/2022,101RESOURCES,Resources,20209,Corporate management,D2513,Hired and Contracted services,20.00,Lloyds Bank,Bank Charges,2034965,202205
Rother District Council,01/07/2022,091HOUSING,Housing and Community Services,20123,Cemeteries,D2513,Hired and Contracted services,655.00,Bexhill Funeral Service,Hired and contracted services - Parks-Public Health Burials,2034172,202204
Rother District Council,01/07/2022,091HOUSING,Housing and Community Services,20200,Housing Needs - HB (Housing Benefit),D2514,Accommodation Costs,480.00,Lillybank Homes Ltd,Accommodation Costs,2034024,202204
Rother District Council,01/07/2022,999NOREPORT,Housing and Community Services,70714,Capital - Community Grants,N1011,Capital Grants,430.00,Ewhurst and  Staplecross Village Hall,Capital Grants - Community Grants Scheme,2033982,202204
Rother District Council,01/07/2022,091HOUSING,Housing and Community Services,20200,Housing Needs - HB (Housing Benefit),D2514,Accommodation Costs,"1,105.00",Paramount Independent Property Services LLP,Accommodation Costs,2034026,202204
Rother District Council,01/07/2022,091HOUSING,Housing and Community Services,20201,Household Support Fund (HFS) from 202108,D2923,Grants made,50.00,REDACTED PERSONAL DATA,Grants made,2033968,202204
Rother District Council,01/07/2022,091HOUSING,Housing and Community Services,20201,Household Support Fund (HFS) from 202108,D2923,Grants made,50.00,REDACTED PERSONAL DATA,Grants made,2033968,202204
Rother District Council,01/07/2022,091HOUSING,Housing and Community Services,20201,Household Support Fund (HFS) from 202108,D2923,Grants made,50.00,REDACTED PERSONAL DATA,Grants made,2033968,202204
Rother District Council,01/07/2022,091HOUSING,Housing and Community Services,20201,Household Support Fund (HFS) from 202108,D2923,Grants made,50.00,REDACTED PERSONAL DATA,Grants made,2033968,202204
Rother District Council,01/07/2022,091HOUSING,Housing and Community Services,20201,Household Support Fund (HFS) from 202108,D2923,Grants made,50.00,REDACTED PERSONAL DATA,Grants made,2033968,202204
Rother District Council,01/07/2022,091HOUSING,Housing and Community Services,20201,Household Support Fund (HFS) from 202108,D2923,Grants made,50.00,REDACTED PERSONAL DATA,Grants made,2033968,202204
Rother District Council,01/07/2022,091HOUSING,Housing and Community Services,20201,Household Support Fund (HFS) from 202108,D2923,Grants made,50.00,REDACTED PERSONAL DATA,Grants made,2033968,202204
Rother District Council,01/07/2022,091HOUSING,Housing and Community Services,20200,Housing Needs - HB (Housing Benefit),D2514,Accommodation Costs,684.00,Paramount Independent Property Services LLP,Accommodation Costs,2034026,202204
Rother District Council,01/07/2022,101RESOURCES,Resources,20209,Corporate management,D2513,Hired and Contracted services,"1,949.64",Lloyds Bank,Bank Charges,2034961,202205
Rother District Council,01/07/2022,101RESOURCES,Resources,20209,Corporate management,D2513,Hired and Contracted services,20.00,Lloyds Bank,Bank Charges,2034969,202205
Rother District Council,01/07/2022,091HOUSING,Housing and Community Services,20200,Housing Needs - HB (Housing Benefit),D2514,Accommodation Costs,507.50,Lillybank Homes Ltd,Accommodation Costs,2034024,202204
Rother District Council,01/07/2022,091HOUSING,Housing and Community Services,20329,Rough Sleeping Initiative,D2514,Accommodation Costs,"1,650.00",Paramount Independent Property Services LLP,Accommodation Costs,2034026,202204
Rother District Council,01/07/2022,091HOUSING,Housing and Community Services,20200,Housing Needs - HB (Housing Benefit),D2514,Accommodation Costs,455.00,Lillybank Homes Ltd,Accommodation Costs,2034024,202204
Rother District Council,01/07/2022,091HOUSING,Housing and Community Services,20200,Housing Needs - HB (Housing Benefit),D2514,Accommodation Costs,"8,333.33",Paramount Independent Property Services LLP,Accommodation Costs,2034027,202204
Rother District Council,01/07/2022,999NOREPORT,Housing and Community Services,70714,Capital - Community Grants,N1011,Capital Grants,159.89,Normans Bay Residents Association,Capital Grants - Community Grants Scheme,2034060,202204
Rother District Council,01/07/2022,999NOREPORT,Housing and Community Services,70714,Capital - Community Grants,N1011,Capital Grants,500.00,Fairfest,Capital Grants - Community Grants Scheme,2034080,202204
Rother District Council,01/07/2022,091HOUSING,Housing and Community Services,20200,Housing Needs - HB (Housing Benefit),D2514,Accommodation Costs,"1,140.00",Paramount Independent Property Services LLP,Accommodation Costs,2034026,202204
Rother District Council,01/07/2022,091HOUSING,Housing and Community Services,20200,Housing Needs - HB (Housing Benefit),D2514,Accommodation Costs,413.00,Lillybank Homes Ltd,Accommodation Costs,2034024,202204
Rother District Council,01/07/2022,091HOUSING,Housing and Community Services,20200,Housing Needs - HB (Housing Benefit),D2514,Accommodation Costs,480.00,Lillybank Homes Ltd,Accommodation Costs,2034024,202204
Rother District Council,01/07/2022,091HOUSING,Housing and Community Services,20200,Housing Needs - HB (Housing Benefit),D2514,Accommodation Costs,"1,950.00",Paramount Independent Property Services LLP,Accommodation Costs,2034026,202204
Rother District Council,01/07/2022,091HOUSING,Housing and Community Services,20200,Housing Needs - HB (Housing Benefit),D2514,Accommodation Costs,480.00,Lillybank Homes Ltd,Accommodation Costs,2034024,202204
Rother District Council,01/07/2022,091HOUSING,Housing and Community Services,20329,Rough Sleeping Initiative,D2514,Accommodation Costs,198.00,Paramount Independent Property Services LLP,Accommodation Costs,2034026,202204
Rother District Council,01/07/2022,091HOUSING,Housing and Community Services,20200,Housing Needs - HB (Housing Benefit),D2514,Accommodation Costs,455.00,Lillybank Homes Ltd,Accommodation Costs,2034024,202204
Rother District Council,01/07/2022,091HOUSING,Housing and Community Services,20200,Housing Needs - HB (Housing Benefit),D2514,Accommodation Costs,"1,140.00",Paramount Independent Property Services LLP,Accommodation Costs,2034026,202204
Rother District Council,01/07/2022,091HOUSING,Housing and Community Services,20125,Coast Protection,E2302,Third party payment private contractors,520.00,Laurence Beetham,Third party payment private contractors - Fairlight Compressor Maintenance Contract,2034289,202204
Rother District Council,01/07/2022,031RESOURCES,Chief Executive & Corporate Core,20178,Corporate Training,A2203,Training,300.00,LLG Enterprises Ltd t/a Lawyers in Local Government,Training,2033980,202204
Rother District Council,01/07/2022,101RESOURCES,Resources,20209,Corporate management,D2513,Hired and Contracted services,548.01,Lloyds Bank,Bank Charges,2034954,202205
Rother District Council,01/07/2022,091HOUSING,Housing and Community Services,20200,Housing Needs - HB (Housing Benefit),D2514,Accommodation Costs,480.00,Lillybank Homes Ltd,Accommodation Costs,2034024,202204
Rother District Council,01/07/2022,091HOUSING,Housing and Community Services,20200,Housing Needs - HB (Housing Benefit),D2514,Accommodation Costs,413.00,Lillybank Homes Ltd,Accommodation Costs,2034024,202204
Rother District Council,01/07/2022,101RESOURCES,Resources,20209,Corporate management,D2513,Hired and Contracted services,20.00,Lloyds Bank,Bank Charges,2034964,202205
Rother District Council,01/07/2022,091HOUSING,Housing and Community Services,20200,Housing Needs - HB (Housing Benefit),D2514,Accommodation Costs,455.00,Lillybank Homes Ltd,Accommodation Costs,2034024,202204
Rother District Council,01/07/2022,101RESOURCES,Resources,20209,Corporate management,D2513,Hired and Contracted services,20.00,Lloyds Bank,Bank Charges,2034967,202205
Rother District Council,01/07/2022,101RESOURCES,Resources,20209,Corporate management,D2513,Hired and Contracted services,50.00,Lloyds Bank,Bank Charges,2034966,202205
Rother District Council,01/07/2022,101RESOURCES,Resources,20314,Payments to Ukrainian guests,D2923,Grants made,"10,000.00",Post Office Ltd,Grants made - No VAT,2034260,202204
Rother District Council,01/07/2022,071STRAT,Strategy and Planning,20246,Planning Applications,D2513,Hired and Contracted services,30.00,H M Land Registry,Hired and contracted services - Land Registry-Planning,2034256,202204
Rother District Council,01/07/2022,091HOUSING,Housing and Community Services,20206,UK Resettlement (Syrians),D2513,Hired and Contracted services,135.00,Milburn Psychology Practice,Hired and contracted services - Syrian Misc,2034116,202204
Rother District Council,01/07/2022,999NOREPORT,Housing and Community Services,70714,Capital - Community Grants,N1011,Capital Grants,423.50,Beckley Parish Council,Capital Grants - Community Grants Scheme,2034050,202204
Rother District Council,01/07/2022,999NOREPORT,Housing and Community Services,70714,Capital - Community Grants,N1011,Capital Grants,444.98,Battle Medieval Mysteries CIC,Capital Grants - Community Grants Scheme,2034071,202204
Rother District Council,01/07/2022,091HOUSING,Housing and Community Services,20200,Housing Needs - HB (Housing Benefit),D2514,Accommodation Costs,95.00,Lillybank Homes Ltd,Accommodation Costs,2034024,202204
Rother District Council,01/07/2022,071STRAT,Strategy and Planning,20245,Planning Business Support,A1110,Agency Staff,346.75,Sammons Recruitment Ltd,Agency Staff,2034084,202204
Rother District Council,01/07/2022,031RESOURCES,Chief Executive & Corporate Core,20171,Human Resources,D2922,Subscriptions,"5,250.00",South East Employers,Subscriptions - Subscription to Organisations,2033989,202204
Rother District Council,01/07/2022,091HOUSING,Housing and Community Services,20108,Bexhill Promenade & Foreshore,D2621,Telephones,10.25,Commtel Ltd T/A Teleguard,Equipment & Materials - Access cards and systems,2034286,202204
Rother District Council,01/07/2022,091HOUSING,Housing and Community Services,20200,Housing Needs - HB (Housing Benefit),D2508,Removals and Storage,252.00,Movers of Sussex LTD,Removals and Storage,2034013,202204
Rother District Council,01/07/2022,091HOUSING,Housing and Community Services,20200,Housing Needs - HB (Housing Benefit),D2514,Accommodation Costs,"1,650.00",Paramount Independent Property Services LLP,Accommodation Costs,2034026,202204
Rother District Council,01/07/2022,101RESOURCES,Resources,20209,Corporate management,D2513,Hired and Contracted services,20.00,Lloyds Bank,Bank Charges,2034962,202205
Rother District Council,01/07/2022,101RESOURCES,Resources,20315,Payments to Ukrainian Hosts,D2923,Grants made,"1,200.00",REDACTED PERSONAL DATA,Grants made,2033969,202204
Rother District Council,01/07/2022,101RESOURCES,Resources,20315,Payments to Ukrainian Hosts,D2923,Grants made,850.00,REDACTED PERSONAL DATA,Grants made,2033969,202204
Rother District Council,01/07/2022,101RESOURCES,Resources,20315,Payments to Ukrainian Hosts,D2923,Grants made,850.00,REDACTED PERSONAL DATA,Grants made,2033969,202204
Rother District Council,01/07/2022,101RESOURCES,Resources,20315,Payments to Ukrainian Hosts,D2923,Grants made,850.00,REDACTED PERSONAL DATA,Grants made,2033969,202204
Rother District Council,01/07/2022,101RESOURCES,Resources,20315,Payments to Ukrainian Hosts,D2923,Grants made,850.00,REDACTED PERSONAL DATA,Grants made,2033969,202204
Rother District Council,01/07/2022,101RESOURCES,Resources,20315,Payments to Ukrainian Hosts,D2923,Grants made,"1,200.00",REDACTED PERSONAL DATA,Grants made,2033969,202204
Rother District Council,01/07/2022,101RESOURCES,Resources,20315,Payments to Ukrainian Hosts,D2923,Grants made,850.00,REDACTED PERSONAL DATA,Grants made,2033969,202204
Rother District Council,02/07/2022,101RESOURCES,Resources,20242,Communications-Phones,D2621,Telephones,28.63,TalkTalk Communications Ltd T/A TalkTalk Business,Telephones - Leased Line Rental,2034990,202206
Rother District Council,02/07/2022,091HOUSING,Housing and Community Services,20261,"TA Purchases (prev - 41 Jameson Mews, Bexhill on Sea)",B2202,Gas,99.05,British Gas Trading Ltd (Residential),Gas - Gas Charges,2034165,202204
Rother District Council,02/07/2022,091HOUSING,Housing and Community Services,20108,Bexhill Promenade & Foreshore,D1201,Equipment & Materials,395.83,GMM Sales Ltd,Equipment & Materials - First Aid Equipment,2034022,202204
Rother District Council,02/07/2022,091HOUSING,Housing and Community Services,20109,Sports Development,D2927,Services Facilitated by External Grants,300.00,Zoe Ward,Services Facilitated by External - Grant-Sports Development-Active Rother,2034250,202204
Rother District Council,03/07/2022,101RESOURCES,Resources,20222,Accountancy,D2636,Computer Software,"1,253.49",Integra Associates Ltd,Computer Software - charged to departments,2034014,202204
Rother District Council,03/07/2022,081ACQUISIT,"Acquisitions, Transformation and Regeneration",20154,Committee Property Account,B1100,Repairs to Premises,218.63,I.B. Lock & Safe,Repairs to Premises - Specified Repairs and Works listed,2034057,202204
Rother District Council,03/07/2022,071STRAT,Strategy and Planning,20246,Planning Applications,D2509,Consultants and Other Services,208.44,Curley Consultants,Consultants and other services - Consultants Fees,2034031,202204
Rother District Council,04/07/2022,101RESOURCES,Resources,20222,Accountancy,D2509,Consultants and Other Services,"2,000.00",Borough Council of King�s Lynn and West Norfolk,Consultants and other services - Consultants Fees,2034512,202204
Rother District Council,04/07/2022,091HOUSING,Housing and Community Services,20206,UK Resettlement (Syrians),D2513,Hired and Contracted services,307.39,Lets 2 Share Limited,Hired and contracted services - Syrian Resettlement Programme-Rent,2034055,202204
Rother District Council,04/07/2022,091HOUSING,Housing and Community Services,20261,"TA Purchases (prev - 41 Jameson Mews, Bexhill on Sea)",B2202,Gas,133.30,British Gas Business (600 Accounts only),Gas - Gas Charges,2034124,202204
Rother District Council,04/07/2022,091HOUSING,Housing and Community Services,20261,"TA Purchases (prev - 41 Jameson Mews, Bexhill on Sea)",B2202,Gas,69.24,British Gas Business (600 Accounts only),Gas - Gas Charges,2034125,202204
Rother District Council,04/07/2022,091HOUSING,Housing and Community Services,20200,Housing Needs - HB (Housing Benefit),D2514,Accommodation Costs,400.00,Dale Saunders (Holdings) Ltd,Accommodation Costs,2034056,202204
Rother District Council,04/07/2022,091HOUSING,Housing and Community Services,20200,Housing Needs - HB (Housing Benefit),D2514,Accommodation Costs,390.00,Roost People Ltd,Accommodation Costs,2034052,202204
Rother District Council,04/07/2022,091HOUSING,Housing and Community Services,20329,Rough Sleeping Initiative,D2514,Accommodation Costs,350.00,Roost People Ltd,Accommodation Costs,2034052,202204
Rother District Council,04/07/2022,091HOUSING,Housing and Community Services,20200,Housing Needs - HB (Housing Benefit),D2514,Accommodation Costs,420.00,Savoy Court Hotel Ltd,Accommodation Costs,2034083,202204
Rother District Council,04/07/2022,091HOUSING,Housing and Community Services,20200,Housing Needs - HB (Housing Benefit),D2514,Accommodation Costs,105.00,Savoy Court Hotel Ltd,Accommodation Costs,2034083,202204
Rother District Council,04/07/2022,091HOUSING,Housing and Community Services,20200,Housing Needs - HB (Housing Benefit),D2514,Accommodation Costs,415.00,Lets 2 Share Limited,Accommodation Costs,2034054,202204
Rother District Council,04/07/2022,091HOUSING,Housing and Community Services,20200,Housing Needs - HB (Housing Benefit),D2514,Accommodation Costs,525.00,Savoy Court Hotel Ltd,Accommodation Costs,2034083,202204
Rother District Council,04/07/2022,091HOUSING,Housing and Community Services,20200,Housing Needs - HB (Housing Benefit),D2514,Accommodation Costs,430.00,Roost People Ltd,Accommodation Costs,2034052,202204
Rother District Council,04/07/2022,091HOUSING,Housing and Community Services,20200,Housing Needs - HB (Housing Benefit),D2514,Accommodation Costs,390.00,Roost People Ltd,Accommodation Costs,2034052,202204
Rother District Council,04/07/2022,091HOUSING,Housing and Community Services,20200,Housing Needs - HB (Housing Benefit),D2514,Accommodation Costs,364.00,SDR Living Ltd,Accommodation Costs,2034044,202204
Rother District Council,04/07/2022,091HOUSING,Housing and Community Services,20200,Housing Needs - HB (Housing Benefit),D2514,Accommodation Costs,91.00,SDR Living Ltd,Accommodation Costs,2034044,202204
